Workbook

Sheet Main
A1: Top NFL Starting Quarterbacks --- Rating them Six Different Ways to determine how they rank as The Greatest Quarterback - - - stats thru the 2025 post-season | BT1: Lower is Better | BU1: Higher is Better | BV1: Higher is Better | BW1: Higher is Better | BX1: Higher is Better | BY1: Lower is Better | BZ1: Lower is Better | CA1: Lower is Better | CB1: Lower is Better | CC1: Lower is Better | CD1: Lower is Better | CE1: Higher is Better | CF1: Higher is Better | CG1: Higher is Better | CH1: Higher is Better | CI1: Higher is Better | CJ1: Lower is Better | CK1: Higher is Better | CL1: Higher is Better | CM1: Higher is Better | CN1: To calc QB Rating per NFL Formula | CS1: P O I N TS A W A R D E D P E R C E R T A I N S T A T S | DJ1: A D D I T I O N A L S T A T S A S T H I N K O F T H E M T O A D D
A2: NFL Quarterback (5+ seasons as starter) | B2: College | C2: Draft Rnd- Pick | D2: # Yrs Play | E2: Years Played 19xx-20xx | G2: Games Played | H2: Games Start | I2: Games Not Played | J2: Miss Sea- sons | K2: Teams | L2: Strong Arm | M2: Mobile | N2: Leader ship | O2: Clutch (4th Qtr comebk) [formula] | P2: Smart | Q2: 'X' Count | R2: Pass Att | S2: Pass Comp | T2: Pass Yards | U2: Comp Pct | V2: TD | W2: Int | X2: QB Rating | Y2: Rushes | Z2: Rush Yards | AA2: Rush TDs | AB2: Avg Yds per Rush | AC2: Avg TD per Rush | AD2: Avg Rush TD per Game | AE2: Sacks (see next col.) | AF2: Seasons Missing Sack Count | AG2: Fum | AH2: Fum Lost | AI2: 4th Qtr Comebk | AJ2: Game Win Drive | AK2: Wins | AL2: Loses | AM2: Winning Seasons Starter | AN2: Unde-feated Season | AO2: TeamWin Div | AP2: Team Win Conf | AQ2: Playoff (wildcard, div, conf) Wins as Start QB | AR2: Playoff (wildcard, div, conf) Loses as Start QB | AS2: Playoff (wildcard, div,conf) Win Pct | AT2: Playoff (wildcard, div, conf) 4Q Come- backs | AU2: Playoff (wildcard, div, conf) Game Win Drives | AV2: Pro Bowls | AW2: Pro Bowl 1st Team | AX2: NFL-ACL MVP | AY2: AP All-Pro 1st Tm 1940+ | AZ2: Hall of Fame | BA2: Champ-ionship Wins | BB2: Champ-ionship MVP | BC2: Points on Stats | BD2: Points on Stats with Champion-ships Weighted | BE2: Points on Winning Weighted 12-Factors | BF2: Points on Apples-to-Apples Stats | BG2: Points from Top5 Stats | BH2: QB | BI2: QB Rating Value | BJ2: 4Q ComeBk Value | BK2: Win Drive Value | BL2: Win Loss Value | BM2: Fumbles Lost Value | BN2: Winning Seasons Value | BO2: Yds/Att Value | BP2: TD per Game Value | BQ2: Games Play vs Possible Value | BR2: Decade Value | BS2: Sacks Value | BT2: Season # of 1st SB Win | BU2: Points for 1st SB Win in X Years | BV2: Wins as Pct of Games | BW2: Winning Seasons as Pct of # of seas. played | BX2: # TD's divided by # of Ints | BY2: # Fums divided by # Lost | BZ2: Career Sacks (calc'd) | CA2: Sacks as Pct of Tot Games | CB2: Fumbles Lost as Pct of Tot Fums | CC2: Fumbles Lost as Pct of Tot Games | CD2: Ints per Pass | CE2: Yards per Pass | CF2: Yards per Comp | CG2: Yards per Game Played | CH2: TD per Pass | CI2: TD per Game Played | CJ2: INT per Game Played | CK2: Games Played vs Possible | CL2: Fourth Qtr wins per games play | CM2: Game Winning Drives per games play | CN2: Comps | CO2: Yards | CP2: TD's | CQ2: Ints | CR2: QB | CS2: Points for Pct of Wins per Games Played | CT2: Points for Pct of Winning Seasons to Seasons Played | CU2: Points for TD's vs. Ints Pct | CV2: Points for Pct of Fumbles Lost to Fumbles Made | CW2: Points for # of Times Sacked | CX2: Points for Pct of Ints per Attempt | CY2: Points for Ints per Attempt | CZ2: Points for Yards per Attempt | DA2: Points for Yards per Comp | DB2: Points for Yards per Game | DC2: Points for TD per Attempt | DD2: Points for TD per Game | DE2: Points for Int per Game | DF2: Points for Games Played vs. Possible | DG2: Points for 4Q Wins per Game Played | DH2: Points for Winning Drive per Game Played | DJ2: Champion- ship Losses | DK2: Average Yards per Season | DL2: Average TD per Season
A3: Otto Graham | B3: Northwestern | C3: 1-4 | D3: 10 | E3: 46 | F3: 55 | G3: 126 | H3: 114 | I3: 0 | K3: Browns(AAFC,NFL) | M3: X | N3: X | O3: =IF(CL3>9.9,(IF(CM3>11.99,"X","")),"") ->  | P3: X | Q3: =COUNTA(L3:P3) -> 4 | R3: 2626 | S3: 1464 | T3: 23584 | U3: =S3/R3*100 -> 55.7501904 | V3: 174 | W3: 135 | X3: =((CN3+CO3+CP3+CQ3)/6)*100 -> 86.62890327 | Y3: 405 | Z3: 882 | AA3: 44 | AB3: =Z3/Y3 -> 2.177777778 | AC3: =AA3/Y3 -> 0.1086419753 | AD3: =AA3/G3 -> 0.3492063492 | AE3: 0 | AF3: 10 | AG3: 35 | AH3: 23 | AI3: 10 | AJ3: 10 | AK3: 104 | AL3: 17 | AM3: 10 | AN3: 1 | AO3: 10 | AP3: 10 | AQ3: 9 | AR3: 3 | AS3: =AQ3/(AQ3+AR3)*100 -> 75 | AT3: 1 | AU3: 2 | AV3: 5 | AW3: 5 | AX3: 3 | AY3: 7 | AZ3: 1 | BA3: 7 | BB3: 3 | BC3: =(SUM(AM3:BB3))+(SUM(BI3:BR3))-AR3+(SUM(CS3:DH3)) -> 255 | BD3: =(BA3*4)+(Q3)+(SUM(AM3:BB3))+(SUM(BI3:BR3))-AR3+(SUM(CS3:DH3)) -> 287 | BE3: =(BA3*12)+(BA3*11)+(((AO3/D3*10)+(AP3/D3*10))*10)+(BN3*9)+(BP3*8)+((BJ3+BK3+BL3)*7)+(BI3*6)+(BM3*5)+(AX3*4)+(BB3*3)+(AW3*2)+(Q3)+BQ3+AY3 -> 494 | BF3: =X3+(CF3*10)+(100-((AH3/G3)*100))+(100-((AH3/AG3)*100))+(AB3*100)+(AC3*100)+(AD3*100)+((H3/G3)*100)+((AK3/H3)*100)+((AM3/D3)*100)+((AX3/D3)*100)+((AO3/D3)*100)+((AP3/D3)*100)+((AQ3/(AQ3+AR3))*100)+((AV3/D3)*100)+((AW3/D3)*100)+((AY3/D3)*100)+(20-BT3)+((BA3/D3)*100)+((BB3/D3)*100) -> 1503.020416 | BG3: 64 | BH3: O.Graham | BI3: =IF(X3<70,0,(IF(X3<80,1,(IF(X3<90,2,3))))) -> 2 | BJ3: =IF(AI3<15,0,(IF(AI3<25,1,(IF(AI3<40,2,3))))) -> 0 | BK3: =IF(AJ3<15,0,(IF(AJ3<25,1,(IF(AJ3<40,2,3))))) -> 0 | BL3: =IF(BV3<60,0,(IF(BV3<70,1,(IF(BV3<80,2,(IF(BV3<90,3,4))))))) -> 3 | BM3: =IF(CB3<30,3,(IF(CB3<40,2,1))) -> 2 | BN3: =IF(BW3<70,0,(IF(BW3<80,1,(IF(BW3<90,2,(IF(BW3<100,3,4))))))) -> 4 | BO3: =IF(CE3<7.75,0,(IF(CE3<8.25,1,(IF(CE3<8.75,2,3))))) -> 3 | BP3: =IF(CI3<1,0,(IF(CI3<1.5,1,(IF(CI3<2,2,3))))) -> 1 | BQ3: =IF(CK3<0.8,1,(IF(CK3<0.9,2,(IF(CK3<1,3,4))))) -> 4 | BR3: =IF(E3<20,0,(IF(E3<50,9,(IF(E3<70,6,(IF(E3<90,3,0))))))) -> 9 | BS3: =IF(CA3<1.5,3,(IF(CA3<2,2,1))) -> 2 | BT3: 1 | BU3: =IF(BT3=0,0,(IF(BT3<2,10,(IF(BT3<3,9,(IF(BT3<5,8,(IF(BT3<8,7),(IF(BT3<11,6),(IF(BT3<16,5,8))))))))))) -> 10 | BV3: =AK3/(AK3+AL3)*100 -> 85.95041322 | BW3: =(AM3/(D3-J3))*100 -> 100 | BX3: =V3/W3 -> 1.288888889 | BY3: =AG3/AH3 -> 1.52173913 | BZ3: =IF(AE3=0,(G3*1.6),(AE3/((D3-AF3)/D3))) -> 201.6 | CA3: =BZ3/G3 -> 1.6 | CB3: =AH3/(AH3+AG3)*100 -> 39.65517241 | CC3: =AH3/G3*100 -> 18.25396825 | CD3: =W3/R3*100 -> 5.140898705 | CE3: =T3/R3 -> 8.980959634 | CF3: =T3/S3 -> 16.10928962 | CG3: =T3/G3 -> 187.1746032 | CH3: =V3/R3*100 -> 6.62604722 | CI3: =V3/G3 -> 1.380952381 | CJ3: =W3/G3 -> 1.071428571 | CK3: =G3/(G3+I3) -> 1 | CL3: =(AI3/G3)*100 -> 7.936507937 | CM3: =(AJ3/G3)*100 -> 7.936507937 | CN3: =MAX(0,MIN(((S3/R3-0.3)*5),2.375)) -> 1.28750952 | CO3: =MAX(0,MIN(((T3/R3-3)*0.25),2.375)) -> 1.495239909 | CP3: =MAX(0,MIN(((V3/R3)*20),2.375)) -> 1.325209444 | CQ3: =MAX(0,MIN((2.375-(W3/R3*25)),2.375)) -> 1.089775324 | CR3: Otto Graham | CS3: =IF(BV3>90,10,(IF(BV3>80,8,(IF(BV3>75,6,(IF(BV3>70,4,(IF(BV3>65,2,0))))))))) -> 8 | CT3: =IF(BW3>99,10,(IF(BW3>90,8,(IF(BW3>80,6,(IF(BW3>70,4,(IF(BW3>65,2,0))))))))) -> 10 | CU3: =IF(BX3>2.7,10,(IF(BX3>2.4,8,(IF(BX3>2,6,(IF(BX3>1.7,4,(IF(BX3>1.2,2,0))))))))) -> 2 | CV3: =IF(BY3<1.3,10,(IF(BY3<1.45,8,(IF(BY3<1.48,6,(IF(BY3<1.6,4,(IF(BY3<2,2,0))))))))) -> 4 | CW3: =IF(CA3<1,10,(IF(CA3<1.4,8,(IF(CA3<1.6,6,(IF(CA3<1.8,4,(IF(CA3<2,2,0))))))))) -> 4 | CX3: =IF(CA3<0.5,10,(IF(CA3<1,8,(IF(CA3<1.4,6,(IF(CA3<1.7,4,(IF(CA3<2,2,0))))))))) -> 4 | CY3: =IF(CD3<2,10,(IF(CD3<2.5,9,(IF(CD3<3,8,(IF(CD3<3.5,6,(IF(CD3<4.5,5,(IF(CD3<5,3,0))))))))))) -> 0 | CZ3: =IF(CE3>8.5,10,(IF(CE3>8,8,(IF(CE3>7.5,6,(IF(CE3>7,4,(IF(CE3>6.5,2,0))))))))) -> 10 | DA3: =IF(CF3>16,10,(IF(CF3>15,8,(IF(CF3>14,6,(IF(CF3>13,4,(IF(CF3>12,2,0))))))))) -> 10 | DB3: =IF(CG3>270,10,(IF(CG3>250,8,(IF(CG3>225,6,(IF(CG3>200,4,(IF(CG3>180,2,0))))))))) -> 2 | DC3: =IF(CH3>7,10,(IF(CH3>6,8,(IF(CH3>5.5,6,(IF(CH3>5,4,(IF(CH3>4.5,2,0))))))))) -> 8 | DD3: =IF(CI3>2,10,(IF(CI3>1.6,8,(IF(CI3>1.3,6,(IF(CI3>1.1,4,(IF(CI3>1,2,0))))))))) -> 6 | DE3: =IF(CJ3<0.6,10,(IF(CJ3<0.72,8,(IF(CJ3<0.8,6,(IF(CJ3<0.86,4,(IF(CJ3<1,2,0))))))))) -> 0 | DF3: =IF(CK3>0.99,10,(IF(CK3>0.949,8,(IF(CK3>0.899,6,(IF(CK3>0.849,4,(IF(CK3>0.799,2,0))))))))) -> 10 | DG3: =IF(CL3>18,10,(IF(CL3>15,8,(IF(CL3>12,6,(IF(CL3>10,4,(IF(CL3>8,2,0))))))))) -> 0 | DH3: =IF(CM3>20,10,(IF(CM3>17,8,(IF(CM3>15,6,(IF(CM3>12,4,(IF(CM3>10,2,0))))))))) -> 0 | DJ3: =AP3-BA3 -> 3 | DK3: =T3/D3 -> 2358.4 | DL3: =V3/D3 -> 17.4
A4: Tom Brady | B4: Michigan | C4: 6-33 | D4: 23 | E4: 0 | F4: 22 | G4: 335 | H4: 333 | I4: 35 | J4: 1 | K4: Patriots(20),Bucs(3) | N4: X | O4: X | P4: X | Q4: 3 | R4: 12050 | S4: 7753 | T4: 89214 | U4: 64.34024896 | V4: 649 | W4: 212 | X4: 97.17116183 | Y4: 693 | Z4: 1123 | AA4: 28 | AB4: 1.62049062 | AC4: 0.0404040404 | AD4: 0.08358208955 | AE4: 565 | AG4: 134 | AH4: 48 | AI4: 46 | AJ4: 58 | AK4: 251 | AL4: 82 | AM4: 21 | AN4: 1 | AO4: 20 | AP4: 10 | AQ4: 29 | AR4: 12 | AS4: 70.73170732 | AT4: 9 | AU4: 13 | AV4: 15 | AW4: 6 | AX4: 3 | AY4: 3 | AZ4: 0 | BA4: 7 | BB4: 5 | BC4: =(SUM(AM4:BB4))+(SUM(BI4:BR4))-AR4 -> 234.7317073 | BD4: 359.7317073 | BE4: 471.4347826 | BF4: 1191.354294 | BG4: 119 | BH4: T.Brady | BI4: 3 | BJ4: 3 | BK4: 3 | BL4: 2 | BM4: 3 | BN4: 3 | BO4: 0 | BP4: 2 | BQ4: 3 | BR4: 0 | BS4: 2 | BT4: 2 | BU4: =IF(BT4=0,0,(IF(BT4<2,10,(IF(BT4<3,9,(IF(BT4<5,8,(IF(BT4<8,7,(IF(BT4<11,6,(IF(BT4<16,5,8))))))))))))) -> 9 | BV4: 75.37537538 | BW4: 95.45454545 | BX4: 3.061320755 | BY4: 2.791666667 | BZ4: 565 | CA4: 1.686567164 | CB4: 26.37362637 | CC4: 14.32835821 | CD4: 1.7593361 | CE4: 7.403651452 | CF4: 11.50702954 | CG4: 266.3104478 | CH4: 5.385892116 | CI4: 1.937313433 | CJ4: 0.6328358209 | CK4: 0.9054054054 | CL4: 13.73134328 | CM4: 17.31343284 | CN4: 1.717012448 | CO4: 1.100912863 | CP4: 1.077178423 | CQ4: 1.935165975 | CR4: Tom Brady | CS4: 6 | CT4: 8 | CU4: 10 | CV4: 0 | CW4: 4 | CX4: 4 | CY4: 10 | CZ4: 4 | DA4: 0 | DB4: 8 | DC4: 4 | DD4: 8 | DE4: 8 | DF4: 6 | DG4: 6 | DH4: 8 | DJ4: 3 | DK4: 3878.869565 | DL4: 28.2173913
A5: Joe Montana | B5: N.Dame | C5: 3-26 | D5: 16 | E5: 79 | F5: 94 | G5: 192 | H5: 164 | I5: 41 | J5: 1 | K5: 49ers(13),Chiefs(2) | N5: X | O5: X | P5: X | Q5: 3 | R5: 5391 | S5: 3409 | T5: 40551 | U5: 63.23502133 | V5: 273 | W5: 139 | X5: 92.25754344 | Y5: 457 | Z5: 1676 | AA5: 20 | AB5: 3.667396061 | AC5: 0.04376367615 | AD5: 0.1041666667 | AE5: 313 | AG5: 52 | AH5: 16 | AI5: 31 | AJ5: 28 | AK5: 117 | AL5: 47 | AM5: 11 | AN5: 0 | AO5: 10 | AP5: 4 | AQ5: 24 | AR5: 9 | AS5: 72.72727273 | AT5: 5 | AU5: 5 | AV5: 8 | AW5: 3 | AX5: 2 | AY5: 3 | AZ5: 1 | BA5: 4 | BB5: 3 | BC5: 174.7272727 | BD5: 261.7272727 | BE5: 302.5 | BF5: 1300.125795 | BG5: 35 | BH5: J.Montana | BI5: 3 | BJ5: 2 | BK5: 2 | BL5: 2 | BM5: 3 | BN5: 1 | BO5: 0 | BP5: 1 | BQ5: 2 | BR5: 3 | BS5: 2 | BT5: 3 | BU5: 8 | BV5: 71.34146341 | BW5: 73.33333333 | BX5: 1.964028777 | BY5: 3.25 | BZ5: 313 | CA5: 1.630208333 | CB5: 23.52941176 | CC5: 8.333333333 | CD5: 2.57837136 | CE5: 7.52198108 | CF5: 11.89527721 | CG5: 211.203125 | CH5: 5.063995548 | CI5: 1.421875 | CJ5: 0.7239583333 | CK5: 0.8240343348 | CL5: 16.14583333 | CM5: 14.58333333 | CN5: 1.661751067 | CO5: 1.13049527 | CP5: 1.01279911 | CQ5: 1.73040716 | CR5: Joe Montana | CS5: 4 | CT5: 4 | CU5: 4 | CV5: 0 | CW5: 4 | CX5: 4 | CY5: 8 | CZ5: 6 | DA5: 0 | DB5: 4 | DC5: 4 | DD5: 6 | DE5: 6 | DF5: 2 | DG5: 8 | DH5: 4 | DJ5: 0 | DK5: 2534.4375 | DL5: 17.0625
A6: Patrick Mahomes | B6: Texas Tech | C6: 10-1 | D6: 9 | E6: 17 | F6: 25 | G6: 126 | H6: 126 | I6: 23 | K6: Chiets(6) | L6: X | M6: X | N6: X | O6: X | P6: X | Q6: 5 | R6: 4673 | S6: 3093 | T6: 35939 | U6: 66.18874385 | V6: 267 | W6: 85 | X6: 100.7521043 | Y6: 489 | Z6: 2655 | AA6: 19 | AB6: 5.429447853 | AC6: 0.03885480573 | AD6: 0.1507936508 | AE6: 218 | AG6: 41 | AH6: 18 | AI6: 20 | AJ6: 24 | AK6: 95 | AL6: 32 | AM6: 7 | AN6: 0 | AO6: 7 | AP6: 5 | AQ6: 13 | AR6: 3 | AS6: 81.25 | AT6: 6 | AU6: 7 | AV6: 6 | AW6: 3 | AX6: 2 | AY6: 2 | AZ6: 0 | BA6: 3 | BB6: 3 | BC6: 160.25 | BD6: 269.25 | BE6: 323.3333333 | BF6: 1609.537263 | BG6: 35 | BH6: P.Mahomes | BI6: 3 | BJ6: 1 | BK6: 1 | BL6: 2 | BM6: 2 | BN6: 1 | BO6: 0 | BP6: 3 | BQ6: 2 | BR6: 0 | BS6: 2 | BT6: 10 | BU6: 6 | BV6: 74.80314961 | BW6: 77.77777778 | BX6: 3.141176471 | BY6: 2.277777778 | BZ6: 218 | CA6: 1.73015873 | CB6: 30.50847458 | CC6: 14.28571429 | CD6: 1.818959983 | CE6: 7.690776803 | CF6: 11.6194633 | CG6: 285.2301587 | CH6: 5.713674299 | CI6: 2.119047619 | CJ6: 0.6746031746 | CK6: 0.8456375839 | CL6: 15.87301587 | CM6: 19.04761905 | CN6: 1.809437192 | CO6: 1.172694201 | CP6: 1.14273486 | CQ6: 1.920260004 | CR6: Patrick Mahomes | CS6: 4 | CT6: 4 | CU6: 10 | CV6: 0 | CW6: 4 | CX6: 2 | CY6: 10 | CZ6: 6 | DA6: 0 | DB6: 10 | DC6: 6 | DD6: 10 | DE6: 8 | DF6: 2 | DG6: 8 | DH6: 8 | DJ6: 2 | DK6: 3993.222222 | DL6: 29.66666667
A7: Peyton Manning | B7: Tenn | C7: 1-1 | D7: 18 | E7: 98 | F7: 15 | G7: 266 | H7: 265 | I7: 33 | J7: 1 | K7: Colts(14),Broncos(4) | L7: X | N7: X | O7: X | P7: X | Q7: 4 | R7: 9380 | S7: 6125 | T7: 71940 | U7: 65.29850746 | V7: 539 | W7: 251 | X7: 96.45966596 | Y7: 431 | Z7: 667 | AA7: 18 | AB7: 1.547563805 | AC7: 0.04176334107 | AD7: 0.06766917293 | AE7: 303 | AG7: 75 | AH7: 28 | AI7: 43 | AJ7: 54 | AK7: 186 | AL7: 79 | AM7: 15 | AN7: 0 | AO7: 12 | AP7: 4 | AQ7: 14 | AR7: 13 | AS7: 51.85185185 | AT7: 1 | AU7: 1 | AV7: 14 | AW7: 7 | AX7: 5 | AY7: 7 | AZ7: 1 | BA7: 2 | BB7: 1 | BC7: 156.8518519 | BD7: 262.8518519 | BE7: 315.8888889 | BF7: 1136.639523 | BG7: 66 | BH7: P.Manning | BI7: 3 | BJ7: 3 | BK7: 3 | BL7: 2 | BM7: 3 | BN7: 2 | BO7: 0 | BP7: 3 | BQ7: 2 | BR7: 0 | BS7: 3 | BT7: 9 | BU7: 6 | BV7: 70.18867925 | BW7: 88.23529412 | BX7: 2.147410359 | BY7: 2.678571429 | BZ7: 303 | CA7: 1.139097744 | CB7: 27.18446602 | CC7: 10.52631579 | CD7: 2.675906183 | CE7: 7.669509595 | CF7: 11.74530612 | CG7: 270.4511278 | CH7: 5.746268657 | CI7: 2.026315789 | CJ7: 0.9436090226 | CK7: 0.889632107 | CL7: 16.16541353 | CM7: 20.30075188 | CN7: 1.764925373 | CO7: 1.167377399 | CP7: 1.149253731 | CQ7: 1.706023454 | CR7: Peyton Manning | CS7: 4 | CT7: 6 | CU7: 6 | CV7: 0 | CW7: 8 | CX7: 6 | CY7: 8 | CZ7: 6 | DA7: 0 | DB7: 10 | DC7: 6 | DD7: 10 | DE7: 2 | DF7: 4 | DG7: 8 | DH7: 10 | DJ7: 2 | DK7: 3996.666667 | DL7: 29.94444444
A8: Johnny Unitas | B8: Louisville | C8: 9-5 | D8: 18 | E8: 56 | F8: 73 | G8: 211 | H8: 186 | I8: 31 | K8: Colts(17),Chargers(1) | N8: X | O8: X | P8: X | Q8: 3 | R8: 5186 | S8: 2830 | T8: 40239 | U8: 54.56999614 | V8: 290 | W8: 253 | X8: 78.20092557 | Y8: 450 | Z8: 1777 | AA8: 13 | AB8: 3.948888889 | AC8: 0.02888888889 | AD8: 0.06161137441 | AE8: 74 | AF8: 13 | AG8: 95 | AH8: 31 | AI8: 36 | AJ8: 38 | AK8: 118 | AL8: 64 | AM8: 12 | AN8: 0 | AO8: 5 | AP8: 5 | AQ8: 6 | AR8: 2 | AS8: 75 | AT8: 2 | AU8: 2 | AV8: 10 | AW8: 5 | AX8: 4 | AY8: 5 | AZ8: 1 | BA8: 3 | BB8: 2 | BC8: 156 | BD8: 236 | BE8: 230.5555556 | BF8: 1291.92945 | BG8: 21 | BH8: J.Unitas | BI8: 1 | BJ8: 2 | BK8: 2 | BL8: 1 | BM8: 3 | BN8: 0 | BO8: 1 | BP8: 1 | BQ8: 2 | BR8: 6 | BS8: 3 | BT8: 15 | BU8: 5 | BV8: 64.83516484 | BW8: 66.66666667 | BX8: 1.146245059 | BY8: 3.064516129 | BZ8: 266.4 | CA8: 1.262559242 | CB8: 24.6031746 | CC8: 14.69194313 | CD8: 4.87851909 | CE8: 7.759159275 | CF8: 14.21872792 | CG8: 190.7061611 | CH8: 5.591978403 | CI8: 1.374407583 | CJ8: 1.199052133 | CK8: 0.8719008264 | CL8: 17.06161137 | CM8: 18.00947867 | CN8: 1.228499807 | CO8: 1.189789819 | CP8: 1.118395681 | CQ8: 1.155370228 | CR8: Johnny Unitas | CS8: 0 | CT8: 2 | CU8: 0 | CV8: 0 | CW8: 8 | CX8: 6 | CY8: 3 | CZ8: 6 | DA8: 6 | DB8: 2 | DC8: 6 | DD8: 6 | DE8: 0 | DF8: 4 | DG8: 8 | DH8: 8 | DJ8: 2 | DK8: 2235.5 | DL8: 16.11111111
A9: Bart Starr | B9: Alabama | C9: 17-7 | D9: 16 | E9: 56 | F9: 71 | G9: 196 | H9: 158 | I9: 18 | K9: Packers | M9: X | N9: X | P9: X | Q9: 4 | R9: 3149 | S9: 1808 | T9: 24718 | U9: 57.4150524 | V9: 152 | W9: 138 | X9: 80.46535937 | Y9: 247 | Z9: 1308 | AA9: 15 | AB9: 5.295546559 | AC9: 0.06072874494 | AD9: 0.07653061224 | AE9: 59 | AF9: 13 | AG9: 64 | AH9: 18 | AI9: 20 | AJ9: 18 | AK9: 94 | AL9: 57 | AM9: 8 | AN9: 0 | AO9: 6 | AP9: 6 | AQ9: 9 | AR9: 1 | AS9: 90 | AT9: 1 | AU9: 1 | AV9: 4 | AW9: 1 | AX9: 1 | AY9: 1 | AZ9: 1 | BA9: 5 | BB9: 3 | BC9: 155 | BD9: 222 | BE9: 261 | BF9: 1381.007795 | BG9: 25 | BH9: B.Starr | BI9: 2 | BJ9: 1 | BK9: 1 | BL9: 1 | BM9: 3 | BN9: 0 | BO9: 1 | BP9: 0 | BQ9: 3 | BR9: 6 | BS9: 2 | BT9: 11 | BU9: 5 | BV9: 62.25165563 | BW9: 50 | BX9: 1.101449275 | BY9: 3.555555556 | BZ9: 314.6666667 | CA9: 1.605442177 | CB9: 21.95121951 | CC9: 9.183673469 | CD9: 4.382343601 | CE9: 7.849476024 | CF9: 13.67146018 | CG9: 126.1122449 | CH9: 4.826929184 | CI9: 0.7755102041 | CJ9: 0.7040816327 | CK9: 0.9158878505 | CL9: 10.20408163 | CM9: 9.183673469 | CN9: 1.37075262 | CO9: 1.212369006 | CP9: 0.9653858368 | CQ9: 1.2794141 | CR9: Bart Starr | CS9: 0 | CT9: 0 | CU9: 0 | CV9: 0 | CW9: 4 | CX9: 4 | CY9: 5 | CZ9: 6 | DA9: 4 | DB9: 0 | DC9: 2 | DD9: 0 | DE9: 8 | DF9: 6 | DG9: 4 | DH9: 0 | DJ9: 1 | DK9: 1544.875 | DL9: 9.5
A10: John Elway | B10: Stanford | C10: 1-1 | D10: 16 | E10: 83 | F10: 98 | G10: 234 | H10: 231 | I10: 22 | K10: Broncos | L10: X | M10: X | O10: X | P10: X | Q10: 4 | R10: 7250 | S10: 4123 | T10: 51475 | U10: 56.86896552 | V10: 300 | W10: 226 | X10: 79.86206897 | Y10: 774 | Z10: 3407 | AA10: 33 | AB10: 4.401808786 | AC10: 0.04263565891 | AD10: 0.141025641 | AE10: 516 | AG10: 137 | AH10: 68 | AI10: 35 | AJ10: 40 | AK10: 148 | AL10: 82 | AM10: 12 | AN10: 0 | AO10: 7 | AP10: 5 | AQ10: 14 | AR10: 7 | AS10: 66.66666667 | AT10: 4 | AU10: 6 | AV10: 9 | AW10: 0 | AX10: 1 | AY10: 0 | AZ10: 1 | BA10: 2 | BB10: 1 | BC10: 145.6666667 | BD10: 205.6666667 | BE10: 210 | BF10: 1250.266503 | BG10: 11 | BH10: J.Elway | BI10: 1 | BJ10: 2 | BK10: 3 | BL10: 1 | BM10: 2 | BN10: 1 | BO10: 0 | BP10: 1 | BQ10: 3 | BR10: 3 | BS10: 1 | BT10: 15 | BU10: 5 | BV10: 64.34782609 | BW10: 75 | BX10: 1.327433628 | BY10: 2.014705882 | BZ10: 516 | CA10: 2.205128205 | CB10: 33.17073171 | CC10: 29.05982906 | CD10: 3.117241379 | CE10: 7.1 | CF10: 12.48484114 | CG10: 219.9786325 | CH10: 4.137931034 | CI10: 1.282051282 | CJ10: 0.9658119658 | CK10: 0.9140625 | CL10: 14.95726496 | CM10: 17.09401709 | CN10: 1.343448276 | CO10: 1.025 | CP10: 0.8275862069 | CQ10: 1.595689655 | CR10: John Elway | CS10: 0 | CT10: 4 | CU10: 2 | CV10: 0 | CW10: 0 | CX10: 0 | CY10: 6 | CZ10: 4 | DA10: 2 | DB10: 4 | DC10: 0 | DD10: 4 | DE10: 2 | DF10: 6 | DG10: 6 | DH10: 8 | DJ10: 3 | DK10: 3217.1875 | DL10: 18.75
A11: Sid Luckman | B11: Columbia | C11: 2-2 | D11: 12 | E11: 39 | F11: 50 | G11: 128 | H11: 62 | I11: 8 | K11: Bears | N11: X | Q11: 2 | R11: 1744 | S11: 904 | T11: 14686 | U11: 51.83486239 | V11: 137 | W11: 132 | X11: 75.01433486 | Y11: 204 | Z11: -239 | AA11: 4 | AB11: -1.171568627 | AC11: 0.01960784314 | AD11: 0.03125 | AE11: 0 | AF11: 12 | AG11: 15 | AH11: 8 | AI11: 8 | AJ11: 10 | AK11: 92 | AL11: 31 | AM11: 11 | AN11: 0 | AO11: 5 | AP11: 5 | AQ11: 3 | AR11: 1 | AS11: 75 | AT11: 0 | AU11: 1 | AV11: 6 | AW11: 5 | AX11: 1 | AY11: 2 | AZ11: 1 | BA11: 4 | BB11: 2 | BC11: 144 | BD11: 220 | BE11: 267.3333333 | BF11: 899.3069388 | BG11: 34 | BH11: S.Luckman | BI11: 1 | BJ11: 0 | BK11: 0 | BL11: 2 | BM11: 2 | BN11: 3 | BO11: 2 | BP11: 1 | BQ11: 3 | BR11: 9 | BS11: 2 | BU11: 0 | BV11: 74.79674797 | BW11: 91.66666667 | BX11: 1.037878788 | BY11: 1.875 | BZ11: 204.8 | CA11: 1.6 | CB11: 34.7826087 | CC11: 6.25 | CD11: 7.568807339 | CE11: 8.42087156 | CF11: 16.24557522 | CG11: 114.734375 | CH11: 7.855504587 | CI11: 1.0703125 | CJ11: 1.03125 | CK11: 0.9411764706 | CL11: 6.25 | CM11: 7.8125 | CN11: 1.091743119 | CO11: 1.35521789 | CP11: 1.571100917 | CQ11: 0.4827981651 | CR11: Sid Luckman | CS11: 4 | CT11: 8 | CU11: 0 | CV11: 2 | CW11: 4 | CX11: 4 | CY11: 0 | CZ11: 8 | DA11: 10 | DB11: 0 | DC11: 10 | DD11: 2 | DE11: 0 | DF11: 6 | DG11: 0 | DH11: 0 | DJ11: 1 | DK11: 1223.833333 | DL11: 11.41666667
A12: Terry Bradshaw | B12: LA Tech | C12: 19-7 | D12: 14 | E12: 70 | F12: 83 | G12: 168 | H12: 158 | I12: 33 | K12: Steelers | L12: X | M12: X | N12: X | O12: X | Q12: 4 | R12: 3901 | S12: 2025 | T12: 27989 | U12: 51.90976673 | V12: 212 | W12: 210 | X12: 70.92145176 | Y12: 444 | Z12: 2257 | AA12: 32 | AB12: 5.083333333 | AC12: 0.07207207207 | AD12: 0.1904761905 | AE12: 307 | AG12: 84 | AH12: 59 | AI12: 19 | AJ12: 27 | AK12: 107 | AL12: 51 | AM12: 9 | AN12: 0 | AO12: 9 | AP12: 4 | AQ12: 14 | AR12: 5 | AS12: 73.68421053 | AT12: 4 | AU12: 4 | AV12: 3 | AW12: 1 | AX12: 1 | AY12: 1 | AZ12: 1 | BA12: 4 | BB12: 2 | BC12: 142.6842105 | BD12: 204.6842105 | BE12: 250.8571429 | BF12: 1332.680244 | BG12: 5 | BH12: T.Bradshaw | BI12: 1 | BJ12: 1 | BK12: 2 | BL12: 1 | BM12: 1 | BN12: 0 | BO12: 0 | BP12: 1 | BQ12: 2 | BR12: 3 | BS12: 2 | BT12: 4 | BU12: 8 | BV12: 67.72151899 | BW12: 64.28571429 | BX12: 1.00952381 | BY12: 1.423728814 | BZ12: 307 | CA12: 1.827380952 | CB12: 41.25874126 | CC12: 35.11904762 | CD12: 5.383235068 | CE12: 7.174826967 | CF12: 13.8217284 | CG12: 166.6011905 | CH12: 5.434503973 | CI12: 1.261904762 | CJ12: 1.25 | CK12: 0.8358208955 | CL12: 11.30952381 | CM12: 16.07142857 | CN12: 1.095488336 | CO12: 1.043706742 | CP12: 1.086900795 | CQ12: 1.029191233 | CR12: Terry Bradshaw | CS12: 2 | CT12: 0 | CU12: 0 | CV12: 8 | CW12: 2 | CX12: 2 | CY12: 0 | CZ12: 4 | DA12: 4 | DB12: 0 | DC12: 4 | DD12: 4 | DE12: 0 | DF12: 2 | DG12: 4 | DH12: 6 | DJ12: 0 | DK12: 1999.214286 | DL12: 15.14285714
A13: Ben Roethlisherger | B13: Miami(OH) | C13: 1-11 | D13: 18 | E13: 4 | F13: 21 | G13: 249 | H13: 247 | I13: 40 | K13: Steelers | L13: X | N13: x | O13: X | Q13: 3 | R13: 8443 | S13: 5440 | T13: 64088 | U13: 64.43207391 | V13: 418 | W13: 211 | X13: 93.49436417 | Y13: 515 | Z13: 1373 | AA13: 20 | AB13: 2.666019417 | AC13: 0.03883495146 | AD13: 0.08032128514 | AE13: 554 | AG13: 116 | AH13: 53 | AI13: 41 | AJ13: 53 | AK13: 165 | AL13: 81 | AM13: 15 | AN13: 0 | AO13: 8 | AP13: 3 | AQ13: 13 | AR13: 8 | AS13: 61.9047619 | AT13: 3 | AU13: 4 | AV13: 5 | AW13: 0 | AX13: 0 | AY13: 0 | AZ13: 0 | BA13: 2 | BB13: 0 | BC13: 132.9047619 | BD13: 214.9047619 | BE13: 223.1111111 | BF13: 1052.082459 | BG13: 15 | BH13: B.Roethlisherger | BI13: 3 | BJ13: 3 | BK13: 3 | BL13: 1 | BM13: 2 | BN13: 2 | BO13: 0 | BP13: 2 | BQ13: 2 | BR13: 0 | BS13: 1 | BT13: 2 | BU13: 9 | BV13: 67.07317073 | BW13: 83.33333333 | BX13: 1.981042654 | BY13: 2.188679245 | BZ13: 554 | CA13: 2.224899598 | CB13: 31.36094675 | CC13: 21.28514056 | CD13: 2.49911169 | CE13: 7.590666825 | CF13: 11.78088235 | CG13: 257.3815261 | CH13: 4.950846855 | CI13: 1.678714859 | CJ13: 0.8473895582 | CK13: 0.8615916955 | CL13: 16.46586345 | CM13: 21.28514056 | CN13: 1.721603695 | CO13: 1.147666706 | CP13: 0.9901693711 | CQ13: 1.750222077 | CR13: Ben Roethlisherger | CS13: 2 | CT13: 6 | CU13: 4 | CV13: 0 | CW13: 0 | CX13: 0 | CY13: 9 | CZ13: 6 | DA13: 0 | DB13: 8 | DC13: 2 | DD13: 8 | DE13: 4 | DF13: 4 | DG13: 8 | DH13: 10 | DJ13: 1 | DK13: 3560.444444 | DL13: 23.22222222
A14: Brett Favre | B14: So.Miss | C14: 2-6 | D14: 20 | E14: 91 | F14: 10 | G14: 302 | H14: 298 | I14: 18 | K14: Falcon(1),Packers(16) Jets(1),Vikings(1) | L14: X | N14: X | O14: X | Q14: 3 | R14: 10169 | S14: 6300 | T14: 71838 | U14: 61.95299439 | V14: 508 | W14: 336 | X14: 86.03046022 | Y14: 602 | Z14: 1844 | AA14: 14 | AB14: 3.063122924 | AC14: 0.02325581395 | AD14: 0.04635761589 | AE14: 525 | AG14: 166 | AH14: 73 | AI14: 30 | AJ14: 43 | AK14: 187 | AL14: 114 | AM14: 15 | AN14: 0 | AO14: 8 | AP14: 2 | AQ14: 13 | AR14: 11 | AS14: 54.16666667 | AT14: 2 | AU14: 2 | AV14: 9 | AW14: 3 | AX14: 3 | AY14: 3 | AZ14: 1 | BA14: 1 | BB14: 0 | BC14: 132.1666667 | BD14: 189.1666667 | BE14: 189 | BF14: 1094.778419 | BG14: 30 | BH14: B.Favre | BI14: 2 | BJ14: 2 | BK14: 3 | BL14: 1 | BM14: 2 | BN14: 1 | BO14: 0 | BP14: 2 | BQ14: 3 | BR14: 0 | BS14: 2 | BT14: 6 | BU14: 7 | BV14: 62.12624585 | BW14: 75 | BX14: 1.511904762 | BY14: 2.273972603 | BZ14: 525 | CA14: 1.738410596 | CB14: 30.54393305 | CC14: 24.17218543 | CD14: 3.304159701 | CE14: 7.064411447 | CF14: 11.40285714 | CG14: 237.8741722 | CH14: 4.995574786 | CI14: 1.682119205 | CJ14: 1.112582781 | CK14: 0.94375 | CL14: 9.933774834 | CM14: 14.2384106 | CN14: 1.59764972 | CO14: 1.016102862 | CP14: 0.9991149572 | CQ14: 1.548960075 | CR14: Brett Favre | CS14: 0 | CT14: 4 | CU14: 2 | CV14: 0 | CW14: 4 | CX14: 2 | CY14: 6 | CZ14: 4 | DA14: 0 | DB14: 6 | DC14: 2 | DD14: 8 | DE14: 0 | DF14: 6 | DG14: 2 | DH14: 4 | DJ14: 1 | DK14: 3591.9 | DL14: 25.4
A15: Roger Staubach | B15: Navy | C15: 10-3 | D15: 11 | E15: 69 | F15: 79 | G15: 131 | H15: 114 | I15: 27 | K15: Cowboys | M15: X | N15: X | O15: X | Q15: 3 | R15: 2958 | S15: 1685 | T15: 22700 | U15: 56.96416498 | V15: 153 | W15: 109 | X15: 83.41644129 | Y15: 410 | Z15: 2264 | AA15: 20 | AB15: 5.52195122 | AC15: 0.0487804878 | AD15: 0.1526717557 | AE15: 313 | AG15: 55 | AH15: 36 | AI15: 15 | AJ15: 23 | AK15: 85 | AL15: 29 | AM15: 10 | AN15: 0 | AO15: 7 | AP15: 4 | AQ15: 11 | AR15: 6 | AS15: 64.70588235 | AT15: 2 | AU15: 2 | AV15: 6 | AW15: 0 | AX15: 0 | AY15: 0 | AZ15: 1 | BA15: 2 | BB15: 1 | BC15: 130.7058824 | BD15: 200.7058824 | BE15: 239 | BF15: 1413.556886 | BG15: 0 | BH15: R.Staubach | BI15: 2 | BJ15: 1 | BK15: 1 | BL15: 2 | BM15: 2 | BN15: 3 | BO15: 0 | BP15: 1 | BQ15: 2 | BR15: 6 | BS15: 1 | BT15: 3 | BU15: 8 | BV15: 74.56140351 | BW15: 90.90909091 | BX15: 1.403669725 | BY15: 1.527777778 | BZ15: 313 | CA15: 2.389312977 | CB15: 39.56043956 | CC15: 27.48091603 | CD15: 3.684922245 | CE15: 7.674104124 | CF15: 13.47181009 | CG15: 173.2824427 | CH15: 5.172413793 | CI15: 1.167938931 | CJ15: 0.8320610687 | CK15: 0.8291139241 | CL15: 11.45038168 | CM15: 17.55725191 | CN15: 1.348208249 | CO15: 1.168526031 | CP15: 1.034482759 | CQ15: 1.453769439 | CR15: Roger Staubach | CS15: 4 | CT15: 8 | CU15: 2 | CV15: 4 | CW15: 0 | CX15: 0 | CY15: 5 | CZ15: 6 | DA15: 4 | DB15: 0 | DC15: 4 | DD15: 4 | DE15: 4 | DF15: 2 | DG15: 4 | DH15: 8 | DJ15: 2 | DK15: 2063.636364 | DL15: 13.90909091
A16: Bobby Layne | B16: Texas | C16: 1-3 | D16: 15 | E16: 48 | F16: 62 | G16: 175 | H16: 148 | I16: 5 | K16: Bears(1).NYBulldogs(1) Lions(8),Steelers(5) | L16: X | M16: X | N16: X | Q16: 4 | R16: 3700 | S16: 1814 | T16: 26768 | U16: 49.02702703 | V16: 196 | W16: 243 | X16: 63.37612613 | Y16: 611 | Z16: 2451 | AA16: 25 | AB16: 4.011456628 | AC16: 0.04091653028 | AD16: 0.1428571429 | AE16: 0 | AF16: 15 | AG16: 80 | AH16: 53 | AI16: 19 | AJ16: 20 | AK16: 81 | AL16: 52 | AM16: 9 | AN16: 0 | AO16: 4 | AP16: 4 | AQ16: 3 | AR16: 1 | AS16: 75 | AT16: 1 | AU16: 1 | AV16: 6 | AW16: 2 | AX16: 0 | AY16: 0 | AZ16: 1 | BA16: 3 | BB16: 1 | BC16: 128 | BD16: 188 | BE16: 175.3333333 | BF16: 1151.561329 | BG16: 9 | BH16: B.Layne | BI16: 0 | BJ16: 1 | BK16: 1 | BL16: 1 | BM16: 2 | BN16: 0 | BO16: 0 | BP16: 1 | BQ16: 3 | BR16: 9 | BS16: 2 | BT16: 10 | BU16: 6 | BV16: 60.90225564 | BW16: 60 | BX16: 0.8065843621 | BY16: 1.509433962 | BZ16: 280 | CA16: 1.6 | CB16: 39.84962406 | CC16: 30.28571429 | CD16: 6.567567568 | CE16: 7.234594595 | CF16: 14.75633958 | CG16: 152.96 | CH16: 5.297297297 | CI16: 1.12 | CJ16: 1.388571429 | CK16: 0.9722222222 | CL16: 10.85714286 | CM16: 11.42857143 | CN16: 0.9513513514 | CO16: 1.058648649 | CP16: 1.059459459 | CQ16: 0.7331081081 | CR16: Bobby Layne | CS16: 0 | CT16: 0 | CU16: 0 | CV16: 4 | CW16: 4 | CX16: 4 | CY16: 0 | CZ16: 4 | DA16: 6 | DB16: 0 | DC16: 4 | DD16: 4 | DE16: 0 | DF16: 8 | DG16: 4 | DH16: 2 | DJ16: 1 | DK16: 1784.533333 | DL16: 13.06666667
A17: Aaron Rodgers | B17: California | C17: 1-24 | D17: 21 | E17: 5 | F17: 25 | G17: 264 | H17: 251 | I17: 65 | J17: 1 | K17: Packers(18),Jets(2) | L17: X | M17: X | N17: X | P17: X | Q17: 5 | R17: 8743 | S17: 5696 | T17: 66274 | U17: 65.14926227 | V17: 527 | W17: 123 | X17: 102.1891323 | Y17: 762 | Z17: 3634 | AA17: 36 | AB17: 4.769028871 | AC17: 0.04724409449 | AD17: 0.1363636364 | AE17: 600 | AG17: 101 | AH17: 68 | AI17: 25 | AJ17: 37 | AK17: 162 | AL17: 93 | AM17: 11 | AN17: 0 | AO17: 9 | AP17: 1 | AQ17: 12 | AR17: 10 | AS17: 54.54545455 | AT17: 1 | AU17: 2 | AV17: 10 | AW17: 3 | AX17: 4 | AY17: 4 | AZ17: 0 | BA17: 1 | BB17: 1 | BC17: 126.5454545 | BD17: 207.5454545 | BE17: 180.6190476 | BF17: 1258.407164 | BG17: 23 | BH17: A.Rodgers | BI17: 3 | BJ17: 2 | BK17: 2 | BL17: 1 | BM17: 1 | BN17: 0 | BO17: 0 | BP17: 2 | BQ17: 2 | BR17: 0 | BS17: 1 | BT17: 6 | BU17: 7 | BV17: 63.52941176 | BW17: 55 | BX17: 4.284552846 | BY17: 1.485294118 | BZ17: 600 | CA17: 2.272727273 | CB17: 40.23668639 | CC17: 25.75757576 | CD17: 1.406839758 | CE17: 7.580235617 | CF17: 11.63518258 | CG17: 251.0378788 | CH17: 6.027679286 | CI17: 1.996212121 | CJ17: 0.4659090909 | CK17: 0.8024316109 | CL17: 9.46969697 | CM17: 14.01515152 | CN17: 1.757463113 | CO17: 1.145058904 | CP17: 1.205535857 | CQ17: 2.023290061 | CR17: Aaron Rodgers | CS17: 0 | CT17: 0 | CU17: 10 | CV17: 4 | CW17: 0 | CX17: 0 | CY17: 10 | CZ17: 6 | DA17: 0 | DB17: 8 | DC17: 8 | DD17: 8 | DE17: 10 | DF17: 2 | DG17: 2 | DH17: 4 | DJ17: 0 | DK17: 3155.904762 | DL17: 25.0952381
A18: Troy Aikman | B18: UCLA | C18: 1-1 | D18: 12 | E18: 89 | F18: 0 | G18: 165 | H18: 165 | I18: 27 | K18: Cowboys | N18: X | P18: X | Q18: 3 | R18: 4715 | S18: 2898 | T18: 32942 | U18: 61.46341463 | V18: 165 | W18: 141 | X18: 81.61850477 | Y18: 327 | Z18: 1016 | AA18: 9 | AB18: 3.107033639 | AC18: 0.02752293578 | AD18: 0.05454545455 | AE18: 259 | AG18: 58 | AH18: 42 | AI18: 16 | AJ18: 22 | AK18: 94 | AL18: 71 | AM18: 6 | AN18: 0 | AO18: 5 | AP18: 3 | AQ18: 11 | AR18: 4 | AS18: 73.33333333 | AT18: 1 | AU18: 1 | AV18: 6 | AW18: 0 | AX18: 0 | AY18: 0 | AZ18: 1 | BA18: 3 | BB18: 3 | BC18: 124.3333333 | BD18: 183.3333333 | BE18: 188.6666667 | BF18: 1078.301564 | BG18: 4 | BH18: T.Aikman | BI18: 2 | BJ18: 1 | BK18: 1 | BL18: 0 | BM18: 1 | BN18: 0 | BO18: 0 | BP18: 1 | BQ18: 2 | BR18: 3 | BS18: 2 | BT18: 5 | BU18: 7 | BV18: 56.96969697 | BW18: 50 | BX18: 1.170212766 | BY18: 1.380952381 | BZ18: 259 | CA18: 1.56969697 | CB18: 42 | CC18: 25.45454545 | CD18: 2.990455992 | CE18: 6.986638388 | CF18: 11.36714976 | CG18: 199.6484848 | CH18: 3.499469777 | CI18: 1 | CJ18: 0.8545454545 | CK18: 0.859375 | CL18: 9.696969697 | CM18: 13.33333333 | CN18: 1.573170732 | CO18: 0.996659597 | CP18: 0.6998939555 | CQ18: 1.627386002 | CR18: Troy Aikman | CS18: 0 | CT18: 0 | CU18: 0 | CV18: 8 | CW18: 6 | CX18: 4 | CY18: 8 | CZ18: 2 | DA18: 0 | DB18: 2 | DC18: 0 | DD18: 0 | DE18: 4 | DF18: 4 | DG18: 2 | DH18: 4 | DJ18: 0 | DK18: 2745.166667 | DL18: 13.75
A19: Daryle Lamonica | B19: N.Dame | C19: 12-14:NFL 24-4:AFL | D19: 12 | E19: 63 | F19: 74 | G19: 151 | H19: 88 | I19: 17 | K19: Bills(4), Raiders(8) | N19: X | Q19: 2 | R19: 2601 | S19: 1288 | T19: 19154 | U19: 49.51941561 | V19: 164 | W19: 138 | X19: 72.94389978 | Y19: 166 | Z19: 640 | AA19: 14 | AB19: 3.855421687 | AC19: 0.0843373494 | AD19: 0.09271523179 | AE19: 136 | AF19: 4 | AG19: 32 | AH19: 20 | AI19: 18 | AJ19: 17 | AK19: 66 | AL19: 16 | AM19: 9 | AN19: 0 | AO19: 8 | AP19: 1 | AQ19: 3 | AR19: 1 | AS19: 75 | AT19: 0 | AU19: 0 | AV19: 5 | AW19: 2 | AX19: 1 | AY19: 0 | AZ19: 0 | BA19: 0 | BB19: 0 | BC19: 122 | BD19: 184 | BE19: 155 | BF19: 1194.102286 | BG19: 7 | BH19: D.Lamonica | BI19: 1 | BJ19: 1 | BK19: 1 | BL19: 3 | BM19: 2 | BN19: 1 | BO19: 0 | BP19: 1 | BQ19: 2 | BR19: 6 | BS19: 3 | BU19: 0 | BV19: 80.48780488 | BW19: 75 | BX19: 1.188405797 | BY19: 1.6 | BZ19: 204 | CA19: 1.350993377 | CB19: 38.46153846 | CC19: 13.24503311 | CD19: 5.305651672 | CE19: 7.364090734 | CF19: 14.87111801 | CG19: 126.8476821 | CH19: 6.305267205 | CI19: 1.086092715 | CJ19: 0.9139072848 | CK19: 0.8988095238 | CL19: 11.9205298 | CM19: 11.25827815 | CN19: 0.9759707805 | CO19: 1.091022684 | CP19: 1.261053441 | CQ19: 1.048587082 | CR19: Daryle Lamonica | CS19: 8 | CT19: 4 | CU19: 0 | CV19: 2 | CW19: 8 | CX19: 6 | CY19: 0 | CZ19: 4 | DA19: 6 | DB19: 0 | DC19: 8 | DD19: 2 | DE19: 2 | DF19: 4 | DG19: 4 | DH19: 2 | DJ19: 1 | DK19: 1596.166667 | DL19: 13.66666667
A20: Drew Brees | B20: Purdue | C20: 2-1 | D20: 20 | E20: 1 | F20: 20 | G20: 287 | H20: 286 | I20: 32 | K20: Chargers(5),Saints(7) | L20: X | N20: X | O20: X | P20: X | Q20: 4 | R20: 10551 | S20: 7142 | T20: 80358 | U20: 67.69026633 | V20: 571 | W20: 243 | X20: 98.66896503 | Y20: 498 | Z20: 752 | AA20: 25 | AB20: 1.510040161 | AC20: 0.05020080321 | AD20: 0.08710801394 | AE20: 420 | AG20: 111 | AH20: 42 | AI20: 36 | AJ20: 53 | AK20: 172 | AL20: 114 | AM20: 11 | AN20: 0 | AO20: 9 | AP20: 1 | AQ20: 7 | AR20: 6 | AS20: 53.84615385 | AT20: 2 | AU20: 3 | AV20: 13 | AW20: 2 | AX20: 0 | AY20: 1 | AZ20: 0 | BA20: 1 | BB20: 1 | BC20: 120.8461538 | BD20: 205.8461538 | BE20: 178 | BF20: 943.0841623 | BG20: 46 | BH20: D.Brees | BI20: 3 | BJ20: 2 | BK20: 3 | BL20: 1 | BM20: 3 | BN20: 0 | BO20: 0 | BP20: 2 | BQ20: 2 | BR20: 0 | BS20: 3 | BT20: 9 | BU20: 6 | BV20: 60.13986014 | BW20: 55 | BX20: 2.349794239 | BY20: 2.642857143 | BZ20: 420 | CA20: 1.463414634 | CB20: 27.45098039 | CC20: 14.63414634 | CD20: 2.303099232 | CE20: 7.616150128 | CF20: 11.25147018 | CG20: 279.9930314 | CH20: 5.411809307 | CI20: 1.989547038 | CJ20: 0.8466898955 | CK20: 0.8996865204 | CL20: 12.54355401 | CM20: 18.46689895 | CN20: 1.884513316 | CO20: 1.154037532 | CP20: 1.082361861 | CQ20: 1.799225192 | CR20: Drew Brees | CS20: 0 | CT20: 0 | CU20: 6 | CV20: 0 | CW20: 6 | CX20: 4 | CY20: 9 | CZ20: 6 | DA20: 0 | DB20: 10 | DC20: 4 | DD20: 8 | DE20: 4 | DF20: 6 | DG20: 6 | DH20: 8 | DJ20: 0 | DK20: 4017.9 | DL20: 28.55
A21: Eli Manning | B21: Mississippi | C21: 1-1 | D21: 16 | E21: 4 | F21: 19 | G21: 236 | H21: 234 | I21: 20 | K21: Giants | L21: X | O21: X | Q21: 2 | R21: 8119 | S21: 4895 | T21: 57023 | U21: 60.29067619 | V21: 366 | W21: 244 | X21: 84.09415158 | Y21: 315 | Z21: 567 | AA21: 7 | AB21: 1.8 | AC21: 0.02222222222 | AD21: 0.02966101695 | AE21: 410 | AG21: 122 | AH21: 58 | AI21: 28 | AJ21: 37 | AK21: 117 | AL21: 117 | AM21: 7 | AN21: 0 | AO21: 3 | AP21: 2 | AQ21: 8 | AR21: 3 | AS21: 72.72727273 | AT21: 4 | AU21: 5 | AV21: 2 | AW21: 0 | AX21: 0 | AY21: 0 | AZ21: 0 | BA21: 2 | BB21: 2 | BC21: 120.7272727 | BD21: 178.7272727 | BE21: 154.25 | BF21: 864.0373749 | BG21: 4 | BH21: E.Manning | BI21: 2 | BJ21: 2 | BK21: 2 | BL21: 0 | BM21: 2 | BN21: 0 | BO21: 0 | BP21: 2 | BQ21: 3 | BR21: 0 | BS21: 2 | BT21: 4 | BU21: 8 | BV21: 50 | BW21: 43.75 | BX21: 1.5 | BY21: 2.103448276 | BZ21: 410 | CA21: 1.737288136 | CB21: 32.22222222 | CC21: 24.57627119 | CD21: 3.005296219 | CE21: 7.023401897 | CF21: 11.64923391 | CG21: 241.6228814 | CH21: 4.507944328 | CI21: 1.550847458 | CJ21: 1.033898305 | CK21: 0.921875 | CL21: 11.86440678 | CM21: 15.6779661 | CN21: 1.51453381 | CO21: 1.005850474 | CP21: 0.9015888656 | CQ21: 1.623675945 | CR21: Eli Manning | CS21: 0 | CT21: 0 | CU21: 2 | CV21: 0 | CW21: 4 | CX21: 2 | CY21: 6 | CZ21: 4 | DA21: 0 | DB21: 6 | DC21: 2 | DD21: 6 | DE21: 0 | DF21: 6 | DG21: 4 | DH21: 6 | DJ21: 0 | DK21: 3563.9375 | DL21: 22.875
A22: Earl Morrall | B22: Mich.St. | C22: 1-2 | D22: 21 | E22: 56 | F22: 76 | G22: 255 | H22: 102 | I22: 31 | K22: 49ers(1),Steelers(2), Lions(7),Giants(3), Colts(4), Dolphins(5) | N22: X | P22: X | Q22: 3 | R22: 2689 | S22: 1379 | T22: 20809 | U22: 51.28300483 | V22: 161 | W22: 148 | X22: 74.08810586 | Y22: 235 | Z22: 878 | AA22: 8 | AB22: 3.736170213 | AC22: 0.03404255319 | AD22: 0.03137254902 | AE22: 135 | AF22: 10 | AG22: 63 | AH22: 47 | AI22: 16 | AJ22: 13 | AK22: 63 | AL22: 37 | AM22: 6 | AN22: 1 | AO22: 1 | AP22: 2 | AQ22: 4 | AR22: 1 | AS22: 80 | AT22: 2 | AU22: 2 | AV22: 2 | AW22: 2 | AX22: 1 | AY22: 2 | AZ22: 0 | BA22: 1 | BB22: 0 | BC22: 118 | BD22: 181 | BE22: 77.28571429 | BF22: 979.8283794 | BG22: 17 | BH22: E.Morrall | BI22: 1 | BJ22: 1 | BK22: 0 | BL22: 1 | BM22: 1 | BN22: 0 | BO22: 0 | BP22: 0 | BQ22: 2 | BR22: 6 | BS22: 3 | BT22: 15 | BU22: 5 | BV22: 63 | BW22: 28.57142857 | BX22: 1.087837838 | BY22: 1.340425532 | BZ22: 257.7272727 | CA22: 1.010695187 | CB22: 42.72727273 | CC22: 18.43137255 | CD22: 5.503904797 | CE22: 7.738564522 | CF22: 15.08992023 | CG22: 81.60392157 | CH22: 5.987355894 | CI22: 0.631372549 | CJ22: 0.5803921569 | CK22: 0.8916083916 | CL22: 6.274509804 | CM22: 5.098039216 | CN22: 1.064150242 | CO22: 1.184641131 | CP22: 1.197471179 | CQ22: 0.9990238007 | CR22: Earl Morrall | CS22: 0 | CT22: 0 | CU22: 0 | CV22: 8 | CW22: 8 | CX22: 6 | CY22: 0 | CZ22: 6 | DA22: 8 | DB22: 0 | DC22: 6 | DD22: 0 | DE22: 10 | DF22: 4 | DG22: 0 | DH22: 0 | DJ22: 1 | DK22: 990.9047619 | DL22: 7.666666667
A23: Kurt Warner | B23: N.Iowa | C23: 0-0 | D23: 12 | E23: 98 | F23: 9 | G23: 125 | H23: 101 | I23: 67 | K23: Rams(6),Giants(1), Cardinals(5) | M23: X | N23: X | P23: X | Q23: 4 | R23: 4070 | S23: 2666 | T23: 32344 | U23: 65.5036855 | V23: 208 | W23: 128 | X23: 93.71314496 | Y23: 1698 | Z23: 6844 | AA23: 56 | AB23: 4.030624264 | AC23: 0.03297997644 | AD23: 0.448 | AE23: 260 | AG23: 102 | AH23: 46 | AI23: 9 | AJ23: 14 | AK23: 57 | AL23: 44 | AM23: 5 | AN23: 0 | AO23: 5 | AP23: 3 | AQ23: 9 | AR23: 4 | AS23: 69.23076923 | AT23: 2 | AU23: 3 | AV23: 4 | AW23: 2 | AX23: 2 | AY23: 2 | AZ23: 0 | BA23: 1 | BB23: 1 | BC23: 117.2307692 | BD23: 163.2307692 | BE23: 155.6666667 | BF23: 1217.095606 | BG23: 6 | BH23: K.Warner | BI23: 3 | BJ23: 0 | BK23: 0 | BL23: 0 | BM23: 2 | BN23: 0 | BO23: 1 | BP23: 2 | BQ23: 1 | BR23: 0 | BS23: 1 | BT23: 2 | BU23: 9 | BV23: 56.43564356 | BW23: 41.66666667 | BX23: 1.625 | BY23: 2.217391304 | BZ23: 260 | CA23: 2.08 | CB23: 31.08108108 | CC23: 36.8 | CD23: 3.144963145 | CE23: 7.946928747 | CF23: 12.13203301 | CG23: 258.752 | CH23: 5.110565111 | CI23: 1.664 | CJ23: 1.024 | CK23: 0.6510416667 | CL23: 7.2 | CM23: 11.2 | CN23: 1.775184275 | CO23: 1.236732187 | CP23: 1.022113022 | CQ23: 1.588759214 | CR23: Kurt Warner | CS23: 0 | CT23: 0 | CU23: 2 | CV23: 0 | CW23: 0 | CX23: 0 | CY23: 6 | CZ23: 6 | DA23: 2 | DB23: 8 | DC23: 4 | DD23: 8 | DE23: 0 | DF23: 0 | DG23: 0 | DH23: 2 | DJ23: 2 | DK23: 2695.333333 | DL23: 17.33333333
A24: Sammy Baugh | B24: TCU | C24: 1-6 | D24: 16 | E24: 37 | F24: 52 | G24: 165 | H24: 83 | I24: 17 | K24: Redskins | L24: X | N24: X | Q24: 3 | R24: 2995 | S24: 1693 | T24: 21886 | U24: 56.52754591 | V24: 187 | W24: 203 | X24: 72.20854201 | Y24: 324 | Z24: 325 | AA24: 9 | AB24: 1.00308642 | AC24: 0.02777777778 | AD24: 0.05454545455 | AE24: 0 | AF24: 16 | AG24: 47 | AH24: 26 | AI24: 1 | AJ24: 2 | AK24: 86 | AL24: 50 | AM24: 12 | AN24: 0 | AO24: 5 | AP24: 5 | AQ24: 3 | AR24: 3 | AS24: 50 | AT24: 0 | AU24: 0 | AV24: 9 | AW24: 7 | AX24: 0 | AY24: 3 | AZ24: 1 | BA24: 2 | BB24: 1 | BC24: 116 | BD24: 165 | BE24: 174.5 | BF24: 936.8637497 | BG24: 16 | BH24: S.Baugh | BI24: 1 | BJ24: 0 | BK24: 0 | BL24: 1 | BM24: 2 | BN24: 1 | BO24: 0 | BP24: 1 | BQ24: 3 | BR24: 9 | BS24: 2 | BT24: 1 | BU24: 10 | BV24: 63.23529412 | BW24: 75 | BX24: 0.921182266 | BY24: 1.807692308 | BZ24: 264 | CA24: 1.6 | CB24: 35.61643836 | CC24: 15.75757576 | CD24: 6.777963272 | CE24: 7.307512521 | CF24: 12.9273479 | CG24: 132.6424242 | CH24: 6.243739566 | CI24: 1.133333333 | CJ24: 1.23030303 | CK24: 0.9065934066 | CL24: 0.6060606061 | CM24: 1.212121212 | CN24: 1.326377295 | CO24: 1.07687813 | CP24: 1.248747913 | CQ24: 0.680509182 | CR24: Sammy Baugh | CS24: 0 | CT24: 4 | CU24: 0 | CV24: 2 | CW24: 4 | CX24: 4 | CY24: 0 | CZ24: 4 | DA24: 2 | DB24: 0 | DC24: 8 | DD24: 4 | DE24: 0 | DF24: 6 | DG24: 0 | DH24: 0 | DJ24: 3 | DK24: 1367.875 | DL24: 11.6875
A25: Steve Young | B25: BYU | C25: 3-1 | D25: 15 | E25: 85 | F25: 99 | G25: 169 | H25: 143 | I25: 71 | K25: Bucs(2),49ers(13) | M25: X | P25: X | Q25: 3 | R25: 4149 | S25: 2667 | T25: 33124 | U25: 64.28054953 | V25: 232 | W25: 107 | X25: 96.80897003 | Y25: 722 | Z25: 4239 | AA25: 43 | AB25: 5.871191136 | AC25: 0.0595567867 | AD25: 0.2544378698 | AE25: 358 | AG25: 68 | AH25: 49 | AI25: 14 | AJ25: 17 | AK25: 94 | AL25: 49 | AM25: 11 | AN25: 0 | AO25: 5 | AP25: 1 | AQ25: 8 | AR25: 6 | AS25: 57.14285714 | AT25: 1 | AU25: 1 | AV25: 7 | AW25: 3 | AX25: 2 | AY25: 3 | AZ25: 1 | BA25: 1 | BB25: 1 | BC25: 115.1428571 | BD25: 184.1428571 | BE25: 141 | BF25: 1382.633292 | BG25: 5 | BH25: S.Young | BI25: 3 | BJ25: 0 | BK25: 1 | BL25: 1 | BM25: 1 | BN25: 1 | BO25: 1 | BP25: 1 | BQ25: 1 | BR25: 3 | BS25: 1 | BT25: 10 | BU25: 6 | BV25: 65.73426573 | BW25: 73.33333333 | BX25: 2.168224299 | BY25: 1.387755102 | BZ25: 358 | CA25: 2.118343195 | CB25: 41.88034188 | CC25: 28.99408284 | CD25: 2.578934683 | CE25: 7.983610509 | CF25: 12.41994751 | CG25: 196 | CH25: 5.591708846 | CI25: 1.372781065 | CJ25: 0.6331360947 | CK25: 0.7041666667 | CL25: 8.284023669 | CM25: 10.0591716 | CN25: 1.714027477 | CO25: 1.245902627 | CP25: 1.118341769 | CQ25: 1.730266329 | CR25: Steve Young | CS25: 2 | CT25: 4 | CU25: 6 | CV25: 8 | CW25: 0 | CX25: 0 | CY25: 8 | CZ25: 6 | DA25: 2 | DB25: 2 | DC25: 6 | DD25: 6 | DE25: 8 | DF25: 0 | DG25: 2 | DH25: 2 | DJ25: 0 | DK25: 2208.266667 | DL25: 15.46666667
A26: Bob Waterfield | B26: UCLA | C26: 5-9 | D26: 8 | E26: 45 | F26: 52 | G26: 91 | H26: 57 | I26: 5 | K26: Rams | L26: X | Q26: 2 | R26: 1617 | S26: 814 | T26: 11849 | U26: 50.34013605 | V26: 97 | W26: 128 | X26: 61.57879819 | Y26: 75 | Z26: 21 | AA26: 13 | AB26: 0.28 | AC26: 0.1733333333 | AD26: 0.1428571429 | AE26: 0 | AF26: 8 | AG26: 36 | AH26: 18 | AI26: 10 | AJ26: 9 | AK26: 35 | AL26: 28 | AM26: 7 | AN26: 0 | AO26: 5 | AP26: 4 | AQ26: 2 | AR26: 1 | AS26: 66.66666667 | AT26: 0 | AU26: 0 | AV26: 2 | AW26: 2 | AX26: 2 | AY26: 3 | AZ26: 1 | BA26: 2 | BB26: 1 | BC26: 114.6666667 | BD26: 166.6666667 | BE26: 217.5 | BF26: 956.6902747 | BG26: 27 | BH26: B.Waterfield | BI26: 0 | BJ26: 0 | BK26: 0 | BL26: 0 | BM26: 2 | BN26: 2 | BO26: 0 | BP26: 1 | BQ26: 3 | BR26: 9 | BS26: 2 | BT26: 1 | BU26: 10 | BV26: 55.55555556 | BW26: 87.5 | BX26: 0.7578125 | BY26: 2 | BZ26: 145.6 | CA26: 1.6 | CB26: 33.33333333 | CC26: 19.78021978 | CD26: 7.91589363 | CE26: 7.327767471 | CF26: 14.55651106 | CG26: 130.2087912 | CH26: 5.998763142 | CI26: 1.065934066 | CJ26: 1.406593407 | CK26: 0.9479166667 | CL26: 10.98901099 | CM26: 9.89010989 | CN26: 1.017006803 | CO26: 1.081941868 | CP26: 1.199752628 | CQ26: 0.3960265925 | CR26: Bob Waterfield | CS26: 0 | CT26: 6 | CU26: 0 | CV26: 0 | CW26: 4 | CX26: 4 | CY26: 0 | CZ26: 4 | DA26: 6 | DB26: 0 | DC26: 6 | DD26: 2 | DE26: 0 | DF26: 6 | DG26: 4 | DH26: 0 | DJ26: 2 | DK26: 1481.125 | DL26: 12.125
A27: Len Dawson | B27: Purdue | C27: 1-5 | D27: 19 | E27: 57 | F27: 75 | G27: 211 | H27: 159 | I27: 54 | K27: Steelers(3), Browns(2),Chiefs(14) | P27: X | Q27: 2 | R27: 3741 | S27: 2136 | T27: 28711 | U27: 57.09703288 | V27: 239 | W27: 183 | X27: 82.55535507 | Y27: 294 | Z27: 1293 | AA27: 9 | AB27: 4.397959184 | AC27: 0.0306122449 | AD27: 0.04265402844 | AE27: 167 | AF27: 12 | AG27: 84 | AH27: 69 | AI27: 15 | AJ27: 18 | AK27: 94 | AL27: 57 | AM27: 9 | AN27: 0 | AO27: 4 | AP27: 4 | AQ27: 5 | AR27: 3 | AS27: 62.5 | AT27: 1 | AU27: 1 | AV27: 7 | AW27: 2 | AX27: 0 | AY27: 1 | AZ27: 1 | BA27: 1 | BB27: 1 | BC27: 113.5 | BD27: 158.5 | BE27: 122.1052632 | BF27: 1105.854942 | BG27: 0 | BH27: L.Dawson | BI27: 2 | BJ27: 1 | BK27: 1 | BL27: 1 | BM27: 1 | BN27: 0 | BO27: 0 | BP27: 1 | BQ27: 1 | BR27: 6 | BS27: 1 | BT27: 13 | BU27: 5 | BV27: 62.25165563 | BW27: 47.36842105 | BX27: 1.306010929 | BY27: 1.217391304 | BZ27: 453.2857143 | CA27: 2.148273527 | CB27: 45.09803922 | CC27: 32.7014218 | CD27: 4.891740176 | CE27: 7.674685913 | CF27: 13.4414794 | CG27: 136.07109 | CH27: 6.388666132 | CI27: 1.132701422 | CJ27: 0.8672985782 | CK27: 0.7962264151 | CL27: 7.109004739 | CM27: 8.530805687 | CN27: 1.354851644 | CO27: 1.168671478 | CP27: 1.277733226 | CQ27: 1.152064956 | CR27: Len Dawson | CS27: 0 | CT27: 0 | CU27: 2 | CV27: 10 | CW27: 0 | CX27: 0 | CY27: 3 | CZ27: 6 | DA27: 4 | DB27: 0 | DC27: 8 | DD27: 4 | DE27: 2 | DF27: 0 | DG27: 0 | DH27: 0 | DJ27: 3 | DK27: 1511.105263 | DL27: 12.57894737
A28: Jeff Hostetler | B28: W.Virginia | C28: 3-3 | D28: 13 | E28: 85 | F28: 97 | G28: 152 | H28: 83 | I28: 56 | J28: 1 | K28: Giants(8),Raiders(4), Redskins(1) | Q28: 1 | R28: 2338 | S28: 1357 | T28: 16430 | U28: 58.04106074 | V28: 94 | W28: 71 | X28: 80.48011121 | Y28: 316 | Z28: 1391 | AA28: 17 | AB28: 4.401898734 | AC28: 0.05379746835 | AD28: 0.1118421053 | AE28: 207 | AG28: 48 | AH28: 26 | AI28: 10 | AJ28: 12 | AK28: 51 | AL28: 32 | AM28: 10 | AN28: 0 | AO28: 1 | AP28: 1 | AQ28: 4 | AR28: 1 | AS28: 80 | AT28: 2 | AU28: 2 | AV28: 1 | AW28: 0 | AX28: 0 | AY28: 0 | AZ28: 0 | BA28: 1 | BB28: 0 | BC28: 113 | BD28: 164 | BE28: 87.38461538 | BF28: 1104.781269 | BG28: 7 | BH28: J.Hostetler | BI28: 2 | BJ28: 0 | BK28: 0 | BL28: 1 | BM28: 2 | BN28: 2 | BO28: 0 | BP28: 0 | BQ28: 1 | BR28: 3 | BS28: 3 | BT28: 6 | BU28: 7 | BV28: 61.44578313 | BW28: 83.33333333 | BX28: 1.323943662 | BY28: 1.846153846 | BZ28: 207 | CA28: 1.361842105 | CB28: 35.13513514 | CC28: 17.10526316 | CD28: 3.036783576 | CE28: 7.027373824 | CF28: 12.10759027 | CG28: 108.0921053 | CH28: 4.020530368 | CI28: 0.6184210526 | CJ28: 0.4671052632 | CK28: 0.7307692308 | CL28: 6.578947368 | CM28: 7.894736842 | CN28: 1.402053037 | CO28: 1.006843456 | CP28: 0.8041060736 | CQ28: 1.615804106 | CR28: Jeff Hostetler | CS28: 0 | CT28: 6 | CU28: 2 | CV28: 2 | CW28: 8 | CX28: 6 | CY28: 6 | CZ28: 4 | DA28: 2 | DB28: 0 | DC28: 0 | DD28: 0 | DE28: 10 | DF28: 0 | DG28: 0 | DH28: 0 | DJ28: 0 | DK28: 1263.846154 | DL28: 7.230769231
A29: Dan Marino | B29: Pittsburgh | C29: 1-27 | D29: 17 | E29: 83 | F29: 99 | G29: 242 | H29: 240 | I29: 26 | K29: Dolphins | L29: X | N29: X | O29: X | P29: X | Q29: 4 | R29: 8358 | S29: 4967 | T29: 61361 | U29: 59.42809285 | V29: 420 | W29: 242 | X29: 86.88282683 | Y29: 301 | Z29: 87 | AA29: 9 | AB29: 0.2890365449 | AC29: 0.02990033223 | AD29: 0.03719008264 | AE29: 270 | AG29: 106 | AH29: 68 | AI29: 36 | AJ29: 47 | AK29: 147 | AL29: 93 | AM29: 12 | AN29: 0 | AO29: 4 | AP29: 1 | AQ29: 8 | AR29: 10 | AS29: 44.44444444 | AT29: 3 | AU29: 4 | AV29: 9 | AW29: 3 | AX29: 1 | AY29: 3 | AZ29: 1 | BA29: 0 | BB29: 0 | BC29: 112.4444444 | BD29: 196.4444444 | BE29: 138.4117647 | BF29: 772.7683976 | BG29: 3 | BH29: D.Marino | BI29: 2 | BJ29: 2 | BK29: 3 | BL29: 1 | BM29: 2 | BN29: 1 | BO29: 0 | BP29: 2 | BQ29: 3 | BR29: 3 | BS29: 3 | BU29: 0 | BV29: 61.25 | BW29: 70.58823529 | BX29: 1.73553719 | BY29: 1.558823529 | BZ29: 270 | CA29: 1.115702479 | CB29: 39.08045977 | CC29: 28.09917355 | CD29: 2.895429529 | CE29: 7.341588897 | CF29: 12.35373465 | CG29: 253.5578512 | CH29: 5.025125628 | CI29: 1.73553719 | CJ29: 1 | CK29: 0.9029850746 | CL29: 14.87603306 | CM29: 19.4214876 | CN29: 1.471404642 | CO29: 1.085397224 | CP29: 1.005025126 | CQ29: 1.651142618 | CR29: Dan Marino | CS29: 0 | CT29: 4 | CU29: 4 | CV29: 4 | CW29: 8 | CX29: 6 | CY29: 8 | CZ29: 4 | DA29: 2 | DB29: 8 | DC29: 4 | DD29: 8 | DE29: 0 | DF29: 6 | DG29: 6 | DH29: 8 | DJ29: 1 | DK29: 3609.470588 | DL29: 24.70588235
A30: Russell Wilson | B30: NC State, Wisconsin | C30: 12-3 | D30: 14 | E30: 13 | F30: 25 | G30: 205 | H30: 202 | I30: 21 | J30: 0 | K30: Seahawks(10),Giants(1) Broncos(2),Steelers(1) | L30: X | M30: X | N30: X | O30: X | Q30: 4 | R30: 6120 | S30: 3951 | T30: 46966 | U30: 64.55882353 | V30: 353 | W30: 114 | X30: 99.32325708 | Y30: 1042 | Z30: 5568 | AA30: 31 | AB30: 5.343570058 | AC30: 0.02975047985 | AD30: 0.1512195122 | AE30: 570 | AF30: 0 | AG30: 111 | AH30: 66 | AI30: 32 | AJ30: 40 | AK30: 123 | AL30: 81 | AM30: 8 | AN30: 0 | AO30: 4 | AP30: 2 | AQ30: 9 | AR30: 7 | AS30: 56.25 | AT30: 4 | AU30: 4 | AV30: 6 | AW30: 2 | AX30: 0 | AY30: 0 | AZ30: 0 | BA30: 1 | BB30: 0 | BC30: 112.25 | BD30: 200.25 | BE30: 162.8571429 | BF30: 1278.957241 | BG30: 4 | BH30: R.Wilson | BI30: 3 | BJ30: 2 | BK30: 3 | BL30: 1 | BM30: 2 | BN30: 0 | BO30: 0 | BP30: 2 | BQ30: 3 | BR30: 0 | BS30: 1 | BU30: 0 | BV30: 60.29411765 | BW30: 57.14285714 | BX30: 3.096491228 | BY30: 1.681818182 | BZ30: 570 | CA30: 2.780487805 | CB30: 37.28813559 | CC30: 32.19512195 | CD30: 1.862745098 | CE30: 7.674183007 | CF30: 11.88711719 | CG30: 229.102439 | CH30: 5.767973856 | CI30: 1.72195122 | CJ30: 0.556097561 | CK30: 0.907079646 | CL30: 15.6097561 | CM30: 19.51219512 | CN30: 1.727941176 | CO30: 1.168545752 | CP30: 1.153594771 | CQ30: 1.909313725 | CR30: Russell Wilson | CS30: 0 | CT30: 0 | CU30: 10 | CV30: 2 | CW30: 0 | CX30: 0 | CY30: 10 | CZ30: 6 | DA30: 0 | DB30: 6 | DC30: 6 | DD30: 8 | DE30: 10 | DF30: 6 | DG30: 8 | DH30: 8 | DJ30: 1 | DK30: 3354.714286 | DL30: 25.21428571
A31: Joe Theismann | B31: N.Dame | C31: 4-21 | D31: 12 | E31: 74 | F31: 85 | G31: 167 | H31: 124 | I31: 10 | K31: Redskins | L31: X | M31: X | N31: X | O31: X | P31: X | Q31: 5 | R31: 3602 | S31: 2044 | T31: 25206 | U31: 56.74625208 | V31: 160 | W31: 138 | X31: 77.37252452 | Y31: 355 | Z31: 1815 | AA31: 17 | AB31: 5.112676056 | AC31: 0.04788732394 | AD31: 0.1017964072 | AE31: 340 | AG31: 42 | AH31: 28 | AI31: 19 | AJ31: 24 | AK31: 77 | AL31: 47 | AM31: 7 | AN31: 0 | AO31: 3 | AP31: 1 | AQ31: 6 | AR31: 2 | AS31: 75 | AT31: 1 | AU31: 2 | AV31: 2 | AW31: 1 | AX31: 1 | AY31: 1 | AZ31: 0 | BA31: 1 | BB31: 0 | BC31: 112 | BD31: 152 | BE31: 103.3333333 | BF31: 1207.507333 | BG31: 0 | BH31: J.Theismann | BI31: 1 | BJ31: 1 | BK31: 1 | BL31: 1 | BM31: 1 | BN31: 0 | BO31: 0 | BP31: 0 | BQ31: 3 | BR31: 3 | BS31: 1 | BT31: 9 | BU31: 6 | BV31: 62.09677419 | BW31: 58.33333333 | BX31: 1.15942029 | BY31: 1.5 | BZ31: 340 | CA31: 2.035928144 | CB31: 40 | CC31: 16.76646707 | CD31: 3.831204886 | CE31: 6.997779012 | CF31: 12.33170254 | CG31: 150.9341317 | CH31: 4.44197668 | CI31: 0.9580838323 | CJ31: 0.8263473054 | CK31: 0.9435028249 | CL31: 11.37724551 | CM31: 14.37125749 | CN31: 1.337312604 | CO31: 0.9994447529 | CP31: 0.8883953359 | CQ31: 1.417198778 | CR31: Joe Theismann | CS31: 0 | CT31: 0 | CU31: 0 | CV31: 4 | CW31: 0 | CX31: 0 | CY31: 5 | CZ31: 2 | DA31: 2 | DB31: 0 | DC31: 0 | DD31: 0 | DE31: 4 | DF31: 6 | DG31: 4 | DH31: 4 | DJ31: 0 | DK31: 2100.5 | DL31: 13.33333333
A32: Bob Griese | B32: Purdue | C32: 1-4 | D32: 14 | E32: 67 | F32: 80 | G32: 161 | H32: 151 | I32: 41 | K32: Dolphins | N32: X | O32: X | P32: X | Q32: 3 | R32: 3429 | S32: 1926 | T32: 25092 | U32: 56.167979 | V32: 192 | W32: 172 | X32: 77.14408963 | Y32: 261 | Z32: 994 | AA32: 7 | AB32: 3.808429119 | AC32: 0.02681992337 | AD32: 0.04347826087 | AE32: 267 | AG32: 52 | AH32: 29 | AI32: 16 | AJ32: 20 | AK32: 92 | AL32: 56 | AM32: 9 | AN32: 1 | AO32: 6 | AP32: 3 | AQ32: 6 | AR32: 5 | AS32: 54.54545455 | AT32: 1 | AU32: 1 | AV32: 8 | AW32: 2 | AX32: 0 | AY32: 2 | AZ32: 1 | BA32: 2 | BB32: 0 | BC32: 110.5454545 | BD32: 155.5454545 | BE32: 165.2857143 | BF32: 1173.348396 | BG32: 5 | BH32: B.Griese | BI32: 1 | BJ32: 1 | BK32: 1 | BL32: 1 | BM32: 2 | BN32: 0 | BO32: 0 | BP32: 1 | BQ32: 1 | BR32: 6 | BS32: 2 | BT32: 6 | BU32: 7 | BV32: 62.16216216 | BW32: 64.28571429 | BX32: 1.11627907 | BY32: 1.793103448 | BZ32: 267 | CA32: 1.658385093 | CB32: 35.80246914 | CC32: 18.01242236 | CD32: 5.016039662 | CE32: 7.317585302 | CF32: 13.02803738 | CG32: 155.8509317 | CH32: 5.599300087 | CI32: 1.192546584 | CJ32: 1.068322981 | CK32: 0.797029703 | CL32: 9.937888199 | CM32: 12.42236025 | CN32: 1.30839895 | CO32: 1.079396325 | CP32: 1.119860017 | CQ32: 1.120990085 | CR32: Bob Griese | CS32: 0 | CT32: 0 | CU32: 0 | CV32: 2 | CW32: 4 | CX32: 4 | CY32: 0 | CZ32: 4 | DA32: 4 | DB32: 0 | DC32: 6 | DD32: 4 | DE32: 0 | DF32: 0 | DG32: 2 | DH32: 4 | DJ32: 1 | DK32: 1792.285714 | DL32: 13.71428571
A33: Fran Tarkenton | B33: Georgia | C33: 3-1 | D33: 18 | E33: 61 | F33: 78 | G33: 246 | H33: 239 | I33: 8 | K33: Vikings(6),Giants(5), Vikings(7) | M33: X | O33: X | Q33: 2 | R33: 6467 | S33: 3686 | T33: 47003 | U33: 56.99706201 | V33: 342 | W33: 266 | X33: 80.35442761 | Y33: 675 | Z33: 3674 | AA33: 32 | AB33: 5.442962963 | AC33: 0.04740740741 | AD33: 0.1300813008 | AE33: 274 | AF33: 8 | AG33: 84 | AH33: 41 | AI33: 30 | AJ33: 33 | AK33: 124 | AL33: 109 | AM33: 8 | AN33: 0 | AO33: 6 | AP33: 3 | AQ33: 6 | AR33: 5 | AS33: 54.54545455 | AT33: 1 | AU33: 1 | AV33: 9 | AW33: 1 | AX33: 1 | AY33: 1 | AZ33: 1 | BA33: 0 | BB33: 0 | BC33: 110.5454545 | BD33: 155.5454545 | BE33: 120 | BF33: 1289.134921 | BG33: 0 | BH33: F.Tarkenton | BI33: 2 | BJ33: 2 | BK33: 2 | BL33: 0 | BM33: 2 | BN33: 0 | BO33: 0 | BP33: 1 | BQ33: 3 | BR33: 6 | BS33: 1 | BU33: 0 | BV33: 53.21888412 | BW33: 44.44444444 | BX33: 1.285714286 | BY33: 2.048780488 | BZ33: 493.2 | CA33: 2.004878049 | CB33: 32.8 | CC33: 16.66666667 | CD33: 4.113190042 | CE33: 7.268130509 | CF33: 12.75176343 | CG33: 191.0691057 | CH33: 5.288387197 | CI33: 1.390243902 | CJ33: 1.081300813 | CK33: 0.968503937 | CL33: 12.19512195 | CM33: 13.41463415 | CN33: 1.3498531 | CO33: 1.067032627 | CP33: 1.057677439 | CQ33: 1.34670249 | CR33: Fran Tarkenton | CS33: 0 | CT33: 0 | CU33: 2 | CV33: 0 | CW33: 0 | CX33: 0 | CY33: 5 | CZ33: 4 | DA33: 2 | DB33: 2 | DC33: 4 | DD33: 6 | DE33: 0 | DF33: 8 | DG33: 6 | DH33: 4 | DJ33: 3 | DK33: 2611.277778 | DL33: 19
A34: Jim Plunkett | B34: Stanford | C34: 1-1 | D34: 16 | E34: 71 | F34: 86 | G34: 157 | H34: 144 | I34: 71 | J34: 1 | K34: Patroits(5),49ers(2), Raiders(8) | L34: X | N34: X | O34: X | Q34: 3 | R34: 3701 | S34: 1943 | T34: 25882 | U34: 52.49932451 | V34: 164 | W34: 198 | X34: 67.45080159 | Y34: 323 | Z34: 1337 | AA34: 14 | AB34: 4.139318885 | AC34: 0.04334365325 | AD34: 0.08917197452 | AE34: 380 | AG34: 62 | AH34: 48 | AI34: 19 | AJ34: 23 | AK34: 72 | AL34: 72 | AM34: 4 | AN34: 0 | AO34: 2 | AP34: 2 | AQ34: 8 | AR34: 2 | AS34: 80 | AT34: 1 | AU34: 1 | AV34: 0 | AW34: 0 | AX34: 0 | AY34: 0 | AZ34: 0 | BA34: 2 | BB34: 1 | BC34: 109 | BD34: 148 | BE34: 105 | BF34: 1020.317777 | BG34: 3 | BH34: J.Plunkett | BI34: 0 | BJ34: 1 | BK34: 1 | BL34: 0 | BM34: 1 | BN34: 0 | BO34: 0 | BP34: 1 | BQ34: 1 | BR34: 3 | BS34: 1 | BT34: 10 | BU34: 6 | BV34: 50 | BW34: 26.66666667 | BX34: 0.8282828283 | BY34: 1.291666667 | BZ34: 380 | CA34: 2.420382166 | CB34: 43.63636364 | CC34: 30.57324841 | CD34: 5.349905431 | CE34: 6.993245069 | CF34: 13.32063819 | CG34: 164.8535032 | CH34: 4.431234801 | CI34: 1.044585987 | CJ34: 1.261146497 | CK34: 0.6885964912 | CL34: 12.10191083 | CM34: 14.64968153 | CN34: 1.124966225 | CO34: 0.9983112672 | CP34: 0.8862469603 | CQ34: 1.037523642 | CR34: Jim Plunkett | CS34: 0 | CT34: 0 | CU34: 0 | CV34: 10 | CW34: 0 | CX34: 0 | CY34: 0 | CZ34: 2 | DA34: 4 | DB34: 0 | DC34: 0 | DD34: 2 | DE34: 0 | DF34: 0 | DG34: 6 | DH34: 4 | DJ34: 0 | DK34: 1617.625 | DL34: 10.25
A35: Ken Stabler | B35: Alabama | C35: 2-25 | D35: 15 | E35: 70 | F35: 84 | G35: 184 | H35: 146 | I35: 33 | K35: Raiders(10), Oilers(2), Saints(3) | L35: X | M35: X | N35: X | O35: =IF(CL35>9.9,(IF(CM35>11.99,"X","")),"") -> X | Q35: 4 | R35: 3793 | S35: 2270 | T35: 27938 | U35: =S35/R35*100 -> 59.84708674 | V35: 194 | W35: 222 | X35: =((CN35+CO35+CP35+CQ35)/6)*100 -> 75.3081334 | Y35: 118 | Z35: 93 | AA35: 4 | AB35: =Z35/Y35 -> 0.7881355932 | AC35: =AA35/Y35 -> 0.03389830508 | AD35: =AA35/G35 -> 0.02173913043 | AE35: 281 | AG35: 66 | AH35: 48 | AI35: 19 | AJ35: 26 | AK35: 96 | AL35: 49 | AM35: 8 | AN35: 0 | AO35: 6 | AP35: 1 | AQ35: 7 | AR35: 5 | AS35: =AQ35/(AQ35+AR35)*100 -> 58.33333333 | AT35: 3 | AU35: 3 | AV35: 4 | AW35: 1 | AX35: 1 | AY35: 1 | AZ35: 1 | BA35: 1 | BB35: 0 | BC35: 107.3333333 | BD35: =(BA35*4)+(Q35)+(SUM(AM35:BB35))+(SUM(BI35:BR35))-AR35+(SUM(CS35:DH35)) -> 157.3333333 | BE35: =(BA35*12)+(BA35*11)+(((AO35/D35*10)+(AP35/D35*10))*10)+(BN35*9)+(BP35*8)+((BJ35+BK35+BL35)*7)+(BI35*6)+(BM35*5)+(AX35*4)+(BB35*3)+(AW35*2)+(Q35)+BQ35+AY35 -> 129.6666667 | BF35: =X35+(CF35*10)+(100-((AH35/G35)*100))+(100-((AH35/AG35)*100))+(AB35*100)+(AC35*100)+(AD35*100)+((H35/G35)*100)+((AK35/H35)*100)+((AM35/D35)*100)+((AX35/D35)*100)+((AO35/D35)*100)+((AP35/D35)*100)+((AQ35/(AQ35+AR35))*100)+((AV35/D35)*100)+((AW35/D35)*100)+((AY35/D35)*100)+(20-BT35)+((BA35/D35)*100)+((BB35/D35)*100) -> 753.7140143 | BG35: 0 | BH35: K.Stabler | BI35: =IF(X35<70,0,(IF(X35<80,1,(IF(X35<90,2,3))))) -> 1 | BJ35: =IF(AI35<15,0,(IF(AI35<25,1,(IF(AI35<40,2,3))))) -> 1 | BK35: =IF(AJ35<15,0,(IF(AJ35<25,1,(IF(AJ35<40,2,3))))) -> 2 | BL35: =IF(BV35<60,0,(IF(BV35<70,1,(IF(BV35<80,2,(IF(BV35<90,3,4))))))) -> 1 | BM35: =IF(CB35<30,3,(IF(CB35<40,2,1))) -> 1 | BN35: =IF(BW35<70,0,(IF(BW35<80,1,(IF(BW35<90,2,(IF(BW35<100,3,4))))))) -> 0 | BO35: =IF(CE35<7.75,0,(IF(CE35<8.25,1,(IF(CE35<8.75,2,3))))) -> 0 | BP35: =IF(CI35<1,0,(IF(CI35<1.5,1,(IF(CI35<2,2,3))))) -> 1 | BQ35: =IF(CK35<0.8,1,(IF(CK35<0.9,2,(IF(CK35<1,3,4))))) -> 2 | BR35: =IF(E35<20,0,(IF(E35<50,9,(IF(E35<70,6,(IF(E35<90,3,0))))))) -> 3 | BS35: 2 | BT35: 7 | BU35: 7 | BV35: =AK35/(AK35+AL35)*100 -> 66.20689655 | BW35: =(AM35/(D35-J35))*100 -> 53.33333333 | BX35: =V35/W35 -> 0.8738738739 | BY35: =AG35/AH35 -> 1.375 | BZ35: =IF(AE35=0,(G35*1.6),(AE35/((D35-AF35)/D35))) -> 281 | CA35: =BZ35/G35 -> 1.527173913 | CB35: =AH35/(AH35+AG35)*100 -> 42.10526316 | CC35: =AH35/G35*100 -> 26.08695652 | CD35: =W35/R35*100 -> 5.852886897 | CE35: =T35/R35 -> 7.365673609 | CF35: =T35/S35 -> 12.30748899 | CG35: =T35/G35 -> 151.8369565 | CH35: =V35/R35*100 -> 5.114684946 | CI35: =V35/G35 -> 1.054347826 | CJ35: =W35/G35 -> 1.206521739 | CK35: =G35/(G35+I35) -> 0.8479262673 | CL35: =(AI35/G35)*100 -> 10.32608696 | CM35: =(AJ35/G35)*100 -> 14.13043478 | CN35: =MAX(0,MIN(((S35/R35-0.3)*5),2.375)) -> 1.492354337 | CO35: =MAX(0,MIN(((T35/R35-3)*0.25),2.375)) -> 1.091418402 | CP35: =MAX(0,MIN(((V35/R35)*20),2.375)) -> 1.022936989 | CQ35: =MAX(0,MIN((2.375-(W35/R35*25)),2.375)) -> 0.9117782758 | CR35: Ken Stabler | CS35: =IF(BV35>90,10,(IF(BV35>80,8,(IF(BV35>75,6,(IF(BV35>70,4,(IF(BV35>65,2,0))))))))) -> 2 | CT35: =IF(BW35>99,10,(IF(BW35>90,8,(IF(BW35>80,6,(IF(BW35>70,4,(IF(BW35>65,2,0))))))))) -> 0 | CU35: =IF(BX35>2.7,10,(IF(BX35>2.4,8,(IF(BX35>2,6,(IF(BX35>1.7,4,(IF(BX35>1.2,2,0))))))))) -> 0 | CV35: =IF(BY35<1.3,10,(IF(BY35<1.45,8,(IF(BY35<1.48,6,(IF(BY35<1.6,4,(IF(BY35<2,2,0))))))))) -> 8 | CW35: =IF(CA35<1,10,(IF(CA35<1.4,8,(IF(CA35<1.6,6,(IF(CA35<1.8,4,(IF(CA35<2,2,0))))))))) -> 6 | CX35: =IF(CA35<0.5,10,(IF(CA35<1,8,(IF(CA35<1.4,6,(IF(CA35<1.7,4,(IF(CA35<2,2,0))))))))) -> 4 | CY35: =IF(CD35<2,10,(IF(CD35<2.5,9,(IF(CD35<3,8,(IF(CD35<3.5,6,(IF(CD35<4.5,5,(IF(CD35<5,3,0))))))))))) -> 0 | CZ35: =IF(CE35>8.5,10,(IF(CE35>8,8,(IF(CE35>7.5,6,(IF(CE35>7,4,(IF(CE35>6.5,2,0))))))))) -> 4 | DA35: =IF(CF35>16,10,(IF(CF35>15,8,(IF(CF35>14,6,(IF(CF35>13,4,(IF(CF35>12,2,0))))))))) -> 2 | DB35: =IF(CG35>270,10,(IF(CG35>250,8,(IF(CG35>225,6,(IF(CG35>200,4,(IF(CG35>180,2,0))))))))) -> 0 | DC35: =IF(CH35>7,10,(IF(CH35>6,8,(IF(CH35>5.5,6,(IF(CH35>5,4,(IF(CH35>4.5,2,0))))))))) -> 4 | DD35: =IF(CI35>2,10,(IF(CI35>1.6,8,(IF(CI35>1.3,6,(IF(CI35>1.1,4,(IF(CI35>1,2,0))))))))) -> 2 | DE35: =IF(CJ35<0.6,10,(IF(CJ35<0.72,8,(IF(CJ35<0.8,6,(IF(CJ35<0.86,4,(IF(CJ35<1,2,0))))))))) -> 0 | DF35: =IF(CK35>0.99,10,(IF(CK35>0.949,8,(IF(CK35>0.899,6,(IF(CK35>0.849,4,(IF(CK35>0.799,2,0))))))))) -> 2 | DG35: =IF(CL35>18,10,(IF(CL35>15,8,(IF(CL35>12,6,(IF(CL35>10,4,(IF(CL35>8,2,0))))))))) -> 4 | DH35: =IF(CM35>20,10,(IF(CM35>17,8,(IF(CM35>15,6,(IF(CM35>12,4,(IF(CM35>10,2,0))))))))) -> 4 | DJ35: =AP35-BA35 -> 0 | DK35: =T35/D35 -> 1862.533333 | DL35: =V35/D35 -> 12.93333333
A36: Norm Van Brocklin | B36: Oregon | C36: 4-6 | D36: 12 | E36: 49 | F36: 60 | G36: 140 | H36: 101 | I36: 4 | K36: Ram(9),Phil(3) | L36: X | N36: X | O36: X | P36: X | Q36: 4 | R36: 2895 | S36: 1553 | T36: 23611 | U36: 53.64421416 | V36: 173 | W36: 178 | X36: 75.06980426 | Y36: 102 | Z36: 40 | AA36: 11 | AB36: 0.3921568627 | AC36: 0.1078431373 | AD36: 0.07857142857 | AE36: 0 | AF36: 12 | AG36: 45 | AH36: 28 | AI36: 20 | AJ36: 19 | AK36: 61 | AL36: 36 | AM36: 7 | AN36: 0 | AO36: 4 | AP36: 4 | AQ36: 2 | AR36: 2 | AS36: 50 | AT36: 1 | AU36: 2 | AV36: 9 | AW36: 1 | AX36: 1 | AY36: 2 | AZ36: 1 | BA36: 2 | BB36: 1 | BC36: =(SUM(AM36:BB36))+(SUM(BI36:BR36))-AR36 -> 107 | BD36: 173 | BE36: 175.6666667 | BF36: 863.6117264 | BG36: 0 | BH36: N.Brocklin | BI36: 1 | BJ36: 1 | BK36: 1 | BL36: 1 | BM36: 2 | BN36: 0 | BO36: 1 | BP36: 1 | BQ36: 3 | BR36: 9 | BS36: 2 | BU36: 0 | BV36: 62.88659794 | BW36: 58.33333333 | BX36: 0.9719101124 | BY36: 1.607142857 | BZ36: 224 | CA36: 1.6 | CB36: 38.35616438 | CC36: 20 | CD36: 6.148531952 | CE36: 8.155785838 | CF36: 15.20347714 | CG36: 168.65 | CH36: 5.97582038 | CI36: 1.235714286 | CJ36: 1.271428571 | CK36: 0.9722222222 | CL36: 14.28571429 | CM36: 13.57142857 | CN36: 1.182210708 | CO36: 1.288946459 | CP36: 1.195164076 | CQ36: 0.8378670121 | CR36: Norm Van Brocklin | CS36: 0 | CT36: 0 | CU36: 0 | CV36: 2 | CW36: 4 | CX36: 4 | CY36: 0 | CZ36: 8 | DA36: 8 | DB36: 0 | DC36: 6 | DD36: 4 | DE36: 0 | DF36: 8 | DG36: 6 | DH36: 4 | DJ36: 2 | DK36: 1967.583333 | DL36: 14.41666667
A37: Jim Kelly | B37: Miami(FL) | C37: 2-14 | D37: 11 | E37: 86 | F37: 96 | G37: 160 | H37: 160 | I37: 16 | K37: Bills | L37: X | N37: X | O37: X | Q37: 3 | R37: 4779 | S37: 2874 | T37: 35467 | U37: 60.13810421 | V37: 237 | W37: 175 | X37: 84.39396317 | Y37: 304 | Z37: 1049 | AA37: 7 | AB37: 3.450657895 | AC37: 0.02302631579 | AD37: 0.04375 | AE37: 323 | AG37: 76 | AH37: 58 | AI37: 22 | AJ37: 28 | AK37: 101 | AL37: 59 | AM37: 7 | AN37: 0 | AO37: 7 | AP37: 4 | AQ37: 9 | AR37: 8 | AS37: 52.94117647 | AT37: 1 | AU37: 1 | AV37: 5 | AW37: 1 | AX37: 0 | AY37: 1 | AZ37: 1 | BA37: 0 | BB37: 0 | BC37: 103.9411765 | BD37: 159.9411765 | BE37: 162 | BF37: 1110.316901 | BG37: 0 | BH37: J.Kelly | BI37: 2 | BJ37: 1 | BK37: 2 | BL37: 1 | BM37: 1 | BN37: 0 | BO37: 0 | BP37: 1 | BQ37: 3 | BR37: 3 | BS37: 1 | BU37: 0 | BV37: 63.125 | BW37: 63.63636364 | BX37: 1.354285714 | BY37: 1.310344828 | BZ37: 323 | CA37: 2.01875 | CB37: 43.28358209 | CC37: 36.25 | CD37: 3.661853944 | CE37: 7.421427077 | CF37: 12.34064022 | CG37: 221.66875 | CH37: 4.959196485 | CI37: 1.48125 | CJ37: 1.09375 | CK37: 0.9090909091 | CL37: 13.75 | CM37: 17.5 | CN37: 1.50690521 | CO37: 1.105356769 | CP37: 0.9918392969 | CQ37: 1.459536514 | CR37: Jim Kelly | CS37: 0 | CT37: 0 | CU37: 2 | CV37: 8 | CW37: 0 | CX37: 0 | CY37: 5 | CZ37: 4 | DA37: 2 | DB37: 4 | DC37: 2 | DD37: 6 | DE37: 0 | DF37: 6 | DG37: 6 | DH37: 8 | DJ37: 4 | DK37: 3224.272727 | DL37: 21.54545455
A38: Trent Dilfer | B38: Fresno St | C38: 1-6 | D38: 14 | E38: 94 | F38: 7 | G38: 130 | H38: 113 | I38: 78 | J38: 1 | K38: Bucanners(6), Ravens(1),Seahawks(4), Browns(1),49ers(1) | Q38: 1 | R38: 3172 | S38: 1759 | T38: 20518 | U38: 55.45397226 | V38: 113 | W38: 129 | X38: 70.17654477 | Y38: 248 | Z38: 853 | AA38: 5 | AB38: 3.439516129 | AC38: 0.02016129032 | AD38: 0.03846153846 | AE38: 263 | AG38: 82 | AH38: 65 | AI38: 14 | AJ38: 15 | AK38: 58 | AL38: 55 | AM38: 5 | AN38: 0 | AO38: 2 | AP38: 1 | AQ38: 5 | AR38: 1 | AS38: 83.33333333 | AT38: 0 | AU38: 0 | AV38: 1 | AW38: 0 | AX38: 0 | AY38: 0 | AZ38: 0 | BA38: 1 | BB38: 0 | BC38: 102.3333333 | BD38: 130.3333333 | BE38: 64.42857143 | BF38: 913.3803847 | BG38: 4 | BH38: T.Dilfer | BI38: 1 | BJ38: 0 | BK38: 1 | BL38: 0 | BM38: 1 | BN38: 0 | BO38: 0 | BP38: 0 | BQ38: 1 | BR38: 0 | BS38: 1 | BT38: 7 | BU38: 7 | BV38: 51.32743363 | BW38: 38.46153846 | BX38: 0.8759689922 | BY38: 1.261538462 | BZ38: 263 | CA38: 2.023076923 | CB38: 44.21768707 | CC38: 50 | CD38: 4.066834805 | CE38: 6.468474149 | CF38: 11.66458215 | CG38: 157.8307692 | CH38: 3.562421185 | CI38: 0.8692307692 | CJ38: 0.9923076923 | CK38: 0.625 | CL38: 10.76923077 | CM38: 11.53846154 | CN38: 1.272698613 | CO38: 0.8671185372 | CP38: 0.7124842371 | CQ38: 1.358291299 | CR38: Trent Dilfer | CS38: 0 | CT38: 0 | CU38: 0 | CV38: 10 | CW38: 0 | CX38: 0 | CY38: 5 | CZ38: 0 | DA38: 0 | DB38: 0 | DC38: 0 | DD38: 0 | DE38: 2 | DF38: 0 | DG38: 4 | DH38: 2 | DJ38: 0 | DK38: 1465.571429 | DL38: 8.071428571
A39: Jalen Hurts | B39: Oklahoma | C39: 2025-02-21 | D39: 6 | E39: 20 | F39: 25 | G39: 93 | H39: 82 | I39: 1 | K39: Eagles | L39: X | M39: X | N39: X | O39: X | P39: X | Q39: 5 | R39: 2393 | S39: 1542 | T39: 17891 | U39: 64.437944 | V39: 110 | W39: 45 | X39: 94.42035799 | Y39: 779 | Z39: 3554 | AA39: 63 | AB39: 4.562259307 | AC39: 0.08087291399 | AD39: 0.6774193548 | AE39: 183 | AG39: 53 | AH39: 36 | AI39: 10 | AJ39: 13 | AK39: 57 | AL39: 25 | AM39: 5 | AN39: 0 | AO39: 3 | AP39: 2 | AQ39: 5 | AR39: 3 | AS39: 62.5 | AT39: 0 | AU39: 0 | AV39: 2 | AW39: 0 | AX39: 0 | AY39: 0 | AZ39: 0 | BA39: 1 | BB39: 1 | BC39: 101.5 | BD39: 184.5 | BE39: 173.3333333 | BF39: 1309.383525 | BG39: 0 | BH39: J.Hurts | BI39: 3 | BJ39: 0 | BK39: 0 | BL39: 1 | BM39: 1 | BN39: 2 | BO39: 0 | BP39: 1 | BQ39: 3 | BR39: 9 | BS39: 2 | BV39: 69.51219512 | BW39: 83.33333333 | BX39: 2.444444444 | BY39: 1.472222222 | BZ39: 183 | CA39: 1.967741935 | CB39: 40.4494382 | CC39: 38.70967742 | CD39: 1.880484747 | CE39: 7.476389469 | CF39: 11.60246433 | CG39: 192.3763441 | CH39: 4.596740493 | CI39: 1.182795699 | CJ39: 0.4838709677 | CK39: 0.9893617021 | CL39: 10.75268817 | CM39: 13.97849462 | CN39: 1.7218972 | CO39: 1.119097367 | CP39: 0.9193480986 | CQ39: 1.904878813 | CS39: 2 | CT39: 6 | CU39: 8 | CV39: 6 | CW39: 2 | CX39: 2 | CY39: 10 | CZ39: 4 | DA39: 0 | DB39: 2 | DC39: 2 | DD39: 4 | DE39: 10 | DF39: 8 | DG39: 4 | DH39: 4 | DJ39: 1 | DK39: 2981.833333 | DL39: 18.33333333
A40: Joe Flacco | B40: Delaware | C40: 1-18 | D40: 15 | E40: 5 | F40: 19 | G40: 171 | H40: 171 | I40: 21 | K40: Ravens | L40: X | N40: X | O40: X | Q40: 3 | R40: 5932 | S40: 3670 | T40: 40067 | U40: 61.86783547 | V40: 218 | W40: 141 | X40: 84.12915824 | Y40: 368 | Z40: 862 | AA40: 16 | AB40: 2.342391304 | AC40: 0.04347826087 | AD40: 0.09356725146 | AE40: 359 | AG40: 88 | AH40: 29 | AI40: 18 | AJ40: 24 | AK40: 98 | AL40: 73 | AM40: 7 | AN40: 0 | AO40: 4 | AP40: 1 | AQ40: 10 | AR40: 6 | AS40: 62.5 | AT40: 1 | AU40: 2 | AV40: 0 | AW40: 0 | AX40: 0 | AY40: 0 | AZ40: 0 | BA40: 1 | BB40: 1 | BC40: 99.5 | BD40: 145.5 | BE40: 113.3333333 | BF40: 916.4768919 | BG40: 2 | BH40: J.Flacco | BI40: 2 | BJ40: 1 | BK40: 1 | BL40: 0 | BM40: 3 | BN40: 0 | BO40: 0 | BP40: 1 | BQ40: 2 | BR40: 0 | BS40: 1 | BT40: 8 | BU40: =IF(BT40=0,0,(IF(BT40<2,10,(IF(BT40<3,9,(IF(BT40<5,8,(IF(BT40<8,7,(IF(BT40<11,6,(IF(BT40<16,5,8))))))))))))) -> 6 | BV40: 57.30994152 | BW40: 46.66666667 | BX40: 1.546099291 | BY40: 3.034482759 | BZ40: 359 | CA40: 2.099415205 | CB40: 24.78632479 | CC40: 16.95906433 | CD40: 2.376938638 | CE40: 6.754383007 | CF40: 10.91743869 | CG40: 234.3099415 | CH40: 3.674983142 | CI40: 1.274853801 | CJ40: 0.8245614035 | CK40: 0.890625 | CL40: 10.52631579 | CM40: 14.03508772 | CN40: 1.593391773 | CO40: 0.9385957519 | CP40: 0.7349966285 | CQ40: 1.780765341 | CR40: Joe Flacco | CS40: 0 | CT40: 0 | CU40: 2 | CV40: 0 | CW40: 0 | CX40: 0 | CY40: 9 | CZ40: 2 | DA40: 0 | DB40: 6 | DC40: 0 | DD40: 4 | DE40: 4 | DF40: 4 | DG40: 4 | DH40: 4 | DJ40: 0 | DK40: 2671.133333 | DL40: 14.53333333
A41: Donavan McNabb | B41: Syracuse | C41: 1-2 | D41: 13 | E41: 99 | F41: 11 | G41: 167 | H41: 161 | I41: 41 | K41: Eagles(11), Redskins(1), Vikings(1) | M41: X | N41: Z | O41: X | Q41: 3 | R41: 5374 | S41: 3170 | T41: 37276 | U41: 58.98771865 | V41: 234 | W41: 117 | X41: 85.58413968 | Y41: 616 | Z41: 3459 | AA41: 29 | AB41: 5.61525974 | AC41: 0.04707792208 | AD41: 0.1736526946 | AE41: 410 | AG41: 95 | AH41: 46 | AI41: 17 | AJ41: 25 | AK41: 97 | AL41: 57 | AM41: 8 | AN41: 0 | AO41: 5 | AP41: 1 | AQ41: 9 | AR41: 7 | AS41: 56.25 | AT41: 1 | AU41: 1 | AV41: 6 | AW41: 0 | AX41: 0 | AY41: 0 | AZ41: 0 | BA41: 0 | BB41: 0 | BC41: 98.25 | BD41: 144.25 | BE41: 109.1538462 | BF41: 1297.558905 | BG41: 1 | BH41: D.McNabb | BI41: 2 | BJ41: 1 | BK41: 2 | BL41: 1 | BM41: 2 | BN41: 0 | BO41: 0 | BP41: 1 | BQ41: 2 | BR41: 0 | BS41: 1 | BU41: 0 | BV41: 62.98701299 | BW41: 61.53846154 | BX41: 2 | BY41: 2.065217391 | BZ41: 410 | CA41: 2.45508982 | CB41: 32.62411348 | CC41: 27.54491018 | CD41: 2.177149237 | CE41: 6.936360253 | CF41: 11.75899054 | CG41: 223.2095808 | CH41: 4.354298474 | CI41: 1.401197605 | CJ41: 0.7005988024 | CK41: 0.8028846154 | CL41: 10.17964072 | CM41: 14.97005988 | CN41: 1.449385932 | CO41: 0.9840900633 | CP41: 0.8708596948 | CQ41: 1.830712691 | CR41: Donavan McNabb | CS41: 0 | CT41: 0 | CU41: 4 | CV41: 0 | CW41: 0 | CX41: 0 | CY41: 9 | CZ41: 2 | DA41: 0 | DB41: 4 | DC41: 0 | DD41: 6 | DE41: 8 | DF41: 2 | DG41: 4 | DH41: 4 | DJ41: 1 | DK41: 2867.384615 | DL41: 18
A42: Joe Namath | B42: Alabama | C42: 1-1 | D42: 13 | E42: 65 | F42: 77 | G42: 140 | H42: 130 | I42: 42 | K42: Jets((12),Rams(1) | L42: X | N42: X | Q42: 3 | R42: 3762 | S42: 1886 | T42: 27663 | U42: 50.13290803 | V42: 173 | W42: 220 | X42: 65.46163388 | Y42: 71 | Z42: 140 | AA42: 7 | AB42: 1.971830986 | AC42: 0.0985915493 | AD42: 0.05 | AE42: 109 | AF42: 4 | AG42: 33 | AH42: 23 | AI42: 16 | AJ42: 16 | AK42: 62 | AL42: 63 | AM42: 5 | AN42: 0 | AO42: 1 | AP42: 1 | AQ42: 2 | AR42: 1 | AS42: 66.66666667 | AT42: 1 | AU42: 1 | AV42: 5 | AW42: 1 | AX42: 0 | AY42: 0 | AZ42: 1 | BA42: 1 | BB42: 1 | BC42: 97.66666667 | BD42: 150.6666667 | BE42: 74.38461538 | BF42: 876.6545826 | BG42: 11 | BH42: J.Namath | BI42: 0 | BJ42: 1 | BK42: 1 | BL42: 0 | BM42: 1 | BN42: 0 | BO42: 0 | BP42: 1 | BQ42: 1 | BR42: 6 | BS42: 3 | BT42: 4 | BU42: 8 | BV42: 49.6 | BW42: 38.46153846 | BX42: 0.7863636364 | BY42: 1.434782609 | BZ42: 157.4444444 | CA42: 1.124603175 | CB42: 41.07142857 | CC42: 16.42857143 | CD42: 5.847953216 | CE42: 7.353269537 | CF42: 14.66755037 | CG42: 197.5928571 | CH42: 4.598617757 | CI42: 1.235714286 | CJ42: 1.571428571 | CK42: 0.7692307692 | CL42: 11.42857143 | CM42: 11.42857143 | CN42: 1.006645401 | CO42: 1.088317384 | CP42: 0.9197235513 | CQ42: 0.9130116959 | CR42: Joe Namath | CS42: 0 | CT42: 0 | CU42: 0 | CV42: 8 | CW42: 8 | CX42: 6 | CY42: 0 | CZ42: 4 | DA42: 6 | DB42: 2 | DC42: 2 | DD42: 4 | DE42: 0 | DF42: 0 | DG42: 4 | DH42: 2 | DJ42: 0 | DK42: 2127.923077 | DL42: 13.30769231
A43: Mark Rypien | B43: Wash St | C43: 6-8 | D43: 11 | E43: 88 | F43: 97 , 01 | G43: 104 | H43: 78 | I43: 72 | J43: 3 | K43: Redskins(6),Browns(1),Cardinals(1+1),Eagles(1),Colts(1) | Q43: 1 | R43: 2613 | S43: 1466 | T43: 18473 | U43: 56.10409491 | V43: 115 | W43: 88 | X43: 78.93146447 | Y43: 127 | Z43: 166 | AA43: 0 | AB43: 1.307086614 | AC43: 0 | AD43: 0 | AE43: 97 | AG43: 45 | AH43: 38 | AI43: 8 | AJ43: 12 | AK43: 47 | AL43: 31 | AM43: 4 | AN43: 0 | AO43: 1 | AP43: 1 | AQ43: 5 | AR43: 2 | AS43: 71.42857143 | AT43: 0 | AU43: 0 | AV43: 2 | AW43: 0 | AX43: 0 | AY43: 0 | AZ43: 0 | BA43: 1 | BB43: 1 | BC43: 94.42857143 | BD43: 151.4285714 | BE43: 72.18181818 | BF43: 732.2608423 | BG43: 5 | BH43: M.Rypien | BI43: 1 | BJ43: 0 | BK43: 0 | BL43: 1 | BM43: 1 | BN43: 0 | BO43: 0 | BP43: 1 | BQ43: 1 | BR43: 3 | BU43: 0 | BV43: 60.25641026 | BW43: 50 | BX43: 1.306818182 | BY43: 1.184210526 | BZ43: 97 | CA43: 0.9326923077 | CB43: 45.78313253 | CC43: 36.53846154 | CD43: 3.367776502 | CE43: 7.069651741 | CF43: 12.60095498 | CG43: 177.625 | CH43: 4.401071565 | CI43: 1.105769231 | CJ43: 0.8461538462 | CK43: 0.5909090909 | CL43: 7.692307692 | CM43: 11.53846154 | CN43: 1.305204746 | CO43: 1.017412935 | CP43: 0.8802143131 | CQ43: 1.533055874 | CR43: Mark Rypien | CS43: 0 | CT43: 0 | CU43: 2 | CV43: 10 | CW43: 10 | CX43: 8 | CY43: 6 | CZ43: 4 | DA43: 2 | DB43: 0 | DC43: 0 | DD43: 4 | DE43: 4 | DF43: 0 | DG43: 0 | DH43: 2 | DJ43: 0 | DK43: 1679.363636 | DL43: 10.45454545
A44: Josh Allen | B44: Wyoming | C44: 1-7 | D44: 8 | E44: 18 | F44: 25 | G44: 128 | H44: 127 | I44: 4 | K44: Bills | L44: X | M44: X | O44: X | R44: 4088 | S44: 2615 | T44: 30102 | U44: 63.96771037 | V44: 220 | W44: 94 | X44: 94.42881605 | Y44: 871 | Z44: 4721 | AA44: 79 | AB44: 5.420206659 | AC44: 0.09070034443 | AD44: 0.6171875 | AE44: 229 | AG44: 71 | AH44: 53 | AI44: 17 | AJ44: 25 | AK44: 77 | AL44: 33 | AM44: 7 | AN44: 0 | AO44: 5 | AP44: 0 | AQ44: 6 | AR44: 6 | AS44: 50 | AT44: 0 | AU44: 0 | AV44: 4 | AW44: 1 | AX44: 1 | AY44: 0 | AZ44: 0 | BA44: 0 | BB44: 0 | BC44: 90 | BD44: 177 | BE44: 163.5 | BF44: 1350.145611 | BG44: 5 | BH44: J.Allen | BI44: 3 | BJ44: 1 | BK44: 2 | BL44: 2 | BM44: 1 | BN44: 2 | BO44: 0 | BP44: 2 | BQ44: 3 | BR44: 0 | BS44: =IF(CA44<1.5,3,(IF(CA44<2,2,1))) -> 2 | BT44: 11 | BU44: 5 | BV44: 70 | BW44: 87.5 | BX44: 2.340425532 | BY44: 1.339622642 | BZ44: 229 | CA44: 1.7890625 | CB44: 42.74193548 | CC44: 41.40625 | CD44: 2.299412916 | CE44: 7.363502935 | CF44: 11.51128107 | CG44: 235.171875 | CH44: 5.381604697 | CI44: 1.71875 | CJ44: 0.734375 | CK44: 0.9696969697 | CL44: 13.28125 | CM44: 19.53125 | CN44: 1.698385519 | CO44: 1.090875734 | CP44: 1.076320939 | CQ44: 1.800146771 | CR44: Josh Allen | CS44: 2 | CT44: 6 | CU44: 6 | CV44: 8 | CW44: 4 | CX44: 2 | CY44: 9 | CZ44: 4 | DA44: 0 | DB44: 6 | DC44: 4 | DD44: 8 | DE44: 6 | DF44: 8 | DG44: 6 | DH44: 8 | DJ44: 0 | DK44: 3762.75 | DL44: 27.5
A45: Phil Simms | B45: Morehead | C45: 1-7 | D45: 15 | E45: 79 | F45: 93 | G45: 164 | H45: 159 | I45: 54 | J45: 1 | K45: Giants | Q45: =COUNTA(L45:P45) -> 1 | R45: 4647 | S45: 2576 | T45: 33462 | U45: 55.43361308 | V45: 199 | W45: 157 | X45: 78.47849867 | Y45: 349 | Z45: 1252 | AA45: 6 | AB45: 3.58739255 | AC45: 0.01719197708 | AD45: 0.03658536585 | AE45: 477 | AG45: 93 | AH45: 65 | AI45: 11 | AJ45: 17 | AK45: 95 | AL45: 64 | AM45: 8 | AN45: 0 | AO45: 3 | AP45: 1 | AQ45: 6 | AR45: 4 | AS45: 60 | AT45: 0 | AU45: 0 | AV45: 2 | AW45: 0 | AX45: 0 | AY45: 0 | AZ45: 0 | BA45: 1 | BB45: 1 | BC45: 90 | BD45: 129 | BE45: 80.66666667 | BF45: 998.3342507 | BG45: 0 | BH45: P.Simms | BI45: 1 | BJ45: 0 | BK45: 1 | BL45: 0 | BM45: 1 | BN45: 0 | BO45: 0 | BP45: 1 | BQ45: 1 | BR45: 3 | BS45: 1 | BT45: 8 | BU45: 6 | BV45: 59.74842767 | BW45: 57.14285714 | BX45: 1.267515924 | BY45: 1.430769231 | BZ45: 477 | CA45: 2.908536585 | CB45: 41.13924051 | CC45: 39.63414634 | CD45: 3.378523779 | CE45: 7.200774693 | CF45: 12.98990683 | CG45: 204.0365854 | CH45: 4.282332688 | CI45: 1.213414634 | CJ45: 0.9573170732 | CK45: 0.752293578 | CL45: 6.707317073 | CM45: 10.36585366 | CN45: 1.271680654 | CO45: 1.050193673 | CP45: 0.8564665376 | CQ45: 1.530369055 | CR45: Phil Simms | CS45: 0 | CT45: 0 | CU45: 2 | CV45: 8 | CW45: 0 | CX45: 0 | CY45: 6 | CZ45: 4 | DA45: 2 | DB45: 4 | DC45: 0 | DD45: 4 | DE45: 2 | DF45: 0 | DG45: 0 | DH45: 2 | DJ45: 0 | DK45: 2230.8 | DL45: 13.26666667
A46: Rich Gannon | B46: Delaware | C46: 4-14 | D46: 18 | E46: 87 | F46: 4 | G46: 157 | H46: 132 | I46: 132 | J46: 1 | K46: Vikings(6), Redskins(1), Chiefs(4), Raiders6) | M46: X | N46: X | O46: X | Q46: 3 | R46: 4206 | S46: 2533 | T46: 28743 | U46: 60.22349025 | V46: 180 | W46: 104 | X46: 84.70637185 | Y46: 521 | Z46: 2449 | AA46: 21 | AB46: 4.700575816 | AC46: 0.04030710173 | AD46: 0.1337579618 | AE46: 302 | AG46: 79 | AH46: 58 | AI46: 16 | AJ46: 20 | AK46: 76 | AL46: 56 | AM46: 6 | AN46: 0 | AO46: 3 | AP46: 1 | AQ46: 4 | AR46: 3 | AS46: 57.14285714 | AT46: 0 | AU46: 0 | AV46: 4 | AW46: 2 | AX46: 0 | AY46: 2 | AZ46: 0 | BA46: 0 | BB46: 0 | BC46: 89.14285714 | BD46: 141.1428571 | BE46: 71.22222222 | BF46: 1094.079252 | BG46: 0 | BH46: R.Gannon | BI46: 2 | BJ46: 1 | BK46: 1 | BL46: 0 | BM46: 1 | BN46: 0 | BO46: 0 | BP46: 1 | BQ46: 1 | BR46: 3 | BS46: 2 | BU46: 0 | BV46: 57.57575758 | BW46: 35.29411765 | BX46: 1.730769231 | BY46: 1.362068966 | BZ46: 302 | CA46: 1.923566879 | CB46: 42.33576642 | CC46: 36.94267516 | CD46: 2.472658107 | CE46: 6.833808845 | CF46: 11.34741413 | CG46: 183.0764331 | CH46: 4.279600571 | CI46: 1.146496815 | CJ46: 0.6624203822 | CK46: 0.5432525952 | CL46: 10.1910828 | CM46: 12.7388535 | CN46: 1.511174513 | CO46: 0.9584522111 | CP46: 0.8559201141 | CQ46: 1.756835473 | CR46: Rich Gannon | CS46: 0 | CT46: 0 | CU46: 4 | CV46: 8 | CW46: 2 | CX46: 2 | CY46: 9 | CZ46: 2 | DA46: 0 | DB46: 2 | DC46: 0 | DD46: 4 | DE46: 8 | DF46: 0 | DG46: 4 | DH46: 4 | DJ46: 1 | DK46: 1596.833333 | DL46: 10
A47: Boomer Esiason | B47: Maryland | C47: 2-10 | D47: 14 | E47: 84 | F47: 97 | G47: 187 | H47: 173 | I47: 37 | K47: Bengals(9), Jets(3), Cardinals(1), Benals(1) | M47: X | N47: X | O47: X | Q47: 3 | R47: 5205 | S47: 2969 | T47: 37920 | U47: 57.04130644 | V47: 247 | W47: 184 | X47: 81.0618796 | Y47: 447 | Z47: 1598 | AA47: 7 | AB47: 3.574944072 | AC47: 0.01565995526 | AD47: 0.03743315508 | AE47: 318 | AG47: 123 | AH47: 78 | AI47: 19 | AJ47: 26 | AK47: 80 | AL47: 93 | AM47: 3 | AN47: 0 | AO47: 2 | AP47: 1 | AQ47: 3 | AR47: 2 | AS47: 60 | AT47: 0 | AU47: 0 | AV47: 4 | AW47: 1 | AX47: 1 | AY47: 1 | AZ47: 0 | BA47: 0 | BB47: 0 | BC47: 89 | BD47: 139 | BE47: 84.42857143 | BF47: 970.0727911 | BG47: 0 | BH47: B.Esiason | BI47: 2 | BJ47: 1 | BK47: 2 | BL47: 0 | BM47: 2 | BN47: 0 | BO47: 0 | BP47: 1 | BQ47: 2 | BR47: 3 | BS47: 2 | BT47: 8 | BU47: 6 | BV47: 46.24277457 | BW47: 21.42857143 | BX47: 1.342391304 | BY47: 1.576923077 | BZ47: 318 | CA47: 1.700534759 | CB47: 38.80597015 | CC47: 41.71122995 | CD47: 3.53506244 | CE47: 7.285302594 | CF47: 12.7719771 | CG47: 202.7807487 | CH47: 4.74543708 | CI47: 1.320855615 | CJ47: 0.9839572193 | CK47: 0.8348214286 | CL47: 10.16042781 | CM47: 13.90374332 | CN47: 1.352065322 | CO47: 1.071325648 | CP47: 0.9490874159 | CQ47: 1.49123439 | CR47: Boomer Esiason | CS47: 0 | CT47: 0 | CU47: 2 | CV47: 4 | CW47: 4 | CX47: 2 | CY47: 5 | CZ47: 4 | DA47: 2 | DB47: 4 | DC47: 2 | DD47: 6 | DE47: 2 | DF47: 2 | DG47: 4 | DH47: 4 | DJ47: 1 | DK47: 2708.571429 | DL47: 17.64285714
A48: Philip Rivers | B48: NC State | C48: 1-4 | D48: 17 | E48: 4 | F48: 20 | G48: 244 | H48: 240 | I48: 28 | K48: Chargers(17),Colts(1) | M48: X | N48: X | O48: X | Q48: 3 | R48: 8134 | S48: 5277 | T48: 63440 | U48: 64.87582985 | V48: 421 | W48: 209 | X48: 95.1904557 | Y48: 383 | Z48: 601 | AA48: 3 | AB48: 1.569190601 | AC48: 0.007832898172 | AD48: 0.01229508197 | AE48: 464 | AG48: 11 | AH48: 49 | AI48: 29 | AJ48: 35 | AK48: 134 | AL48: 106 | AM48: 9 | AN48: 0 | AO48: 5 | AP48: 0 | AQ48: 5 | AR48: 6 | AS48: 45.45454545 | AT48: 1 | AU48: 1 | AV48: 6 | AW48: 0 | AX48: 0 | AY48: 0 | AZ48: 0 | BA48: 0 | BB48: 0 | BC48: 85.45454545 | BD48: 160.4545455 | BE48: 101.4117647 | BF48: 446.1012163 | BG48: 11 | BH48: P.Rivers | BI48: 3 | BJ48: 2 | BK48: 2 | BL48: 0 | BM48: 1 | BN48: 0 | BO48: 1 | BP48: 2 | BQ48: 2 | BR48: 0 | BS48: 2 | BU48: 0 | BV48: 55.83333333 | BW48: 52.94117647 | BX48: 2.014354067 | BY48: 0.2244897959 | BZ48: 464 | CA48: 1.901639344 | CB48: 81.66666667 | CC48: 20.08196721 | CD48: 2.56946152 | CE48: 7.799360708 | CF48: 12.02198219 | CG48: 260 | CH48: 5.175805262 | CI48: 1.725409836 | CJ48: 0.856557377 | CK48: 0.8970588235 | CL48: 11.8852459 | CM48: 14.3442623 | CN48: 1.743791493 | CO48: 1.199840177 | CP48: 1.035161052 | CQ48: 1.73263462 | CR48: Philip Rivers | CS48: 0 | CT48: 0 | CU48: 6 | CV48: 10 | CW48: 2 | CX48: 2 | CY48: 8 | CZ48: 6 | DA48: 2 | DB48: 8 | DC48: 4 | DD48: 8 | DE48: 4 | DF48: 4 | DG48: 4 | DH48: 4 | DJ48: 0 | DK48: 3731.764706 | DL48: 24.76470588
A49: Craig Morton | B49: California | C49: 1-5:NFL 10-75:AFL | D49: 18 | E49: 65 | F49: 82 | G49: 203 | H49: 145 | I49: 52 | K49: Cowboys(10), Giants(3), Broncos(6) | L49: X | Q49: 2 | R49: 3786 | S49: 2053 | T49: 27908 | U49: 54.22609614 | V49: 183 | W49: 187 | X49: 73.51756471 | Y49: 215 | Z49: 627 | AA49: 12 | AB49: 2.91627907 | AC49: 0.05581395349 | AD49: 0.05911330049 | AE49: 405 | AF49: 1 | AG49: 68 | AH49: 45 | AI49: 12 | AJ49: 22 | AK49: 81 | AL49: 62 | AM49: 8 | AN49: 0 | AO49: 7 | AP49: 3 | AQ49: 5 | AR49: 5 | AS49: 50 | AT49: 0 | AU49: 1 | AV49: 0 | AW49: 0 | AX49: 0 | AY49: 0 | AZ49: 0 | BA49: 0 | BB49: 0 | BC49: 85 | BD49: 108 | BE49: 81.55555556 | BF49: 921.5225314 | BG49: 0 | BH49: C.Morton | BI49: 1 | BJ49: 0 | BK49: 1 | BL49: 0 | BM49: 2 | BN49: 0 | BO49: 0 | BP49: 0 | BQ49: 1 | BR49: 6 | BS49: 1 | BU49: 0 | BV49: 56.64335664 | BW49: 44.44444444 | BX49: 0.9786096257 | BY49: 1.511111111 | BZ49: 428.8235294 | CA49: 2.112431179 | CB49: 39.82300885 | CC49: 22.16748768 | CD49: 4.939249868 | CE49: 7.371368199 | CF49: 13.59376522 | CG49: 137.4778325 | CH49: 4.833597464 | CI49: 0.9014778325 | CJ49: 0.921182266 | CK49: 0.7960784314 | CL49: 5.911330049 | CM49: 10.83743842 | CN49: 1.211304807 | CO49: 1.09284205 | CP49: 0.9667194929 | CQ49: 1.140187533 | CR49: Craig Morton | CS49: 0 | CT49: 0 | CU49: 0 | CV49: 4 | CW49: 0 | CX49: 0 | CY49: 3 | CZ49: 4 | DA49: 4 | DB49: 0 | DC49: 2 | DD49: 0 | DE49: 2 | DF49: 0 | DG49: 0 | DH49: 2 | DJ49: 3 | DK49: 1550.444444 | DL49: 10.16666667
A50: Dan Fouts | B50: Oregon | C50: 3-12 | D50: 15 | E50: 73 | F50: 87 | G50: 181 | H50: 171 | I50: 42 | K50: Chargers | L50: X | N50: X | O50: X | Q50: 3 | R50: 5604 | S50: 3297 | T50: 43040 | U50: 58.83297645 | V50: 254 | W50: 242 | X50: 80.22692125 | Y50: 224 | Z50: 476 | AA50: 13 | AB50: 2.125 | AC50: 0.05803571429 | AD50: 0.07182320442 | AE50: 319 | AG50: 106 | AH50: 69 | AI50: 24 | AJ50: 26 | AK50: 86 | AL50: 84 | AM50: 6 | AN50: 0 | AO50: 2 | AP50: 0 | AQ50: 3 | AR50: 4 | AS50: 42.85714286 | AT50: 3 | AU50: 3 | AV50: 6 | AW50: 2 | AX50: 0 | AY50: 2 | AZ50: 1 | BA50: 0 | BB50: 0 | BC50: 83.85714286 | BD50: 137.8571429 | BE50: 75.33333333 | BF50: 860.664523 | BG50: 2 | BH50: D.Fouts | BI50: 2 | BJ50: 1 | BK50: 2 | BL50: 0 | BM50: 2 | BN50: 0 | BO50: 0 | BP50: 1 | BQ50: 2 | BR50: 3 | BS50: 2 | BU50: 0 | BV50: 50.58823529 | BW50: 40 | BX50: 1.049586777 | BY50: 1.536231884 | BZ50: 319 | CA50: 1.762430939 | CB50: 39.42857143 | CC50: 38.12154696 | CD50: 4.31834404 | CE50: 7.680228408 | CF50: 13.05429178 | CG50: 237.7900552 | CH50: 4.532476802 | CI50: 1.403314917 | CJ50: 1.337016575 | CK50: 0.8116591928 | CL50: 13.25966851 | CM50: 14.36464088 | CN50: 1.441648822 | CO50: 1.170057102 | CP50: 0.9064953605 | CQ50: 1.29541399 | CR50: Dan Fouts | CS50: 0 | CT50: 0 | CU50: 0 | CV50: 4 | CW50: 4 | CX50: 2 | CY50: 5 | CZ50: 6 | DA50: 4 | DB50: 6 | DC50: 2 | DD50: 6 | DE50: 0 | DF50: 2 | DG50: 6 | DH50: 4 | DJ50: 0 | DK50: 2869.333333 | DL50: 16.93333333
A51: Ron Jaworski | B51: Y'towm | C51: 2-11 | D51: 15 | E51: 74 | F51: 89 | G51: 188 | H51: 143 | I51: 60 | K51: Rams(3),Eagles(12), Dolphins(1), Chiefs(1) | N51: X | Q51: 2 | R51: 4117 | S51: 2187 | T51: 28190 | U51: 53.12120476 | V51: 179 | W51: 164 | X51: 72.7759898 | Y51: 257 | Z51: 859 | AA51: 16 | AB51: 3.342412451 | AC51: 0.06225680934 | AD51: 0.08510638298 | AE51: 363 | AG51: 72 | AH51: 37 | AI51: 17 | AJ51: 27 | AK51: 73 | AL51: 69 | AM51: 6 | AN51: 0 | AO51: 8 | AP51: 3 | AQ51: 4 | AR51: 4 | AS51: 50 | AT51: 0 | AU51: 1 | AV51: 1 | AW51: 0 | AX51: 0 | AY51: 0 | AZ51: 0 | BA51: 0 | BB51: 0 | BC51: 83 | BD51: 108 | BE51: 113.3333333 | BF51: 996.6946289 | BG51: 0 | BH51: R.Jaworski | BI51: 1 | BJ51: 1 | BK51: 2 | BL51: 0 | BM51: 2 | BN51: 0 | BO51: 0 | BP51: 0 | BQ51: 1 | BR51: 3 | BS51: 2 | BU51: 0 | BV51: 51.4084507 | BW51: 40 | BX51: 1.091463415 | BY51: 1.945945946 | BZ51: 363 | CA51: 1.930851064 | CB51: 33.94495413 | CC51: 19.68085106 | CD51: 3.983483119 | CE51: 6.847218849 | CF51: 12.88980338 | CG51: 149.9468085 | CH51: 4.347826087 | CI51: 0.9521276596 | CJ51: 0.8723404255 | CK51: 0.7580645161 | CL51: 9.042553191 | CM51: 14.36170213 | CN51: 1.156060238 | CO51: 0.9618047122 | CP51: 0.8695652174 | CQ51: 1.37912922 | CR51: Ron Jaworski | CS51: 0 | CT51: 0 | CU51: 0 | CV51: 2 | CW51: 2 | CX51: 2 | CY51: 5 | CZ51: 2 | DA51: 2 | DB51: 0 | DC51: 0 | DD51: 0 | DE51: 2 | DF51: 0 | DG51: 2 | DH51: 4 | DJ51: 3 | DK51: 1879.333333 | DL51: 11.93333333
A52: Nick Foles | B52: Arizona | C52: 3-26 | D52: 11 | E52: 12 | F52: 22 | G52: 71 | H52: 58 | I52: 106 | K52: Eagles(3+2),Cardinals(1),Chiefs(1),Jaquars(1),Bears(2),Colts(1) | O52: X | Q52: 1 | R52: 2087 | S52: 1302 | T52: 14227 | U52: 62.38620029 | V52: 82 | W52: 47 | X52: 86.18930682 | Y52: 151 | Z52: 407 | AA52: 6 | AB52: 2.695364238 | AC52: 0.03973509934 | AD52: 0.08450704225 | AE52: 127 | AG52: 36 | AH52: 23 | AI52: 11 | AJ52: 13 | AK52: 29 | AL52: 29 | AM52: 0 | AN52: 0 | AO52: 1 | AP52: 1 | AQ52: 4 | AR52: 2 | AS52: 66.66666667 | AT52: 0 | AU52: 0 | AV52: 1 | AW52: 0 | AX52: 0 | AY52: 0 | AZ52: 0 | BA52: 1 | BB52: 1 | BC52: 81.66666667 | BD52: 143.6666667 | BE52: 76.18181818 | BF52: 844.948396 | BG52: 0 | BH52: N.Foles | BI52: 2 | BJ52: 0 | BK52: 0 | BL52: 0 | BM52: 2 | BN52: 0 | BO52: 0 | BP52: 1 | BQ52: 1 | BR52: 0 | BS52: 2 | BU52: 0 | BV52: 50 | BW52: 0 | BX52: 1.744680851 | BY52: 1.565217391 | BZ52: 127 | CA52: 1.788732394 | CB52: 38.98305085 | CC52: 32.3943662 | CD52: 2.252036416 | CE52: 6.816962147 | CF52: 10.92703533 | CG52: 200.3802817 | CH52: 3.929084811 | CI52: 1.154929577 | CJ52: 0.661971831 | CK52: 0.4011299435 | CL52: 15.49295775 | CM52: 18.30985915 | CN52: 1.619310014 | CO52: 0.9542405367 | CP52: 0.7858169621 | CQ52: 1.811990896 | CR52: Nick Foles | CS52: 0 | CT52: 0 | CU52: 4 | CV52: 4 | CW52: 4 | CX52: 2 | CY52: 9 | CZ52: 2 | DA52: 0 | DB52: 4 | DC52: 0 | DD52: 4 | DE52: 8 | DF52: 0 | DG52: 8 | DH52: 8 | DJ52: 0 | DK52: 1293.363636 | DL52: 7.454545455
A53: Brad Johnson | B53: FL State | C53: 9-3 | D53: 15 | E53: 94 | F53: 8 | G53: 177 | H53: 125 | I53: 63 | K53: Vikings(7),Redskins(2), Bucs(4),Cowboys(2) | L53: X | Q53: 2 | R53: 4326 | S53: 2668 | T53: 29054 | U53: 61.67360148 | V53: 166 | W53: 122 | X53: 82.50211897 | Y53: 276 | Z53: 657 | AA53: 8 | AB53: 2.380434783 | AC53: 0.02898550725 | AD53: 0.04519774011 | AE53: 251 | AG53: 64 | AH53: 43 | AI53: 14 | AJ53: 27 | AK53: 72 | AL53: 53 | AM53: 8 | AN53: 0 | AO53: 2 | AP53: 1 | AQ53: 4 | AR53: 3 | AS53: 57.14285714 | AT53: 0 | AU53: 0 | AV53: 2 | AW53: 0 | AX53: 0 | AY53: 0 | AZ53: 0 | BA53: 1 | BB53: 0 | BC53: 81.14285714 | BD53: 127.1428571 | BE53: 77 | BF53: 835.078347 | BG53: 0 | BH53: B.Johnson | BI53: 2 | BJ53: 0 | BK53: 2 | BL53: 0 | BM53: 1 | BN53: 0 | BO53: 0 | BP53: 0 | BQ53: 1 | BR53: 0 | BS53: 3 | BT53: 9 | BU53: 6 | BV53: 57.6 | BW53: 53.33333333 | BX53: 1.360655738 | BY53: 1.488372093 | BZ53: 251 | CA53: 1.418079096 | CB53: 40.18691589 | CC53: 24.29378531 | CD53: 2.820157189 | CE53: 6.716134998 | CF53: 10.8898051 | CG53: 164.1468927 | CH53: 3.837263061 | CI53: 0.9378531073 | CJ53: 0.6892655367 | CK53: 0.7375 | CL53: 7.90960452 | CM53: 15.25423729 | CN53: 1.583680074 | CO53: 0.9290337494 | CP53: 0.7674526121 | CQ53: 1.669960703 | CR53: Brad Johnson | CS53: 0 | CT53: 0 | CU53: 2 | CV53: 4 | CW53: 6 | CX53: 4 | CY53: 8 | CZ53: 2 | DA53: 0 | DB53: 0 | DC53: 0 | DD53: 0 | DE53: 8 | DF53: 0 | DG53: 0 | DH53: 6 | DJ53: 0 | DK53: 1936.933333 | DL53: 11.06666667
A54: George Blanda | B54: Kentucky | C54: 12-8 | D54: 27 | E54: 49 | F54: 75 | G54: 340 | H54: 109 | I54: 16 | J54: 1 | K54: Bears(10), Oilers(7), Raiders(9) | Q54: 1 | R54: 4007 | S54: 1911 | T54: 25920 | U54: 47.69153981 | V54: 236 | W54: 277 | X54: 59.60766575 | Y54: 135 | Z54: 344 | AA54: 9 | AB54: 2.548148148 | AC54: 0.06666666667 | AD54: 0.02647058824 | AE54: 26 | AF54: 17 | AG54: 47 | AH54: 45 | AI54: 17 | AJ54: 17 | AK54: 53 | AL54: 51 | AM54: 4 | AN54: 0 | AO54: 3 | AP54: 0 | AQ54: 2 | AR54: 2 | AS54: 50 | AT54: 0 | AU54: 0 | AV54: 4 | AW54: 1 | AX54: 0 | AY54: 0 | AZ54: 1 | BA54: 0 | BB54: 0 | BC54: 80 | BD54: 133 | BE54: 36.11111111 | BF54: 745.5191451 | BG54: 31 | BH54: G.Blanda | BI54: 0 | BJ54: 1 | BK54: 1 | BL54: 0 | BM54: 1 | BN54: 0 | BO54: 0 | BP54: 0 | BQ54: 3 | BR54: 9 | BS54: 3 | BU54: 0 | BV54: 50.96153846 | BW54: 15.38461538 | BX54: 0.8519855596 | BY54: 1.044444444 | BZ54: 70.2 | CA54: 0.2064705882 | CB54: 48.91304348 | CC54: 13.23529412 | CD54: 6.912902421 | CE54: 6.46867981 | CF54: 13.56357928 | CG54: 76.23529412 | CH54: 5.889693037 | CI54: 0.6941176471 | CJ54: 0.8147058824 | CK54: 0.9550561798 | CL54: 5 | CM54: 5 | CN54: 0.8845769903 | CO54: 0.8671699526 | CP54: 1.177938607 | CQ54: 0.6467743948 | CR54: George Blanda | CS54: 0 | CT54: 0 | CU54: 0 | CV54: 10 | CW54: 10 | CX54: 10 | CY54: 0 | CZ54: 0 | DA54: 4 | DB54: 0 | DC54: 6 | DD54: 0 | DE54: 4 | DF54: 8 | DG54: 0 | DH54: 0 | DJ54: 0 | DK54: 960 | DL54: 8.740740741
A55: Steve McNair | B55: Alcorn St | C55: 1-3 | D55: 13 | E55: 95 | F55: 7 | G55: 161 | H55: 153 | I55: 47 | K55: Oilers(2),Titans(9), Ravens(2) | M55: X | N55: X | O55: X | Q55: 3 | R55: 4544 | S55: 2733 | T55: 31304 | U55: 60.14524648 | V55: 174 | W55: 119 | X55: 82.76115023 | Y55: 669 | Z55: 3590 | AA55: 37 | AB55: 5.366218236 | AC55: 0.0553064275 | AD55: 0.2298136646 | AE55: 254 | AG55: 98 | AH55: 67 | AI55: 17 | AJ55: 23 | AK55: 91 | AL55: 62 | AM55: 5 | AN55: 0 | AO55: 4 | AP55: 1 | AQ55: 5 | AR55: 5 | AS55: 50 | AT55: 2 | AU55: 2 | AV55: 3 | AW55: 0 | AX55: 1 | AY55: 0 | AZ55: 0 | BA55: 0 | BB55: 0 | BC55: 80 | BD55: 129 | BE55: 85.46153846 | BF55: 1184.654015 | BG55: 0 | BH55: S.McNair | BI55: 2 | BJ55: 1 | BK55: 1 | BL55: 0 | BM55: 1 | BN55: 0 | BO55: 0 | BP55: 1 | BQ55: 1 | BR55: 0 | BS55: 2 | BU55: 0 | BV55: 59.47712418 | BW55: 38.46153846 | BX55: 1.462184874 | BY55: 1.462686567 | BZ55: 254 | CA55: 1.577639752 | CB55: 40.60606061 | CC55: 41.61490683 | CD55: 2.618838028 | CE55: 6.889084507 | CF55: 11.45407977 | CG55: 194.4347826 | CH55: 3.829225352 | CI55: 1.080745342 | CJ55: 0.7391304348 | CK55: 0.7740384615 | CL55: 10.55900621 | CM55: 14.28571429 | CN55: 1.507262324 | CO55: 0.9722711268 | CP55: 0.7658450704 | CQ55: 1.720290493 | CR55: Steve McNair | CS55: 0 | CT55: 0 | CU55: 2 | CV55: 6 | CW55: 6 | CX55: 4 | CY55: 8 | CZ55: 2 | DA55: 0 | DB55: 2 | DC55: 0 | DD55: 2 | DE55: 6 | DF55: 0 | DG55: 4 | DH55: 4 | DJ55: 1 | DK55: 2408 | DL55: 13.38461538
A56: Matt Ryan | B56: Boston C | C56: 3-1 | D56: 15 | E56: 8 | F56: 22 | G56: 234 | H56: 234 | I56: 8 | K56: Falcons(14),Colts(1) | L56: X | O56: X | Q56: 2 | R56: 8464 | S56: 5551 | T56: 62792 | U56: 65.58364839 | V56: 381 | W56: 183 | X56: 93.6436673 | Y56: 514 | Z56: 1539 | AA56: 13 | AB56: 2.994163424 | AC56: 0.02529182879 | AD56: 0.05555555556 | AE56: 488 | AG56: 96 | AH56: 44 | AI56: 38 | AJ56: 46 | AK56: 124 | AL56: 109 | AM56: 7 | AN56: 0 | AO56: 3 | AP56: 1 | AQ56: 3 | AR56: 4 | AS56: 42.85714286 | AT56: 1 | AU56: 1 | AV56: 4 | AW56: 1 | AX56: 0 | AY56: 1 | AZ56: 0 | BA56: 0 | BB56: 0 | BC56: 79.85714286 | BD56: 148.8571429 | BE56: 113.6666667 | BF56: 978.8082822 | BG56: 9 | BH56: M.Ryan | BI56: 3 | BJ56: 2 | BK56: 3 | BL56: 0 | BM56: 2 | BN56: 0 | BO56: 0 | BP56: 2 | BQ56: 3 | BR56: 0 | BS56: 1 | BU56: 0 | BV56: 53.21888412 | BW56: 46.66666667 | BX56: 2.081967213 | BY56: 2.181818182 | BZ56: 488 | CA56: 2.085470085 | CB56: 31.42857143 | CC56: 18.8034188 | CD56: 2.162098299 | CE56: 7.418714556 | CF56: 11.31183571 | CG56: 268.3418803 | CH56: 4.501417769 | CI56: 1.628205128 | CJ56: 0.7820512821 | CK56: 0.9669421488 | CL56: 16.23931624 | CM56: 19.65811966 | CN56: 1.77918242 | CO56: 1.104678639 | CP56: 0.9002835539 | CQ56: 1.834475425 | CR56: Matt Ryan | CS56: 0 | CT56: 0 | CU56: 6 | CV56: 0 | CW56: 0 | CX56: 0 | CY56: 9 | CZ56: 4 | DA56: 0 | DB56: 8 | DC56: 2 | DD56: 8 | DE56: 6 | DF56: 8 | DG56: 8 | DH56: 8 | DJ56: 1 | DK56: 4186.133333 | DL56: 25.4
A57: Andrew Luck | B57: Stanford | C57: 1-1 | D57: 6 | E57: 12 | F57: 18 | G57: 86 | H57: 86 | I57: 26 | J57: 1 | K57: Colts | L57: X | N57: X | O57: X | P57: X | Q57: 4 | R57: 3290 | S57: 2000 | T57: 23671 | U57: 60.79027356 | V57: 171 | W57: 83 | X57: 89.53394124 | Y57: 332 | Z57: 1590 | AA57: 14 | AB57: 4.789156627 | AC57: 0.0421686747 | AD57: 0.1627906977 | AE57: 174 | AG57: 44 | AH57: 29 | AI57: 16 | AJ57: 20 | AK57: 53 | AL57: 33 | AM57: 5 | AN57: 0 | AO57: 2 | AP57: 0 | AQ57: 4 | AR57: 4 | AS57: 50 | AT57: 0 | AU57: 0 | AV57: 4 | AW57: 0 | AX57: 0 | AY57: 0 | AZ57: 0 | BA57: 0 | BB57: 0 | BC57: 79 | BD57: 159 | BE57: 133.3333333 | BF57: 1222.63176 | BG57: 12 | BH57: A.Luck | BI57: 2 | BJ57: 1 | BK57: 1 | BL57: 1 | BM57: 2 | BN57: 4 | BO57: 0 | BP57: 2 | BQ57: 1 | BR57: 0 | BS57: 1 | BU57: 0 | BV57: 61.62790698 | BW57: 100 | BX57: 2.060240964 | BY57: 1.517241379 | BZ57: 174 | CA57: 2.023255814 | CB57: 39.7260274 | CC57: 33.72093023 | CD57: 2.522796353 | CE57: 7.194832827 | CF57: 11.8355 | CG57: 275.244186 | CH57: 5.197568389 | CI57: 1.988372093 | CJ57: 0.9651162791 | CK57: 0.7678571429 | CL57: 18.60465116 | CM57: 23.25581395 | CN57: 1.539513678 | CO57: 1.048708207 | CP57: 1.039513678 | CQ57: 1.744300912 | CR57: Andrew Luck | CS57: 0 | CT57: 10 | CU57: 6 | CV57: 4 | CW57: 0 | CX57: 0 | CY57: 8 | CZ57: 4 | DA57: 0 | DB57: 10 | DC57: 4 | DD57: 8 | DE57: 2 | DF57: 0 | DG57: 10 | DH57: 10 | DJ57: 0 | DK57: 3945.166667 | DL57: 28.5
A58: Doug Williams | B58: Grambling | C58: 1-17 | D58: 12 | E58: 78 | F58: 89 | G58: 88 | H58: 81 | I58: 104 | J58: 3 | K58: Bucaneers(5), Redskins(4) | L58: X | M58: X | O58: X | Q58: 3 | R58: 2507 | S58: 1240 | T58: 16998 | U58: 49.46150778 | V58: 100 | W58: 93 | X58: 69.39153703 | Y58: 220 | Z58: 884 | AA58: 15 | AB58: 4.018181818 | AC58: 0.06818181818 | AD58: 0.1704545455 | AE58: 84 | AG58: 41 | AH58: 29 | AI58: 17 | AJ58: 21 | AK58: 38 | AL58: 42 | AM58: 2 | AN58: 0 | AO58: 3 | AP58: 1 | AQ58: 4 | AR58: 3 | AS58: 57.14285714 | AT58: 0 | AU58: 1 | AV58: 0 | AW58: 0 | AX58: 0 | AY58: 0 | AZ58: 0 | BA58: 1 | BB58: 1 | BC58: 78.14285714 | BD58: 148.1428571 | BE58: 90.33333333 | BF58: 1001.236306 | BG58: 7 | BH58: D.Williams | BI58: 0 | BJ58: 1 | BK58: 1 | BL58: 0 | BM58: 1 | BN58: 0 | BO58: 0 | BP58: 1 | BQ58: 1 | BR58: 3 | BS58: 3 | BT58: 10 | BU58: 6 | BV58: 47.5 | BW58: 22.22222222 | BX58: 1.075268817 | BY58: 1.413793103 | BZ58: 84 | CA58: 0.9545454545 | CB58: 41.42857143 | CC58: 32.95454545 | CD58: 3.709613083 | CE58: 6.780215397 | CF58: 13.70806452 | CG58: 193.1590909 | CH58: 3.988831272 | CI58: 1.136363636 | CJ58: 1.056818182 | CK58: 0.4583333333 | CL58: 19.31818182 | CM58: 23.86363636 | CN58: 0.9730753889 | CO58: 0.9450538492 | CP58: 0.7977662545 | CQ58: 1.447596729 | CR58: Doug Williams | CS58: 0 | CT58: 0 | CU58: 0 | CV58: 8 | CW58: 10 | CX58: 8 | CY58: 5 | CZ58: 2 | DA58: 4 | DB58: 2 | DC58: 0 | DD58: 4 | DE58: 0 | DF58: 0 | DG58: 10 | DH58: 10 | DJ58: 0 | DK58: 1416.5 | DL58: 8.333333333
A59: Jim McMahon | B59: BYU | C59: 1-5 | D59: 15 | E59: 82 | F59: 96 | G59: 119 | H59: 97 | I59: 120 | K59: Bears(7),Chargers(1), Eagles(3),Vikings(1), Cardinals(1),Packers(2) | L59: X | M59: X | Q59: 3 | R59: 2573 | S59: 1492 | T59: 18148 | U59: 57.98678585 | V59: 100 | W59: 90 | X59: 78.17479596 | Y59: 338 | Z59: 1631 | AA59: 16 | AB59: 4.825443787 | AC59: 0.04733727811 | AD59: 0.1344537815 | AE59: 226 | AG59: 30 | AH59: 19 | AI59: 11 | AJ59: 14 | AK59: 67 | AL59: 30 | AM59: 9 | AN59: 0 | AO59: 5 | AP59: 1 | AQ59: 3 | AR59: 3 | AS59: 50 | AT59: 0 | AU59: 0 | AV59: 1 | AW59: 0 | AX59: 0 | AY59: 0 | AZ59: 0 | BA59: 1 | BB59: 0 | BC59: 78 | BD59: 117 | BE59: 90 | BF59: 1151.152053 | BG59: 4 | BH59: J.McMahon | BI59: 1 | BJ59: 0 | BK59: 0 | BL59: 1 | BM59: 2 | BN59: 0 | BO59: 0 | BP59: 0 | BQ59: 1 | BR59: 3 | BS59: 2 | BT59: 4 | BU59: 8 | BV59: 69.07216495 | BW59: 60 | BX59: 1.111111111 | BY59: 1.578947368 | BZ59: 226 | CA59: 1.899159664 | CB59: 38.7755102 | CC59: 15.96638655 | CD59: 3.497862417 | CE59: 7.053245239 | CF59: 12.16353887 | CG59: 152.5042017 | CH59: 3.886513797 | CI59: 0.8403361345 | CJ59: 0.756302521 | CK59: 0.4979079498 | CL59: 9.243697479 | CM59: 11.76470588 | CN59: 1.399339293 | CO59: 1.01331131 | CP59: 0.7773027594 | CQ59: 1.500534396 | CR59: Jim McMahon | CS59: 2 | CT59: 0 | CU59: 0 | CV59: 4 | CW59: 2 | CX59: 2 | CY59: 6 | CZ59: 4 | DA59: 2 | DB59: 0 | DC59: 0 | DD59: 0 | DE59: 6 | DF59: 0 | DG59: 2 | DH59: 2 | DJ59: 0 | DK59: 1209.866667 | DL59: 6.666666667
A60: Danny White | B60: AZ State | C60: 3-53 | D60: 13 | E60: 76 | F60: 88 | G60: 166 | H60: 92 | I60: 42 | K60: Cowboys | Q60: 1 | R60: 2950 | S60: 1781 | T60: 21959 | U60: 60.37288136 | V60: 155 | W60: 132 | X60: 82.27966102 | Y60: 159 | Z60: 482 | AA60: 8 | AB60: 3.031446541 | AC60: 0.05031446541 | AD60: 0.04819277108 | AE60: 241 | AG60: 68 | AH60: 43 | AI60: 11 | AJ60: 14 | AK60: 62 | AL60: 30 | AM60: 7 | AN60: 0 | AO60: 6 | AP60: 0 | AQ60: 5 | AR60: 5 | AS60: 50 | AT60: 0 | AU60: 0 | AV60: 1 | AW60: 0 | AX60: 0 | AY60: 0 | AZ60: 0 | BA60: 0 | BB60: 0 | BC60: 78 | BD60: 116 | BE60: 77.15384615 | BF60: 929.9373301 | BG60: 0 | BH60: D.White | BI60: 2 | BJ60: 0 | BK60: 0 | BL60: 1 | BM60: 2 | BN60: 0 | BO60: 0 | BP60: 0 | BQ60: 1 | BR60: 3 | BS60: 3 | BU60: 0 | BV60: 67.39130435 | BW60: 53.84615385 | BX60: 1.174242424 | BY60: 1.581395349 | BZ60: 241 | CA60: 1.451807229 | CB60: 38.73873874 | CC60: 25.90361446 | CD60: 4.474576271 | CE60: 7.443728814 | CF60: 12.32959012 | CG60: 132.2831325 | CH60: 5.254237288 | CI60: 0.9337349398 | CJ60: 0.7951807229 | CK60: 0.7980769231 | CL60: 6.626506024 | CM60: 8.43373494 | CN60: 1.518644068 | CO60: 1.110932203 | CP60: 1.050847458 | CQ60: 1.256355932 | CR60: Danny White | CS60: 2 | CT60: 0 | CU60: 0 | CV60: 4 | CW60: 6 | CX60: 4 | CY60: 5 | CZ60: 4 | DA60: 2 | DB60: 0 | DC60: 4 | DD60: 0 | DE60: 6 | DF60: 0 | DG60: 0 | DH60: 0 | DJ60: 0 | DK60: 1689.153846 | DL60: 11.92307692
A61: Matt Hasselbeck | B61: Boston C | C61: 6-34 | D61: 17 | E61: 99 | F61: 15 | G61: 209 | H61: 160 | I61: 112 | K61: Packers(2), Seahawks(10), Titans(2) | Q61: 1 | R61: 5330 | S61: 3222 | T61: 36638 | U61: 60.45028143 | V61: 212 | W61: 153 | X61: 82.39759225 | Y61: 365 | Z61: 1231 | AA61: 8 | AB61: 3.37260274 | AC61: 0.02191780822 | AD61: 0.03827751196 | AE61: 360 | AG61: 67 | AH61: 49 | AI61: 17 | AJ61: 26 | AK61: 85 | AL61: 75 | AM61: 6 | AN61: 0 | AO61: 6 | AP61: 0 | AQ61: 5 | AR61: 6 | AS61: 45.45454545 | AT61: 2 | AU61: 2 | AV61: 3 | AW61: 0 | AX61: 0 | AY61: 0 | AZ61: 0 | BA61: 0 | BB61: 0 | BC61: 77.45454545 | BD61: 118.4545455 | BE61: 83.29411765 | BF61: 926.1799374 | BG61: 0 | BH61: M.Hasselbeck | BI61: 2 | BJ61: 1 | BK61: 2 | BL61: 0 | BM61: 1 | BN61: 0 | BO61: 0 | BP61: 1 | BQ61: 1 | BR61: 0 | BS61: 2 | BU61: 0 | BV61: 53.125 | BW61: 35.29411765 | BX61: 1.385620915 | BY61: 1.367346939 | BZ61: 360 | CA61: 1.722488038 | CB61: 42.24137931 | CC61: 23.44497608 | CD61: 2.87054409 | CE61: 6.873921201 | CF61: 11.37119801 | CG61: 175.3014354 | CH61: 3.977485929 | CI61: 1.014354067 | CJ61: 0.7320574163 | CK61: 0.6510903427 | CL61: 8.133971292 | CM61: 12.44019139 | CN61: 1.522514071 | CO61: 0.9684803002 | CP61: 0.7954971857 | CQ61: 1.657363977 | CR61: Matt Hasselbeck | CS61: 0 | CT61: 0 | CU61: 2 | CV61: 8 | CW61: 4 | CX61: 2 | CY61: 8 | CZ61: 2 | DA61: 0 | DB61: 0 | DC61: 0 | DD61: 2 | DE61: 6 | DF61: 0 | DG61: 2 | DH61: 4 | DJ61: 0 | DK61: 2155.176471 | DL61: 12.47058824
A62: Drew Bledsoe | B62: WA State | C62: 1-1 | D62: 14 | E62: 93 | F62: 6 | G62: 194 | H62: 193 | I62: 30 | K62: Patroits(9), Bills(3), Cowboys(2) | L62: X | O62: X | Q62: 2 | R62: 6717 | S62: 3839 | T62: 44611 | U62: 57.15349114 | V62: 251 | W62: 206 | X62: 77.06162225 | Y62: 385 | Z62: 764 | AA62: 10 | AB62: 1.984415584 | AC62: 0.02597402597 | AD62: 0.05154639175 | AE62: 467 | AG62: 123 | AH62: 88 | AI62: 24 | AJ62: 31 | AK62: 98 | AL62: 95 | AM62: 6 | AN62: 0 | AO62: 3 | AP62: 1 | AQ62: 3 | AR62: 3 | AS62: 50 | AT62: 0 | AU62: 0 | AV62: 4 | AW62: 0 | AX62: 0 | AY62: 0 | AZ62: 0 | BA62: 0 | BB62: 0 | BC62: 75 | BD62: 121 | BE62: 72.57142857 | BF62: 802.8161612 | BG62: 0 | BH62: D.Bledsoe | BI62: 1 | BJ62: 1 | BK62: 2 | BL62: 0 | BM62: 1 | BN62: 0 | BO62: 0 | BP62: 1 | BQ62: 2 | BR62: 0 | BS62: 1 | BU62: 0 | BV62: 50.77720207 | BW62: 42.85714286 | BX62: 1.218446602 | BY62: 1.397727273 | BZ62: 467 | CA62: 2.407216495 | CB62: 41.70616114 | CC62: 45.36082474 | CD62: 3.066845318 | CE62: 6.641506625 | CF62: 11.62047408 | CG62: 229.9536082 | CH62: 3.736787256 | CI62: 1.293814433 | CJ62: 1.06185567 | CK62: 0.8660714286 | CL62: 12.37113402 | CM62: 15.97938144 | CN62: 1.357674557 | CO62: 0.9103766562 | CP62: 0.7473574512 | CQ62: 1.608288671 | CR62: Drew Bledsoe | CS62: 0 | CT62: 0 | CU62: 2 | CV62: 8 | CW62: 0 | CX62: 0 | CY62: 6 | CZ62: 2 | DA62: 0 | DB62: 6 | DC62: 0 | DD62: 4 | DE62: 0 | DF62: 4 | DG62: 6 | DH62: 6 | DJ62: 1 | DK62: 3186.5 | DL62: 17.92857143
A63: Randall Cunningham | B63: UNLV | C63: 2-9 | D63: 16 | E63: 85 | F63: 1 | G63: 161 | H63: 135 | I63: 95 | K63: Eagles(11), Vikings(3), Cowboys(1), Ravens(1) | L63: X | M63: X | N63: X | O63: X | Q63: 4 | R63: 4289 | S63: 2429 | T63: 29979 | U63: 56.63324784 | V63: 207 | W63: 134 | X63: 81.47149685 | Y63: 775 | Z63: 4928 | AA63: 35 | AB63: 6.358709677 | AC63: 0.04516129032 | AD63: 0.2173913043 | AE63: 484 | AG63: 105 | AH63: 68 | AI63: 21 | AJ63: 26 | AK63: 82 | AL63: 52 | AM63: 9 | AN63: 0 | AO63: 1 | AP63: 0 | AQ63: 3 | AR63: 5 | AS63: 37.5 | AT63: 2 | AU63: 2 | AV63: 4 | AW63: 1 | AX63: 0 | AY63: 1 | AZ63: 0 | BA63: 0 | BB63: 0 | BC63: 73.5 | BD63: 117.5 | BE63: 72.25 | BF63: 1262.112628 | BG63: 4 | BH63: R.Cunningham | BI63: 2 | BJ63: 1 | BK63: 2 | BL63: 1 | BM63: 2 | BN63: 0 | BO63: 0 | BP63: 1 | BQ63: 1 | BR63: 3 | BS63: 1 | BU63: 0 | BV63: 61.19402985 | BW63: 56.25 | BX63: 1.544776119 | BY63: 1.544117647 | BZ63: 484 | CA63: 3.00621118 | CB63: 39.30635838 | CC63: 42.23602484 | CD63: 3.124271392 | CE63: 6.989741198 | CF63: 12.3421161 | CG63: 186.2049689 | CH63: 4.826299837 | CI63: 1.285714286 | CJ63: 0.8322981366 | CK63: 0.62890625 | CL63: 13.04347826 | CM63: 16.14906832 | CN63: 1.331662392 | CO63: 0.9974352996 | CP63: 0.9652599674 | CQ63: 1.593932152 | CR63: Randall Cunningham | CS63: 0 | CT63: 0 | CU63: 2 | CV63: 4 | CW63: 0 | CX63: 0 | CY63: 6 | CZ63: 2 | DA63: 2 | DB63: 2 | DC63: 2 | DD63: 4 | DE63: 4 | DF63: 0 | DG63: 6 | DH63: 6 | DJ63: 0 | DK63: 1873.6875 | DL63: 12.9375
A64: Warren Moon | B64: Wash. | C64: 0-0 | D64: 17 | E64: 84 | F64: 0 | G64: 208 | H64: 203 | I64: 64 | K64: Oilers(10),Vikings(3), Seaawks(2),Chiefs(2) | L64: X | N64: X | O64: X | Q64: 3 | R64: 6823 | S64: 3988 | T64: 49325 | U64: 58.44936245 | V64: 291 | W64: 233 | X64: 80.90069129 | Y64: 543 | Z64: 1736 | AA64: 22 | AB64: 3.197053407 | AC64: 0.04051565378 | AD64: 0.1057692308 | AE64: 458 | AG64: 161 | AH64: 105 | AI64: 26 | AJ64: 35 | AK64: 102 | AL64: 101 | AM64: 8 | AN64: 0 | AO64: 3 | AP64: 0 | AQ64: 3 | AR64: 7 | AS64: 30 | AT64: 1 | AU64: 2 | AV64: 9 | AW64: 0 | AX64: 0 | AY64: 0 | AZ64: 1 | BA64: 0 | BB64: 0 | BC64: 70 | BD64: 115 | BE64: 79.64705882 | BF64: 938.7094286 | BG64: 0 | BH64: W.Moon | BI64: 2 | BJ64: 2 | BK64: 2 | BL64: 0 | BM64: 2 | BN64: 0 | BO64: 0 | BP64: 1 | BQ64: 1 | BR64: 3 | BS64: 1 | BU64: 0 | BV64: 50.24630542 | BW64: 47.05882353 | BX64: 1.248927039 | BY64: 1.533333333 | BZ64: 458 | CA64: 2.201923077 | CB64: 39.47368421 | CC64: 50.48076923 | CD64: 3.414920123 | CE64: 7.229224681 | CF64: 12.36835507 | CG64: 237.1394231 | CH64: 4.264986077 | CI64: 1.399038462 | CJ64: 1.120192308 | CK64: 0.7647058824 | CL64: 12.5 | CM64: 16.82692308 | CN64: 1.422468123 | CO64: 1.05730617 | CP64: 0.8529972153 | CQ64: 1.521269969 | CR64: Warren Moon | CS64: 0 | CT64: 0 | CU64: 2 | CV64: 4 | CW64: 0 | CX64: 0 | CY64: 6 | CZ64: 4 | DA64: 2 | DB64: 6 | DC64: 0 | DD64: 6 | DE64: 0 | DF64: 0 | DG64: 6 | DH64: 6 | DJ64: 0 | DK64: 2901.470588 | DL64: 17.11764706
A65: Charlie Conerly | B65: Mississippi | C65: 13-7 | D65: 14 | E65: 48 | F65: 61 | G65: 161 | H65: 107 | I65: 9 | J65: 1 | K65: Giants | Q65: 1 | R65: 2833 | S65: 1418 | T65: 19488 | U65: 50.05294741 | V65: 173 | W65: 167 | X65: 68.24994117 | Y65: 270 | Z65: 685 | AA65: 10 | AB65: 2.537037037 | AC65: 0.03703703704 | AD65: 0.06211180124 | AE65: 0 | AF65: 14 | AG65: 54 | AH65: 28 | AI65: 15 | AJ65: 19 | AK65: 58 | AL65: 31 | AM65: 8 | AN65: 0 | AO65: 11 | AP65: 3 | AQ65: 1 | AR65: 3 | AS65: 25 | AT65: 0 | AU65: 0 | AV65: 2 | AW65: 0 | AX65: 0 | AY65: 0 | AZ65: 0 | BA65: 1 | BB65: 0 | BC65: 69 | BD65: 112 | BE65: 166 | BF65: 935.2950401 | BG65: 3 | BH65: C.Conerly | BI65: 0 | BJ65: 1 | BK65: 1 | BL65: 1 | BM65: 2 | BN65: 0 | BO65: 0 | BP65: 1 | BQ65: 3 | BR65: 9 | BS65: 2 | BT65: 9 | BU65: 6 | BV65: 65.16853933 | BW65: 61.53846154 | BX65: 1.035928144 | BY65: 1.928571429 | BZ65: 257.6 | CA65: 1.6 | CB65: 34.14634146 | CC65: 17.39130435 | CD65: 5.894811154 | CE65: 6.878926933 | CF65: 13.74330042 | CG65: 121.0434783 | CH65: 6.106600777 | CI65: 1.074534161 | CJ65: 1.037267081 | CK65: 0.9470588235 | CL65: 9.316770186 | CM65: 11.80124224 | CN65: 1.00264737 | CO65: 0.9697317331 | CP65: 1.221320155 | CQ65: 0.9012972114 | CR65: Charlie Conerly | CS65: 2 | CT65: 0 | CU65: 0 | CV65: 2 | CW65: 4 | CX65: 4 | CY65: 0 | CZ65: 2 | DA65: 4 | DB65: 0 | DC65: 8 | DD65: 2 | DE65: 0 | DF65: 6 | DG65: 2 | DH65: 2 | DJ65: 2 | DK65: 1392 | DL65: 12.35714286
A66: John Brodie | B66: Stanford | C66: 1-3 | D66: 17 | E66: 57 | F66: 73 | G66: 201 | H66: 159 | I66: 31 | K66: 49ers | N66: X | Q66: 2 | R66: 4491 | S66: 2469 | T66: 31548 | U66: 54.97661991 | V66: 214 | W66: 224 | X66: 72.26814741 | Y66: 235 | Z66: 1167 | AA66: 22 | AB66: 4.965957447 | AC66: 0.09361702128 | AD66: 0.1094527363 | AE66: 141 | AF66: 7 | AG66: 48 | AH66: 33 | AI66: 21 | AJ66: 22 | AK66: 74 | AL66: 77 | AM66: 6 | AN66: 0 | AO66: 3 | AP66: 0 | AQ66: 2 | AR66: 3 | AS66: 40 | AT66: 0 | AU66: 0 | AV66: 2 | AW66: 1 | AX66: 1 | AY66: 1 | AZ66: 0 | BA66: 0 | BB66: 0 | BC66: 69 | BD66: 114 | BE66: 61.64705882 | BF66: 1099.777684 | BG66: 0 | BH66: J.Brodie | BI66: 1 | BJ66: 1 | BK66: 1 | BL66: 0 | BM66: 1 | BN66: 0 | BO66: 0 | BP66: 1 | BQ66: 2 | BR66: 6 | BS66: 3 | BU66: 0 | BV66: 49.00662252 | BW66: 35.29411765 | BX66: 0.9553571429 | BY66: 1.454545455 | BZ66: 239.7 | CA66: 1.192537313 | CB66: 40.74074074 | CC66: 16.41791045 | CD66: 4.987753284 | CE66: 7.024716099 | CF66: 12.77764277 | CG66: 156.9552239 | CH66: 4.765085727 | CI66: 1.064676617 | CJ66: 1.114427861 | CK66: 0.8663793103 | CL66: 10.44776119 | CM66: 10.94527363 | CN66: 1.248830995 | CO66: 1.006179025 | CP66: 0.9530171454 | CQ66: 1.128061679 | CR66: John Brodie | CS66: 0 | CT66: 0 | CU66: 0 | CV66: 6 | CW66: 8 | CX66: 6 | CY66: 3 | CZ66: 4 | DA66: 2 | DB66: 0 | DC66: 2 | DD66: 2 | DE66: 0 | DF66: 4 | DG66: 4 | DH66: 2 | DJ66: 0 | DK66: 1855.764706 | DL66: 12.58823529
A67: Tony Romo | B67: East IL | C67: n/a | D67: 13 | E67: 4 | F67: 16 | G67: 156 | H67: 127 | I67: 52 | K67: Cowboys | L67: X | O67: =IF(CL67>9.9,(IF(CM67>11.99,"X","")),"") -> X | R67: 4335 | S67: 2829 | T67: 34183 | U67: =S67/R67*100 -> 65.25951557 | V67: 248 | W67: 117 | X67: =((CN67+CO67+CP67+CQ67)/6)*100 -> 97.1458093 | Y67: 238 | Z67: 620 | AA67: 5 | AB67: =Z67/Y67 -> 2.605042017 | AC67: =AA67/Y67 -> 0.02100840336 | AD67: =AA67/G67 -> 0.03205128205 | AE67: 248 | AG67: 66 | AH67: 35 | AI67: 25 | AJ67: 29 | AK67: 78 | AL67: 49 | AM67: 7 | AN67: 0 | AO67: 3 | AP67: 0 | AQ67: 2 | AR67: 4 | AS67: =AQ67/(AQ67+AR67)*100 -> 33.33333333 | AT67: 1 | AU67: 1 | AV67: 5 | AW67: 0 | AX67: 0 | AY67: 0 | AZ67: 0 | BA67: 0 | BB67: 0 | BC67: 66.33333333 | BD67: =(BA67*4)+(Q67)+(SUM(AM67:BB67))+(SUM(BI67:BR67))-AR67+(SUM(CS67:DH67)) -> 138.3333333 | BE67: =(BA67*12)+(BA67*11)+(((AO67/D67*10)+(AP67/D67*10))*10)+(BN67*9)+(BP67*8)+((BJ67+BK67+BL67)*7)+(BI67*6)+(BM67*5)+(AX67*4)+(BB67*3)+(AW67*2)+(Q67)+BQ67+AY67 -> 103.0769231 | BF67: =X67+(CF67*10)+(100-((AH67/G67)*100))+(100-((AH67/AG67)*100))+(AB67*100)+(AC67*100)+(AD67*100)+((H67/G67)*100)+((AK67/H67)*100)+((AM67/D67)*100)+((AX67/D67)*100)+((AO67/D67)*100)+((AP67/D67)*100)+((AQ67/(AQ67+AR67))*100)+((AV67/D67)*100)+((AW67/D67)*100)+((AY67/D67)*100)+(20-BT67)+((BA67/D67)*100)+((BB67/D67)*100) -> 919.8659892 | BG67: 0 | BH67: T.Romo | BI67: =IF(X67<70,0,(IF(X67<80,1,(IF(X67<90,2,3))))) -> 3 | BJ67: =IF(AI67<15,0,(IF(AI67<25,1,(IF(AI67<40,2,3))))) -> 2 | BK67: =IF(AJ67<15,0,(IF(AJ67<25,1,(IF(AJ67<40,2,3))))) -> 2 | BL67: =IF(BV67<60,0,(IF(BV67<70,1,(IF(BV67<80,2,(IF(BV67<90,3,4))))))) -> 1 | BM67: =IF(CB67<30,3,(IF(CB67<40,2,1))) -> 2 | BN67: =IF(BW67<70,0,(IF(BW67<80,1,(IF(BW67<90,2,(IF(BW67<100,3,4))))))) -> 0 | BO67: =IF(CE67<7.75,0,(IF(CE67<8.25,1,(IF(CE67<8.75,2,3))))) -> 1 | BP67: =IF(CI67<1,0,(IF(CI67<1.5,1,(IF(CI67<2,2,3))))) -> 2 | BQ67: =IF(CK67<0.8,1,(IF(CK67<0.9,2,(IF(CK67<1,3,4))))) -> 1 | BR67: =IF(E67<20,0,(IF(E67<50,9,(IF(E67<70,6,(IF(E67<90,3,0))))))) -> 0 | BS67: 2 | BU67: 0 | BV67: =AK67/(AK67+AL67)*100 -> 61.41732283 | BW67: =(AM67/(D67-J67))*100 -> 53.84615385 | BX67: =V67/W67 -> 2.11965812 | BY67: =AG67/AH67 -> 1.885714286 | BZ67: =IF(AE67=0,(G67*1.6),(AE67/((D67-AF67)/D67))) -> 248 | CA67: =BZ67/G67 -> 1.58974359 | CB67: =AH67/(AH67+AG67)*100 -> 34.65346535 | CC67: =AH67/G67*100 -> 22.43589744 | CD67: =W67/R67*100 -> 2.698961938 | CE67: =T67/R67 -> 7.885351788 | CF67: =T67/S67 -> 12.08306822 | CG67: =T67/G67 -> 219.1217949 | CH67: =V67/R67*100 -> 5.720876586 | CI67: =V67/G67 -> 1.58974359 | CJ67: =W67/G67 -> 0.75 | CK67: =G67/(G67+I67) -> 0.75 | CL67: =(AI67/G67)*100 -> 16.02564103 | CM67: =(AJ67/G67)*100 -> 18.58974359 | CN67: =MAX(0,MIN(((S67/R67-0.3)*5),2.375)) -> 1.762975779 | CO67: =MAX(0,MIN(((T67/R67-3)*0.25),2.375)) -> 1.221337947 | CP67: =MAX(0,MIN(((V67/R67)*20),2.375)) -> 1.144175317 | CQ67: =MAX(0,MIN((2.375-(W67/R67*25)),2.375)) -> 1.700259516 | CR67: Tony Romo | CS67: =IF(BV67>90,10,(IF(BV67>80,8,(IF(BV67>75,6,(IF(BV67>70,4,(IF(BV67>65,2,0))))))))) -> 0 | CT67: =IF(BW67>99,10,(IF(BW67>90,8,(IF(BW67>80,6,(IF(BW67>70,4,(IF(BW67>65,2,0))))))))) -> 0 | CU67: =IF(BX67>2.7,10,(IF(BX67>2.4,8,(IF(BX67>2,6,(IF(BX67>1.7,4,(IF(BX67>1.2,2,0))))))))) -> 6 | CV67: =IF(BY67<1.3,10,(IF(BY67<1.45,8,(IF(BY67<1.48,6,(IF(BY67<1.6,4,(IF(BY67<2,2,0))))))))) -> 2 | CW67: =IF(CA67<1,10,(IF(CA67<1.4,8,(IF(CA67<1.6,6,(IF(CA67<1.8,4,(IF(CA67<2,2,0))))))))) -> 6 | CX67: =IF(CA67<0.5,10,(IF(CA67<1,8,(IF(CA67<1.4,6,(IF(CA67<1.7,4,(IF(CA67<2,2,0))))))))) -> 4 | CY67: =IF(CD67<2,10,(IF(CD67<2.5,9,(IF(CD67<3,8,(IF(CD67<3.5,6,(IF(CD67<4.5,5,(IF(CD67<5,3,0))))))))))) -> 8 | CZ67: =IF(CE67>8.5,10,(IF(CE67>8,8,(IF(CE67>7.5,6,(IF(CE67>7,4,(IF(CE67>6.5,2,0))))))))) -> 6 | DA67: =IF(CF67>16,10,(IF(CF67>15,8,(IF(CF67>14,6,(IF(CF67>13,4,(IF(CF67>12,2,0))))))))) -> 2 | DB67: =IF(CG67>270,10,(IF(CG67>250,8,(IF(CG67>225,6,(IF(CG67>200,4,(IF(CG67>180,2,0))))))))) -> 4 | DC67: =IF(CH67>7,10,(IF(CH67>6,8,(IF(CH67>5.5,6,(IF(CH67>5,4,(IF(CH67>4.5,2,0))))))))) -> 6 | DD67: =IF(CI67>2,10,(IF(CI67>1.6,8,(IF(CI67>1.3,6,(IF(CI67>1.1,4,(IF(CI67>1,2,0))))))))) -> 6 | DE67: =IF(CJ67<0.6,10,(IF(CJ67<0.72,8,(IF(CJ67<0.8,6,(IF(CJ67<0.86,4,(IF(CJ67<1,2,0))))))))) -> 6 | DF67: =IF(CK67>0.99,10,(IF(CK67>0.949,8,(IF(CK67>0.899,6,(IF(CK67>0.849,4,(IF(CK67>0.799,2,0))))))))) -> 0 | DG67: =IF(CL67>18,10,(IF(CL67>15,8,(IF(CL67>12,6,(IF(CL67>10,4,(IF(CL67>8,2,0))))))))) -> 8 | DH67: =IF(CM67>20,10,(IF(CM67>17,8,(IF(CM67>15,6,(IF(CM67>12,4,(IF(CM67>10,2,0))))))))) -> 8 | DJ67: =AP67-BA67 -> 0 | DK67: =T67/D67 -> 2629.461538 | DL67: =V67/D67 -> 19.07692308
A68: Ken Anderson | B68: Augustana | C68: 3-15 | D68: 16 | E68: 71 | F68: 86 | G68: 192 | H68: 172 | I68: 43 | K68: Bengals | M68: X | N68: X | P68: X | Q68: =COUNTA(L68:P68) -> 4 | R68: 4475 | S68: 2654 | T68: 32838 | U68: 59.30726257 | V68: 197 | W68: 160 | X68: 81.85800745 | Y68: 397 | Z68: 2220 | AA68: 20 | AB68: 5.591939547 | AC68: 0.05037783375 | AD68: 0.1041666667 | AE68: 398 | AG68: 52 | AH68: 35 | AI68: 10 | AJ68: 15 | AK68: 91 | AL68: 81 | AM68: 8 | AN68: 0 | AO68: 3 | AP68: 1 | AQ68: 2 | AR68: 4 | AS68: 33.33333333 | AT68: 0 | AU68: 1 | AV68: 4 | AW68: 1 | AX68: 1 | AY68: 1 | AZ68: 0 | BA68: 0 | BB68: 0 | BC68: =(SUM(AM68:BB68))+(SUM(BI68:BR68))-AR68 -> 65.33333333 | BD68: 94.33333333 | BE68: 70 | BF68: 1209.273415 | BG68: 0 | BH68: K.Anderson | BI68: 2 | BJ68: 0 | BK68: 1 | BL68: 0 | BM68: 1 | BN68: 0 | BO68: 0 | BP68: 1 | BQ68: 2 | BR68: 3 | BS68: 1 | BU68: 0 | BV68: 52.90697674 | BW68: 50 | BX68: 1.23125 | BY68: 1.485714286 | BZ68: 398 | CA68: 2.072916667 | CB68: 40.22988506 | CC68: 18.22916667 | CD68: 3.575418994 | CE68: 7.338100559 | CF68: 12.37302185 | CG68: 171.03125 | CH68: 4.402234637 | CI68: 1.026041667 | CJ68: 0.8333333333 | CK68: 0.8170212766 | CL68: 5.208333333 | CM68: 7.8125 | CN68: 1.465363128 | CO68: 1.08452514 | CP68: 0.8804469274 | CQ68: 1.481145251 | CR68: Ken Anderson | CS68: 0 | CT68: 0 | CU68: 2 | CV68: 4 | CW68: 0 | CX68: 0 | CY68: 5 | CZ68: 4 | DA68: 2 | DB68: 0 | DC68: 0 | DD68: 2 | DE68: 4 | DF68: 2 | DG68: 0 | DH68: 0 | DJ68: 1 | DK68: 2052.375 | DL68: 12.3125
A69: Cam Newton | B69: Auburn | C69: 1-1 | D69: 11 | E69: 11 | F69: 21 | G69: 148 | H69: 144 | I69: 27 | K69: Panthers(9),Patroits(1) | L69: X | M69: X | O69: X | Q69: 3 | R69: 4474 | S69: 2682 | T69: 32382 | U69: 59.94635673 | V69: 194 | W69: 123 | X69: 85.19501565 | Y69: 1118 | Z69: 5628 | AA69: 75 | AB69: 5.033989267 | AC69: 0.06708407871 | AD69: 0.5067567568 | AE69: 332 | AG69: 62 | AH69: 24 | AI69: 16 | AJ69: 20 | AK69: 75 | AL69: 68 | AM69: 3 | AN69: 0 | AO69: 3 | AP69: 1 | AQ69: 2 | AR69: 3 | AS69: 40 | AT69: 0 | AU69: 0 | AV69: 2 | AW69: 1 | AX69: 1 | AY69: 1 | AZ69: 0 | BA69: 0 | BB69: 0 | BC69: 64 | BD69: 107 | BE69: 97.36363636 | BF69: 1230.261927 | BG69: 3 | BH69: C.Newton | BI69: 2 | BJ69: 1 | BK69: 1 | BL69: 0 | BM69: 3 | BN69: 0 | BO69: 0 | BP69: 1 | BQ69: 2 | BR69: 0 | BS69: 1 | BU69: 0 | BV69: 52.44755245 | BW69: 27.27272727 | BX69: 1.577235772 | BY69: 2.583333333 | BZ69: 332 | CA69: 2.243243243 | CB69: 27.90697674 | CC69: 16.21621622 | CD69: 2.749217702 | CE69: 7.237818507 | CF69: 12.0738255 | CG69: 218.7972973 | CH69: 4.336164506 | CI69: 1.310810811 | CJ69: 0.8310810811 | CK69: 0.8457142857 | CL69: 10.81081081 | CM69: 13.51351351 | CN69: 1.497317836 | CO69: 1.059454627 | CP69: 0.8672329012 | CQ69: 1.687695574 | CR69: Cam Newton | CS69: 0 | CT69: 0 | CU69: 2 | CV69: 0 | CW69: 0 | CX69: 0 | CY69: 8 | CZ69: 4 | DA69: 2 | DB69: 4 | DC69: 0 | DD69: 6 | DE69: 4 | DF69: 2 | DG69: 4 | DH69: 4 | DJ69: 1 | DK69: 2943.818182 | DL69: 17.63636364
A70: Bernie Kosar | B70: Miami | C70: supp | D70: 12 | E70: 85 | F70: 96 | G70: 126 | H70: 108 | I70: 61 | K70: Browns(8),Cowboys(1),Dolphins(3) | N70: X | O70: X | Q70: 2 | R70: 3365 | S70: 1994 | T70: 23301 | U70: 59.25705795 | V70: 124 | W70: 87 | X70: 81.82701833 | Y70: 180 | Z70: 265 | AA70: 5 | AB70: 1.472222222 | AC70: 0.02777777778 | AD70: 0.03968253968 | AE70: 273 | AG70: 51 | AH70: 34 | AI70: 14 | AJ70: 16 | AK70: 53 | AL70: 54 | AM70: 4 | AN70: 0 | AO70: 4 | AP70: 0 | AQ70: 3 | AR70: 4 | AS70: 42.85714286 | AT70: 0 | AU70: 0 | AV70: 1 | AW70: 0 | AX70: 0 | AY70: 0 | AZ70: 0 | BA70: 0 | BB70: 0 | BC70: 62.85714286 | BD70: 98.85714286 | BE70: 60.33333333 | BF70: 731.645548 | BG70: 0 | BH70: B.Kosar | BI70: 2 | BJ70: 0 | BK70: 1 | BL70: 0 | BM70: 1 | BN70: 0 | BO70: 0 | BP70: 0 | BQ70: 1 | BR70: 3 | BS70: 1 | BU70: 0 | BV70: 49.53271028 | BW70: 33.33333333 | BX70: 1.425287356 | BY70: 1.5 | BZ70: 273 | CA70: 2.166666667 | CB70: 40 | CC70: 26.98412698 | CD70: 2.585438336 | CE70: 6.924517088 | CF70: 11.68555667 | CG70: 184.9285714 | CH70: 3.684992571 | CI70: 0.9841269841 | CJ70: 0.6904761905 | CK70: 0.6737967914 | CL70: 11.11111111 | CM70: 12.6984127 | CN70: 1.462852897 | CO70: 0.9811292719 | CP70: 0.7369985141 | CQ70: 1.728640416 | CR70: Bernie Kosar | CS70: 0 | CT70: 0 | CU70: 2 | CV70: 4 | CW70: 0 | CX70: 0 | CY70: 8 | CZ70: 2 | DA70: 0 | DB70: 2 | DC70: 0 | DD70: 0 | DE70: 8 | DF70: 0 | DG70: 4 | DH70: 4 | DJ70: 0 | DK70: 1941.75 | DL70: 10.33333333
A71: Dave Krieg | B71: Milton | C71: 5-14 | D71: 19 | E71: 80 | F71: 98 | G71: 213 | H71: 175 | I71: 121 | K71: Seahawks(12), Chiefs(2), Lios(1), Cards(1), Bears(1), Titans(2) | M71: X | O71: X | Q71: 2 | R71: 5311 | S71: 3105 | T71: 38147 | U71: 58.46356618 | V71: 261 | W71: 199 | X71: 81.49948221 | Y71: 417 | Z71: 1261 | AA71: 13 | AB71: 3.023980815 | AC71: 0.03117505995 | AD71: 0.06103286385 | AE71: 494 | AG71: 153 | AH71: 106 | AI71: 24 | AJ71: 26 | AK71: 98 | AL71: 77 | AM71: 10 | AN71: 0 | AO71: 0 | AP71: 0 | AQ71: 3 | AR71: 6 | AS71: 33.33333333 | AT71: 1 | AU71: 1 | AV71: 3 | AW71: 0 | AX71: 0 | AY71: 0 | AZ71: 0 | BA71: 0 | BB71: 0 | BC71: 62.33333333 | BD71: 101.3333333 | BE71: 49 | BF71: 856.8427453 | BG71: 0 | BH71: D.Krieg | BI71: 2 | BJ71: 1 | BK71: 2 | BL71: 0 | BM71: 1 | BN71: 0 | BO71: 0 | BP71: 1 | BQ71: 1 | BR71: 3 | BS71: 1 | BU71: 0 | BV71: 56 | BW71: 52.63157895 | BX71: 1.311557789 | BY71: 1.443396226 | BZ71: 494 | CA71: 2.319248826 | CB71: 40.92664093 | CC71: 49.76525822 | CD71: 3.746940313 | CE71: 7.182639804 | CF71: 12.28566828 | CG71: 179.0938967 | CH71: 4.914328752 | CI71: 1.225352113 | CJ71: 0.9342723005 | CK71: 0.6377245509 | CL71: 11.26760563 | CM71: 12.20657277 | CN71: 1.423178309 | CO71: 1.045659951 | CP71: 0.9828657503 | CQ71: 1.438264922 | CR71: Dave Krieg | CS71: 0 | CT71: 0 | CU71: 2 | CV71: 8 | CW71: 0 | CX71: 0 | CY71: 5 | CZ71: 4 | DA71: 2 | DB71: 0 | DC71: 2 | DD71: 4 | DE71: 2 | DF71: 0 | DG71: 4 | DH71: 4 | DJ71: 0 | DK71: 2007.736842 | DL71: 13.73684211
A72: Dak Prescott | B72: MS State | C72: 4-37 | D72: 10 | E72: 16 | F72: 25 | G72: 139 | H72: 139 | I72: 24 | K72: Cowboys | L72: X | M72: X | N72: X | O72: X | P72: X | Q72: 5 | R72: 4759 | S72: 3184 | T72: 35989 | U72: 66.90481194 | V72: 243 | W72: 92 | X72: 98.31240807 | Y72: 473 | Z72: 2115 | AA72: 31 | AB72: 4.471458774 | AC72: 0.06553911205 | AD72: 0.2230215827 | AE72: 256 | AG72: 66 | AH72: 39 | AI72: 19 | AJ72: 26 | AK72: 83 | AL72: 55 | AM72: 6 | AN72: 0 | AO72: 4 | AP72: 0 | AQ72: 2 | AR72: 4 | AS72: 33.33333333 | AT72: 0 | AU72: 0 | AV72: 3 | AW72: 0 | AX72: 0 | AY72: 0 | AZ72: 0 | BA72: 0 | BB72: 0 | BC72: 61.33333333 | BD72: 142.3333333 | BE72: 119 | BF72: 1143.242234 | BG72: 4 | BH72: D.Prescott | BI72: 3 | BJ72: 1 | BK72: 2 | BL72: 1 | BM72: 2 | BN72: 0 | BO72: 0 | BP72: 2 | BQ72: 2 | BR72: 0 | BS72: 2 | BU72: =IF(BT72=0,0,(IF(BT72<2,10,(IF(BT72<3,9,(IF(BT72<5,8,(IF(BT72<8,7,(IF(BT72<11,6,(IF(BT72<16,5,8))))))))))))) -> 0 | BV72: 60.14492754 | BW72: 60 | BX72: 2.641304348 | BY72: 1.692307692 | BZ72: 256 | CA72: 1.841726619 | CB72: 37.14285714 | CC72: 28.05755396 | CD72: 1.933179239 | CE72: 7.562303005 | CF72: 11.30307789 | CG72: 258.9136691 | CH72: 5.10611473 | CI72: 1.748201439 | CJ72: 0.6618705036 | CK72: 0.8527607362 | CL72: 13.66906475 | CM72: 18.70503597 | CN72: 1.845240597 | CO72: 1.140575751 | CP72: 1.021222946 | CQ72: 1.89170519 | CR72: Dak Prescott | CS72: 0 | CT72: 0 | CU72: 8 | CV72: 2 | CW72: 2 | CX72: 2 | CY72: 10 | CZ72: 6 | DA72: 0 | DB72: 8 | DC72: 4 | DD72: 8 | DE72: 8 | DF72: 4 | DG72: 6 | DH72: 8 | DJ72: 0 | DK72: 3598.9 | DL72: 24.3
A73: Lynn Dickey | B73: KS State | C73: 3-4 | D73: 15 | E73: 71 | F73: 85 | G73: 152 | H73: 111 | I73: 67 | J73: 2 | K73: Oilers(5), Packers(10) | M73: X | Q73: 2 | R73: 3125 | S73: 1747 | T73: 23322 | U73: 55.904 | V73: 141 | W73: 179 | X73: 70.93933333 | Y73: 140 | Z73: 121 | AA73: 9 | AB73: 0.8642857143 | AC73: 0.06428571429 | AD73: 0.05921052632 | AE73: 297 | AG73: 64 | AH73: 38 | AI73: 12 | AJ73: 18 | AK73: 45 | AL73: 63 | AM73: 1 | AN73: 0 | AO73: 1 | AP73: 0 | AQ73: 1 | AR73: 1 | AS73: 50 | AT73: 0 | AU73: 0 | AV73: 0 | AW73: 0 | AX73: 0 | AY73: 0 | AZ73: 0 | BA73: 0 | BB73: 0 | BC73: 61 | BD73: 81 | BE73: 32.66666667 | BF73: 615.7401426 | BG73: 3 | BH73: L.Dickey | BI73: 1 | BJ73: 0 | BK73: 1 | BL73: 0 | BM73: 2 | BN73: 0 | BO73: 0 | BP73: 0 | BQ73: 1 | BR73: 3 | BS73: 2 | BU73: 0 | BV73: 41.66666667 | BW73: 7.692307692 | BX73: 0.7877094972 | BY73: 1.684210526 | BZ73: 297 | CA73: 1.953947368 | CB73: 37.25490196 | CC73: 25 | CD73: 5.728 | CE73: 7.46304 | CF73: 13.34974242 | CG73: 153.4342105 | CH73: 4.512 | CI73: 0.9276315789 | CJ73: 1.177631579 | CK73: 0.6940639269 | CL73: 7.894736842 | CM73: 11.84210526 | CN73: 1.2952 | CO73: 1.11576 | CP73: 0.9024 | CQ73: 0.943 | CR73: Lynn Dickey | CS73: 0 | CT73: 0 | CU73: 0 | CV73: 2 | CW73: 2 | CX73: 2 | CY73: 0 | CZ73: 4 | DA73: 4 | DB73: 0 | DC73: 2 | DD73: 0 | DE73: 0 | DF73: 0 | DG73: 0 | DH73: 2 | DJ73: 0 | DK73: 1554.8 | DL73: 9.4
A74: Lamar Jackson | B74: Louisville | C74: 1-32 | D74: 8 | E74: 18 | F74: 25 | G74: 116 | H74: 107 | I74: 25 | K74: Ravens | M74: X | R74: 2888 | S74: 1870 | T74: 22608 | U74: 64.75069252 | V74: 187 | W74: 56 | X74: 102.1641274 | Y74: 1081 | Z74: 6522 | AA74: 35 | AB74: 6.033302498 | AC74: 0.03237742831 | AD74: 0.3017241379 | AE74: 228 | AG74: 70 | AH74: 41 | AI74: 11 | AJ74: 13 | AK74: 63 | AL74: 28 | AM74: 6 | AN74: 0 | AO74: 3 | AP74: 0 | AQ74: 2 | AR74: 5 | AS74: 28.57142857 | AT74: 0 | AU74: 0 | AV74: 3 | AW74: 0 | AX74: 2 | AY74: 2 | AZ74: 0 | BA74: 0 | BB74: 0 | BC74: 58.57142857 | BD74: 132.5714286 | BE74: 109.5 | BF74: 1354.577986 | BG74: 7 | BH74: L.Jackson | BI74: 3 | BJ74: 0 | BK74: 0 | BL74: 1 | BM74: 2 | BN74: 1 | BO74: 1 | BP74: 2 | BQ74: 2 | BR74: 0 | BS74: 2 | BT74: 11 | BU74: 5 | BV74: 69.23076923 | BW74: 75 | BX74: 3.339285714 | BY74: 1.707317073 | BZ74: 228 | CA74: 1.965517241 | CB74: 36.93693694 | CC74: 35.34482759 | CD74: 1.939058172 | CE74: 7.828254848 | CF74: 12.08983957 | CG74: 194.8965517 | CH74: 6.475069252 | CI74: 1.612068966 | CJ74: 0.4827586207 | CK74: 0.8226950355 | CL74: 9.482758621 | CM74: 11.20689655 | CN74: 1.737534626 | CO74: 1.207063712 | CP74: 1.29501385 | CQ74: 1.890235457 | CR74: Lamar Jackson | CS74: 2 | CT74: 4 | CU74: 10 | CV74: 2 | CW74: 2 | CX74: 2 | CY74: 10 | CZ74: 6 | DA74: 2 | DB74: 2 | DC74: 8 | DD74: 8 | DE74: 10 | DF74: 2 | DG74: 2 | DH74: 2 | DJ74: 0 | DK74: 2826 | DL74: 23.375
A75: Michael Vick | B75: VA Tech | C75: 1-1 | D75: 13 | E75: 1 | F75: 15 | G75: 143 | H75: 115 | I75: 65 | J75: 2 | K75: Falcons(6),Eagles(5),Jets(1),Steelers(1) | L75: X | M75: X | Q75: =COUNTA(L75:P75) -> 3 | R75: 3217 | S75: 1807 | T75: 22464 | U75: 56.17034504 | V75: 133 | W75: 88 | X75: 80.37055746 | Y75: 873 | Z75: 6109 | AA75: 36 | AB75: 6.997709049 | AC75: 0.0412371134 | AD75: 0.2517482517 | AE75: 316 | AG75: 98 | AH75: 73 | AI75: 14 | AJ75: 15 | AK75: 61 | AL75: 51 | AM75: 4 | AN75: 0 | AO75: 3 | AP75: 0 | AQ75: 2 | AR75: 3 | AS75: 40 | AT75: 0 | AU75: 0 | AV75: 4 | AW75: 0 | AX75: 0 | AY75: 0 | AZ75: 0 | BA75: 0 | BB75: 0 | BC75: 58 | BD75: 95 | BE75: 51.07692308 | BF75: 1286.296242 | BG75: 5 | BH75: M.Vick | BI75: 2 | BJ75: 0 | BK75: 1 | BL75: 0 | BM75: 1 | BN75: 0 | BO75: 0 | BP75: 0 | BQ75: 1 | BR75: 0 | BS75: 1 | BU75: 0 | BV75: 54.46428571 | BW75: 36.36363636 | BX75: 1.511363636 | BY75: 1.342465753 | BZ75: 316 | CA75: 2.20979021 | CB75: 42.69005848 | CC75: 51.04895105 | CD75: 2.735467827 | CE75: 6.982903326 | CF75: 12.43165468 | CG75: 157.0909091 | CH75: 4.134286602 | CI75: 0.9300699301 | CJ75: 0.6153846154 | CK75: 0.6875 | CL75: 9.79020979 | CM75: 10.48951049 | CN75: 1.308517252 | CO75: 0.9957258315 | CP75: 0.8268573205 | CQ75: 1.691133043 | CR75: Michael Vick | CS75: 0 | CT75: 0 | CU75: 2 | CV75: 8 | CW75: 0 | CX75: 0 | CY75: 8 | CZ75: 2 | DA75: 2 | DB75: 0 | DC75: 0 | DD75: 0 | DE75: 8 | DF75: 0 | DG75: 2 | DH75: 2 | DJ75: 0 | DK75: 1728 | DL75: 10.23076923
A76: Jim Everett | B76: Purdue | C76: 1-3 | D76: 12 | E76: 86 | F76: 97 | G76: 158 | H76: 153 | I76: 34 | K76: Rams(8), Saints(3), Chargers(1) | Q76: 1 | R76: 4923 | S76: 2841 | T76: 34837 | U76: 57.7087142 | V76: 203 | W76: 175 | X76: 78.59240639 | Y76: 257 | Z76: 596 | AA76: 4 | AB76: 2.319066148 | AC76: 0.01556420233 | AD76: 0.0253164557 | AE76: 257 | AG76: 64 | AH76: 55 | AI76: 12 | AJ76: 15 | AK76: 64 | AL76: 89 | AM76: 3 | AN76: 0 | AO76: 0 | AP76: 0 | AQ76: 2 | AR76: 3 | AS76: 40 | AT76: 1 | AU76: 1 | AV76: 1 | AW76: 0 | AX76: 0 | AY76: 0 | AZ76: 0 | BA76: 0 | BB76: 0 | BC76: 57 | BD76: 97 | BE76: 29 | BF76: 748.4606182 | BG76: 0 | BH76: J.Everett | BI76: 1 | BJ76: 0 | BK76: 1 | BL76: 0 | BM76: 1 | BN76: 0 | BO76: 0 | BP76: 1 | BQ76: 2 | BR76: 3 | BS76: 2 | BU76: 0 | BV76: 41.83006536 | BW76: 25 | BX76: 1.16 | BY76: 1.163636364 | BZ76: 257 | CA76: 1.626582278 | CB76: 46.21848739 | CC76: 34.81012658 | CD76: 3.554743043 | CE76: 7.076376193 | CF76: 12.26223161 | CG76: 220.4873418 | CH76: 4.12350193 | CI76: 1.284810127 | CJ76: 1.107594937 | CK76: 0.8229166667 | CL76: 7.594936709 | CM76: 9.493670886 | CN76: 1.38543571 | CO76: 1.019094048 | CP76: 0.8247003859 | CQ76: 1.486314239 | CR76: Jim Everett | CS76: 0 | CT76: 0 | CU76: 0 | CV76: 10 | CW76: 4 | CX76: 4 | CY76: 5 | CZ76: 4 | DA76: 2 | DB76: 4 | DC76: 0 | DD76: 4 | DE76: 0 | DF76: 2 | DG76: 0 | DH76: 0 | DJ76: 0 | DK76: 2903.083333 | DL76: 16.91666667
A77: Jeff Garcia | B77: San Jose | C77: 0-0 | D77: 13 | E77: 99 | F77: 11 | G77: 125 | H77: 116 | I77: 83 | J77: 1 | K77: 49ers(5),Browns(1), Lions(1), Eagles(1+1), Bucs(2), Texans(1) | M77: X | Q77: 2 | R77: 3676 | S77: 2264 | T77: 25537 | U77: 61.58868335 | V77: 161 | W77: 83 | X77: 87.54420566 | Y77: 468 | Z77: 2140 | AA77: 26 | AB77: 4.572649573 | AC77: 0.05555555556 | AD77: 0.208 | AE77: 181 | AG77: 60 | AH77: 37 | AI77: 12 | AJ77: 19 | AK77: 58 | AL77: 58 | AM77: 5 | AN77: 0 | AO77: 2 | AP77: 0 | AQ77: 2 | AR77: 4 | AS77: 33.33333333 | AT77: 1 | AU77: 2 | AV77: 4 | AW77: 0 | AX77: 0 | AY77: 0 | AZ77: 0 | BA77: 0 | BB77: 0 | BC77: 56.33333333 | BD77: 109.3333333 | BE77: 55.38461538 | BF77: 1073.442706 | BG77: 0 | BH77: J.Garcia | BI77: 2 | BJ77: 0 | BK77: 1 | BL77: 0 | BM77: 2 | BN77: 0 | BO77: 0 | BP77: 1 | BQ77: 1 | BR77: 0 | BS77: 3 | BU77: 0 | BV77: 50 | BW77: 41.66666667 | BX77: 1.939759036 | BY77: 1.621621622 | BZ77: 181 | CA77: 1.448 | CB77: 38.1443299 | CC77: 29.6 | CD77: 2.25788901 | CE77: 6.94695321 | CF77: 11.27959364 | CG77: 204.296 | CH77: 4.379760609 | CI77: 1.288 | CJ77: 0.664 | CK77: 0.6009615385 | CL77: 9.6 | CM77: 15.2 | CN77: 1.579434168 | CO77: 0.9867383025 | CP77: 0.8759521219 | CQ77: 1.810527748 | CR77: Jeff Garcia | CS77: 0 | CT77: 0 | CU77: 4 | CV77: 2 | CW77: 6 | CX77: 4 | CY77: 9 | CZ77: 2 | DA77: 0 | DB77: 4 | DC77: 0 | DD77: 4 | DE77: 8 | DF77: 0 | DG77: 2 | DH77: 6 | DJ77: 0 | DK77: 1964.384615 | DL77: 12.38461538
A78: Y.A. Tittle | B78: LSU | C78: 1-6 | D78: 17 | E78: 48 | F78: 64 | G78: 203 | H78: 154 | I78: 10 | K78: Colts(3),49ers(10), Giants(4) | L78: X | Q78: 2 | R78: 4395 | S78: 2427 | T78: 33070 | U78: 55.221843 | V78: 242 | W78: 248 | X78: 74.29607509 | Y78: 372 | Z78: 1245 | AA78: 39 | AB78: 3.346774194 | AC78: 0.1048387097 | AD78: 0.1921182266 | AE78: 0 | AF78: 17 | AG78: 56 | AH78: 32 | AI78: 22 | AJ78: 21 | AK78: 78 | AL78: 52 | AM78: 10 | AN78: 0 | AO78: 3 | AP78: 3 | AQ78: 0 | AR78: 5 | AS78: 0 | AT78: 0 | AU78: 0 | AV78: 7 | AW78: 3 | AX78: 2 | AY78: 3 | AZ78: 1 | BA78: 0 | BB78: 0 | BC78: 51 | BD78: 97 | BE78: 102.2941176 | BF78: 1030.885901 | BG78: 2 | BH78: Y.Tittle | BI78: 1 | BJ78: 1 | BK78: 1 | BL78: 1 | BM78: 2 | BN78: 0 | BO78: 0 | BP78: 1 | BQ78: 3 | BR78: 9 | BS78: 2 | BU78: 0 | BV78: 60 | BW78: 58.82352941 | BX78: 0.9758064516 | BY78: 1.75 | BZ78: 324.8 | CA78: 1.6 | CB78: 36.36363636 | CC78: 15.7635468 | CD78: 5.642775882 | CE78: 7.524459613 | CF78: 13.62587557 | CG78: 162.9064039 | CH78: 5.50625711 | CI78: 1.192118227 | CJ78: 1.221674877 | CK78: 0.9530516432 | CL78: 10.83743842 | CM78: 10.34482759 | CN78: 1.26109215 | CO78: 1.131114903 | CP78: 1.101251422 | CQ78: 0.9643060296 | CR78: Y.A. Tittle | CS78: 0 | CT78: 0 | CU78: 0 | CV78: 2 | CW78: 4 | CX78: 4 | CY78: 0 | CZ78: 6 | DA78: 4 | DB78: 0 | DC78: 6 | DD78: 4 | DE78: 0 | DF78: 8 | DG78: 4 | DH78: 2 | DJ78: 3 | DK78: 1945.294118 | DL78: 14.23529412
A79: Don Meredith | B79: SMU | C79: 3-8 | D79: 9 | E79: 60 | F79: 69 | G79: 104 | H79: 85 | I79: 26 | K79: Cowboys | L79: X | M79: X | Q79: 3 | R79: 2308 | S79: 1170 | T79: 17199 | U79: 50.6932409 | V79: 135 | W79: 111 | X79: 74.83571635 | Y79: 242 | Z79: 1216 | AA79: 15 | AB79: 5.024793388 | AC79: 0.06198347107 | AD79: 0.1442307692 | AE79: 252 | AG79: 71 | AH79: 46 | AI79: 8 | AJ79: 8 | AK79: 48 | AL79: 33 | AM79: 6 | AN79: 0 | AO79: 4 | AP79: 0 | AQ79: 1 | AR79: 3 | AS79: 25 | AT79: 0 | AU79: 0 | AV79: 3 | AW79: 0 | AX79: 0 | AY79: 0 | AZ79: 0 | BA79: 0 | BB79: 0 | BC79: 51 | BD79: 87 | BE79: 73.44444444 | BF79: 1163.56278 | BG79: 0 | BH79: D.Meredith | BI79: 1 | BJ79: 0 | BK79: 0 | BL79: 0 | BM79: 2 | BN79: 0 | BO79: 0 | BP79: 1 | BQ79: 2 | BR79: 6 | BS79: 1 | BU79: 0 | BV79: 59.25925926 | BW79: 66.66666667 | BX79: 1.216216216 | BY79: 1.543478261 | BZ79: 252 | CA79: 2.423076923 | CB79: 39.31623932 | CC79: 44.23076923 | CD79: 4.809358752 | CE79: 7.451906412 | CF79: 14.7 | CG79: 165.375 | CH79: 5.849220104 | CI79: 1.298076923 | CJ79: 1.067307692 | CK79: 0.8 | CL79: 7.692307692 | CM79: 7.692307692 | CN79: 1.034662045 | CO79: 1.112976603 | CP79: 1.169844021 | CQ79: 1.172660312 | CR79: Don Meredith | CS79: 0 | CT79: 2 | CU79: 2 | CV79: 4 | CW79: 0 | CX79: 0 | CY79: 3 | CZ79: 4 | DA79: 6 | DB79: 0 | DC79: 6 | DD79: 4 | DE79: 0 | DF79: 2 | DG79: 0 | DH79: 0 | DJ79: 0 | DK79: 1911 | DL79: 15
A80: Billy Kilmer | B80: UCLA | C80: 1-11:NFL 5-39:AFL | D80: 16 | E80: 61 | F80: 78 | G80: 170 | H80: 124 | I80: 70 | J80: 2 | K80: 49ers(5), Saints(4), Redskins(8) | Q80: 1 | R80: 2984 | S80: 1585 | T80: 20495 | U80: 53.11662198 | V80: 152 | W80: 146 | X80: 71.55803172 | Y80: 362 | Z80: 1509 | AA80: 21 | AB80: 4.168508287 | AC80: 0.05801104972 | AD80: 0.1235294118 | AE80: 158 | AG80: 58 | AH80: 42 | AI80: 14 | AJ80: 16 | AK80: 61 | AL80: 52 | AM80: 7 | AN80: 0 | AO80: 1 | AP80: 1 | AQ80: 2 | AR80: 5 | AS80: 28.57142857 | AT80: 0 | AU80: 0 | AV80: 1 | AW80: 0 | AX80: 0 | AY80: 0 | AZ80: 0 | BA80: 0 | BB80: 0 | BC80: 50.57142857 | BD80: 94.57142857 | BE80: 32.5 | BF80: 971.9553783 | BG80: 4 | BH80: B.Kilmer | BI80: 1 | BJ80: 0 | BK80: 1 | BL80: 0 | BM80: 1 | BN80: 0 | BO80: 0 | BP80: 0 | BQ80: 1 | BR80: 6 | BS80: 3 | BU80: 0 | BV80: 53.98230088 | BW80: 50 | BX80: 1.04109589 | BY80: 1.380952381 | BZ80: 158 | CA80: 0.9294117647 | CB80: 42 | CC80: 24.70588235 | CD80: 4.892761394 | CE80: 6.868297587 | CF80: 12.93059937 | CG80: 120.5588235 | CH80: 5.09383378 | CI80: 0.8941176471 | CJ80: 0.8588235294 | CK80: 0.7083333333 | CL80: 8.235294118 | CM80: 9.411764706 | CN80: 1.155831099 | CO80: 0.9670743968 | CP80: 1.018766756 | CQ80: 1.151809651 | CR80: Billy Kilmer | CS80: 0 | CT80: 0 | CU80: 0 | CV80: 8 | CW80: 10 | CX80: 8 | CY80: 3 | CZ80: 2 | DA80: 2 | DB80: 0 | DC80: 4 | DD80: 0 | DE80: 4 | DF80: 0 | DG80: 2 | DH80: 0 | DJ80: 1 | DK80: 1280.9375 | DL80: 9.5
A81: Cecil Isbell | B81: Purdue | C81: 1-7 | D81: 5 | E81: 38 | F81: 42 | G81: 54 | H81: 24 | I81: 6 | K81: Packers | M81: X | N81: X | Q81: 3 | R81: 818 | S81: 411 | T81: 5945 | U81: 50.24449878 | V81: 61 | W81: 52 | X81: 72.60594947 | Y81: 422 | Z81: 1522 | AA81: 10 | AB81: 3.606635071 | AC81: 0.02369668246 | AD81: 0.1851851852 | AE81: 0 | AF81: 5 | AG81: 1 | AH81: 1 | AI81: 5 | AJ81: 6 | AK81: 41 | AL81: 12 | AM81: 5 | AN81: 0 | AO81: 2 | AP81: 2 | AQ81: 0 | AR81: 2 | AS81: 0 | AT81: 0 | AU81: 0 | AV81: 4 | AW81: 1 | AX81: 0 | AY81: 0 | AZ81: 0 | BA81: 0 | BB81: 0 | BC81: 35 | BD81: 108 | BE81: 157 | BF81: 1212.230771 | BG81: 0 | BH81: C.Isbell | BI81: 1 | BJ81: 0 | BK81: 0 | BL81: 2 | BM81: 1 | BN81: 4 | BO81: 0 | BP81: 1 | BQ81: 3 | BR81: 9 | BS81: 2 | BU81: 0 | BV81: 77.35849057 | BW81: 100 | BX81: 1.173076923 | BY81: 1 | BZ81: 86.4 | CA81: 1.6 | CB81: 50 | CC81: 1.851851852 | CD81: 6.356968215 | CE81: 7.267726161 | CF81: 14.46472019 | CG81: 110.0925926 | CH81: 7.457212714 | CI81: 1.12962963 | CJ81: 0.962962963 | CK81: 0.9 | CL81: 9.259259259 | CM81: 11.11111111 | CN81: 1.012224939 | CO81: 1.06693154 | CP81: 1.491442543 | CQ81: 0.7857579462 | CR81: Cecil Isbell | CS81: 6 | CT81: 10 | CU81: 0 | CV81: 10 | CW81: 4 | CX81: 4 | CY81: 0 | CZ81: 4 | DA81: 6 | DB81: 0 | DC81: 10 | DD81: 4 | DE81: 2 | DF81: 6 | DG81: 2 | DH81: 2 | DJ81: 2 | DK81: 1189 | DL81: 12.2
A82: John Hadl | B82: Kansas | C82: 1-1:NFL 3-24:AFL | D82: 16 | E82: 62 | F82: 77 | G82: 224 | H82: 168 | I82: 0 | K82: Chargers(11),Rams(2), Packers(2),Oilers(2) | N82: X | Q82: 2 | R82: 4687 | S82: 2363 | T82: 33503 | U82: 50.41604438 | V82: 244 | W82: 268 | X82: 67.40852358 | Y82: 351 | Z82: 1112 | AA82: 16 | AB82: 3.168091168 | AC82: 0.04558404558 | AD82: 0.07142857143 | AE82: 268 | AF82: 4 | AG82: 31 | AH82: 20 | AI82: 15 | AJ82: 15 | AK82: 82 | AL82: 76 | AM82: 7 | AN82: 0 | AO82: 3 | AP82: 0 | AQ82: 0 | AR82: 2 | AS82: 0 | AT82: 0 | AU82: 0 | AV82: 6 | AW82: 1 | AX82: 0 | AY82: 1 | AZ82: 0 | BA82: 0 | BB82: 0 | BC82: 33 | BD82: 75 | BE82: 59.75 | BF82: 920.565359 | BG82: 0 | BH82: J.Hadl | BI82: 0 | BJ82: 1 | BK82: 1 | BL82: 0 | BM82: 2 | BN82: 0 | BO82: 0 | BP82: 1 | BQ82: 4 | BR82: 6 | BS82: 2 | BU82: 0 | BV82: 51.89873418 | BW82: 43.75 | BX82: 0.9104477612 | BY82: 1.55 | BZ82: 357.3333333 | CA82: 1.595238095 | CB82: 39.21568627 | CC82: 8.928571429 | CD82: 5.717943247 | CE82: 7.148069127 | CF82: 14.17816335 | CG82: 149.5669643 | CH82: 5.205888628 | CI82: 1.089285714 | CJ82: 1.196428571 | CK82: 1 | CL82: 6.696428571 | CM82: 6.696428571 | CN82: 1.020802219 | CO82: 1.037017282 | CP82: 1.041177726 | CQ82: 0.9455141882 | CR82: John Hadl | CS82: 0 | CT82: 0 | CU82: 0 | CV82: 4 | CW82: 6 | CX82: 4 | CY82: 0 | CZ82: 4 | DA82: 6 | DB82: 0 | DC82: 4 | DD82: 2 | DE82: 0 | DF82: 10 | DG82: 0 | DH82: 0 | DJ82: 0 | DK82: 2093.9375 | DL82: 15.25
A83: Roman Gabriel | B83: NC State | C83: 1-2 | D83: 16 | E83: 62 | F83: 77 | G83: 183 | H83: 157 | I83: 41 | K83: Rams(11), Eagles(5) | L83: X | N83: X | Q83: 3 | R83: 4498 | S83: 2366 | T83: 29444 | U83: 52.60115607 | V83: 201 | W83: 149 | X83: 74.28579369 | Y83: 358 | Z83: 1304 | AA83: 30 | AB83: 3.642458101 | AC83: 0.08379888268 | AD83: 0.1639344262 | AE83: 239 | AF83: 5 | AG83: 105 | AH83: 68 | AI83: 16 | AJ83: 15 | AK83: 86 | AL83: 64 | AM83: 8 | AN83: 0 | AO83: 0 | AP83: 0 | AQ83: 0 | AR83: 2 | AS83: 0 | AT83: 0 | AU83: 0 | AV83: 4 | AW83: 1 | AX83: 1 | AY83: 1 | AZ83: 0 | BA83: 0 | BB83: 0 | BC83: 29 | BD83: 62 | BE83: 50 | BF83: 940.1503026 | BG83: 0 | BH83: R.Gabriel | BI83: 1 | BJ83: 1 | BK83: 1 | BL83: 0 | BM83: 2 | BN83: 0 | BO83: 0 | BP83: 1 | BQ83: 2 | BR83: 6 | BS83: 2 | BU83: 0 | BV83: 57.33333333 | BW83: 50 | BX83: 1.348993289 | BY83: 1.544117647 | BZ83: 347.6363636 | CA83: 1.89965226 | CB83: 39.30635838 | CC83: 37.15846995 | CD83: 3.31258337 | CE83: 6.546020454 | CF83: 12.44463229 | CG83: 160.8961749 | CH83: 4.468652735 | CI83: 1.098360656 | CJ83: 0.8142076503 | CK83: 0.8169642857 | CL83: 8.743169399 | CM83: 8.196721311 | CN83: 1.130057803 | CO83: 0.8865051134 | CP83: 0.8937305469 | CQ83: 1.546854157 | CR83: Roman Gabriel | CS83: 0 | CT83: 0 | CU83: 2 | CV83: 4 | CW83: 2 | CX83: 2 | CY83: 6 | CZ83: 2 | DA83: 2 | DB83: 0 | DC83: 0 | DD83: 2 | DE83: 4 | DF83: 2 | DG83: 2 | DH83: 0 | DJ83: 0 | DK83: 1840.25 | DL83: 12.5625
A84: Sonny Jurgensen | B84: Duke | C84: 4-6 | D84: 18 | E84: 57 | F84: 74 | G84: 218 | H84: 149 | I84: 26 | K84: Eagles(7),Redskins(11) | L84: X | N84: X | Q84: 3 | R84: 4262 | S84: 2433 | T84: 32224 | U84: 57.08587518 | V84: 179 | W84: 116 | X84: 83.81726107 | Y84: 181 | Z84: 493 | AA84: 15 | AB84: 2.723756906 | AC84: 0.08287292818 | AD84: 0.06880733945 | AE84: 94 | AF84: 12 | AG84: 50 | AH84: 32 | AI84: 18 | AJ84: 14 | AK84: 69 | AL84: 73 | AM84: 5 | AN84: 0 | AO84: 1 | AP84: 0 | AQ84: 0 | AR84: 1 | AS84: 0 | AT84: 0 | AU84: 0 | AV84: 5 | AW84: 2 | AX84: 0 | AY84: 0 | AZ84: 1 | BA84: 0 | BB84: 0 | BC84: 27 | BD84: 84 | BE84: 43.55555556 | BF84: 832.0071907 | BG84: 0 | BH84: S.Jurgensen | BI84: 2 | BJ84: 1 | BK84: 0 | BL84: 0 | BM84: 2 | BN84: 0 | BO84: 0 | BP84: 0 | BQ84: 2 | BR84: 6 | BS84: 3 | BU84: 0 | BV84: 48.5915493 | BW84: 27.77777778 | BX84: 1.543103448 | BY84: 1.5625 | BZ84: 282 | CA84: 1.293577982 | CB84: 39.02439024 | CC84: 14.67889908 | CD84: 2.721726889 | CE84: 7.560769592 | CF84: 13.24455405 | CG84: 147.8165138 | CH84: 4.199906147 | CI84: 0.8211009174 | CJ84: 0.5321100917 | CK84: 0.893442623 | CL84: 8.256880734 | CM84: 6.422018349 | CN84: 1.354293759 | CO84: 1.140192398 | CP84: 0.8399812295 | CQ84: 1.694568278 | CR84: Sonny Jurgensen | CS84: 0 | CT84: 0 | CU84: 2 | CV84: 4 | CW84: 8 | CX84: 6 | CY84: 8 | CZ84: 6 | DA84: 4 | DB84: 0 | DC84: 0 | DD84: 0 | DE84: 10 | DF84: 4 | DG84: 2 | DH84: 0 | DJ84: 0 | DK84: 1790.222222 | DL84: 9.944444444
A85: Jim Hart | B85: S. Illinois | C85: 0-0 | D85: 19 | E85: 66 | F85: 84 | G85: 201 | H85: 180 | I85: 72 | K85: Cardinals(10),Redskins(1) | L85: X | Q85: 2 | R85: 5076 | S85: 2593 | T85: 34665 | U85: 51.08353034 | V85: 209 | W85: 247 | X85: 66.55749278 | Y85: 159 | Z85: 207 | AA85: 16 | AB85: 1.301886792 | AC85: 0.1006289308 | AD85: 0.07960199005 | AE85: 243 | AF85: 3 | AG85: 73 | AH85: 59 | AI85: 20 | AJ85: 23 | AK85: 87 | AL85: 88 | AM85: 6 | AN85: 0 | AO85: 1 | AP85: 0 | AQ85: 0 | AR85: 2 | AS85: 0 | AT85: 0 | AU85: 0 | AV85: 4 | AW85: 0 | AX85: 0 | AY85: 0 | AZ85: 0 | BA85: 0 | BB85: 0 | BC85: 22 | BD85: 59 | BE85: 35.26315789 | BF85: 654.0612707 | BG85: 0 | BH85: J.Hart | BI85: 0 | BJ85: 1 | BK85: 1 | BL85: 0 | BM85: 1 | BN85: 0 | BO85: 0 | BP85: 1 | BQ85: 1 | BR85: 6 | BS85: 3 | BU85: 0 | BV85: 49.71428571 | BW85: 31.57894737 | BX85: 0.8461538462 | BY85: 1.237288136 | BZ85: 288.5625 | CA85: 1.435634328 | CB85: 44.6969697 | CC85: 29.35323383 | CD85: 4.866036249 | CE85: 6.829196217 | CF85: 13.36868492 | CG85: 172.4626866 | CH85: 4.117415288 | CI85: 1.039800995 | CJ85: 1.228855721 | CK85: 0.7362637363 | CL85: 9.950248756 | CM85: 11.44278607 | CN85: 1.054176517 | CO85: 0.9572990544 | CP85: 0.8234830575 | CQ85: 1.158490938 | CR85: Jim Hart | CS85: 0 | CT85: 0 | CU85: 0 | CV85: 10 | CW85: 6 | CX85: 4 | CY85: 3 | CZ85: 2 | DA85: 4 | DB85: 0 | DC85: 0 | DD85: 2 | DE85: 0 | DF85: 0 | DG85: 2 | DH85: 2 | DJ85: 0 | DK85: 1824.473684 | DL85: 11
A86: Brian Sipe | B86: San Diego | C86: 13-18 | D86: 10 | E86: 74 | F86: 83 | G86: 125 | H86: 111 | I86: 20 | K86: Browns | N86: X | O86: X | P86: X | Q86: 3 | R86: 3439 | S86: 1944 | T86: 23713 | U86: 56.52806048 | V86: 154 | W86: 149 | X86: 74.79463507 | Y86: 223 | Z86: 762 | AA86: 11 | AB86: 3.417040359 | AC86: 0.04932735426 | AD86: 0.088 | AE86: 224 | AG86: 62 | AH86: 37 | AI86: 17 | AJ86: 23 | AK86: 57 | AL86: 55 | AM86: 5 | AN86: 0 | AO86: 1 | AP86: 0 | AQ86: 0 | AR86: 1 | AS86: 0 | AT86: 0 | AU86: 0 | AV86: 1 | AW86: 1 | AX86: 1 | AY86: 1 | AZ86: 0 | BA86: 0 | BB86: 0 | BC86: 21 | BD86: 65 | BE86: 60 | BF86: 923.085791 | BG86: 0 | BH86: B.Sipe | BI86: 1 | BJ86: 1 | BK86: 1 | BL86: 0 | BM86: 2 | BN86: 0 | BO86: 0 | BP86: 1 | BQ86: 2 | BR86: 3 | BS86: 2 | BU86: 0 | BV86: 50.89285714 | BW86: 50 | BX86: 1.033557047 | BY86: 1.675675676 | BZ86: 224 | CA86: 1.792 | CB86: 37.37373737 | CC86: 29.6 | CD86: 4.332654842 | CE86: 6.895318407 | CF86: 12.19804527 | CG86: 189.704 | CH86: 4.478045944 | CI86: 1.232 | CJ86: 1.192 | CK86: 0.8620689655 | CL86: 13.6 | CM86: 18.4 | CN86: 1.326403024 | CO86: 0.9738296016 | CP86: 0.8956091887 | CQ86: 1.29183629 | CR86: Brian Sipe | CS86: 0 | CT86: 0 | CU86: 0 | CV86: 2 | CW86: 4 | CX86: 2 | CY86: 5 | CZ86: 2 | DA86: 2 | DB86: 2 | DC86: 0 | DD86: 4 | DE86: 0 | DF86: 4 | DG86: 6 | DH86: 8 | DJ86: 0 | DK86: 2371.3 | DL86: 15.4
A87: Carson Palmer | B87: USC | C87: 1-1 | D87: 14 | E87: 4 | F87: 17 | G87: 182 | H87: 181 | I87: 42 | K87: Bengals(7), Raiders(2), Cardinals(1) | O87: X | Q87: 1 | R87: 6307 | S87: 3941 | T87: 46247 | U87: 62.48612653 | V87: 294 | W87: 187 | X87: 87.8920908 | Y87: 301 | Z87: 474 | AA87: 8 | AB87: 1.574750831 | AC87: 0.02657807309 | AD87: 0.04395604396 | AE87: 318 | AG87: 84 | AH87: 56 | AI87: 21 | AJ87: 35 | AK87: 89 | AL87: 84 | AM87: 5 | AN87: 0 | AO87: 3 | AP87: 0 | AQ87: 0 | AR87: 2 | AS87: 0 | AT87: 0 | AU87: 0 | AV87: 3 | AW87: 0 | AX87: 0 | AY87: 0 | AZ87: 0 | BA87: 0 | BB87: 0 | BC87: 21 | BD87: 78 | BE87: 78.42857143 | BF87: 719.5263256 | BG87: 0 | BH87: C.Palmer | BI87: 2 | BJ87: 1 | BK87: 2 | BL87: 0 | BM87: 1 | BN87: 0 | BO87: 0 | BP87: 2 | BQ87: 2 | BR87: 0 | BS87: 2 | BU87: 0 | BV87: 51.44508671 | BW87: 35.71428571 | BX87: 1.572192513 | BY87: 1.5 | BZ87: 318 | CA87: 1.747252747 | CB87: 40 | CC87: 30.76923077 | CD87: 2.964959569 | CE87: 7.332646266 | CF87: 11.73483887 | CG87: 254.1043956 | CH87: 4.661487236 | CI87: 1.615384615 | CJ87: 1.027472527 | CK87: 0.8125 | CL87: 11.53846154 | CM87: 19.23076923 | CN87: 1.624306326 | CO87: 1.083161567 | CP87: 0.9322974473 | CQ87: 1.633760108 | CR87: Carson Palmer | CS87: 0 | CT87: 0 | CU87: 2 | CV87: 4 | CW87: 4 | CX87: 2 | CY87: 8 | CZ87: 4 | DA87: 0 | DB87: 8 | DC87: 2 | DD87: 8 | DE87: 0 | DF87: 2 | DG87: 4 | DH87: 8 | DJ87: 0 | DK87: 3303.357143 | DL87: 21
A88: Doug Flutie | B88: Boston C | C88: 11-5 | D88: 23 | E88: 86 | F88: 5 | G88: 92 | H88: 66 | I88: 100 | J88: 11 | K88: [USFL(3)], Bears(1), Patroits(4), [Canada(8)], Bills(3), Chargers(4) | L88: X | M88: X | N88: X | P88: X | Q88: 5 | R88: 2151 | S88: 1177 | T88: 14751 | U88: 54.71873547 | V88: 86 | W88: 68 | X88: 76.41116535 | Y88: 338 | Z88: 1634 | AA88: 10 | AB88: 4.834319527 | AC88: 0.02958579882 | AD88: 0.1086956522 | AE88: 107 | AG88: 38 | AH88: 21 | AI88: 8 | AJ88: 10 | AK88: 38 | AL88: 28 | AM88: 8 | AN88: 0 | AO88: 4 | AP88: 0 | AQ88: 0 | AR88: 2 | AS88: 0 | AT88: 0 | AU88: 0 | AV88: 1 | AW88: 0 | AX88: 0 | AY88: 0 | AZ88: 0 | BA88: 0 | BB88: 0 | BC88: 20 | BD88: 65 | BE88: 39.39130435 | BF88: 1026.745748 | BG88: 0 | BH88: D.Flutie | BI88: 1 | BJ88: 0 | BK88: 0 | BL88: 0 | BM88: 2 | BN88: 0 | BO88: 0 | BP88: 0 | BQ88: 1 | BR88: 3 | BS88: 3 | BU88: 0 | BV88: 57.57575758 | BW88: 66.66666667 | BX88: 1.264705882 | BY88: 1.80952381 | BZ88: 107 | CA88: 1.163043478 | CB88: 35.59322034 | CC88: 22.82608696 | CD88: 3.161320316 | CE88: 6.857740586 | CF88: 12.53271028 | CG88: 160.3369565 | CH88: 3.9981404 | CI88: 0.9347826087 | CJ88: 0.7391304348 | CK88: 0.4791666667 | CL88: 8.695652174 | CM88: 10.86956522 | CN88: 1.235936774 | CO88: 0.9644351464 | CP88: 0.79962808 | CQ88: 1.584669921 | CR88: Doug Flutie | CS88: 0 | CT88: 2 | CU88: 2 | CV88: 2 | CW88: 8 | CX88: 6 | CY88: 6 | CZ88: 2 | DA88: 2 | DB88: 0 | DC88: 0 | DD88: 0 | DE88: 6 | DF88: 0 | DG88: 2 | DH88: 2 | DJ88: 0 | DK88: 641.3478261 | DL88: 3.739130435
A89: Bert Jones | B89: LSU | C89: 1-2 | D89: 10 | E89: 73 | F89: 82 | G89: 102 | H89: 96 | I89: 38 | K89: Colts(9), Rams(1) | L89: X | M89: X | Q89: 3 | R89: 2551 | S89: 1430 | T89: 18190 | U89: 56.05644845 | V89: 124 | W89: 101 | X89: 78.21360904 | Y89: 247 | Z89: 1429 | AA89: 14 | AB89: 5.785425101 | AC89: 0.05668016194 | AD89: 0.137254902 | AE89: 232 | AG89: 16 | AH89: 8 | AI89: 8 | AJ89: 11 | AK89: 47 | AL89: 49 | AM89: 5 | AN89: 0 | AO89: 4 | AP89: 0 | AQ89: 0 | AR89: 3 | AS89: 0 | AT89: 0 | AU89: 0 | AV89: 1 | AW89: 1 | AX89: 0 | AY89: 0 | AZ89: 0 | BA89: 0 | BB89: 0 | BC89: 19 | BD89: 45 | BE89: 70 | BF89: 1218.585266 | BG89: 0 | BH89: B.Jones | BI89: 1 | BJ89: 0 | BK89: 0 | BL89: 0 | BM89: 2 | BN89: 0 | BO89: 0 | BP89: 1 | BQ89: 1 | BR89: 3 | BS89: 1 | BU89: 0 | BV89: 48.95833333 | BW89: 50 | BX89: 1.227722772 | BY89: 2 | BZ89: 232 | CA89: 2.274509804 | CB89: 33.33333333 | CC89: 7.843137255 | CD89: 3.959231674 | CE89: 7.130537044 | CF89: 12.72027972 | CG89: 178.3333333 | CH89: 4.860838887 | CI89: 1.215686275 | CJ89: 0.9901960784 | CK89: 0.7285714286 | CL89: 7.843137255 | CM89: 10.78431373 | CN89: 1.302822423 | CO89: 1.032634261 | CP89: 0.9721677773 | CQ89: 1.385192082 | CR89: Bert Jones | CS89: 0 | CT89: 0 | CU89: 2 | CV89: 0 | CW89: 0 | CX89: 0 | CY89: 5 | CZ89: 4 | DA89: 2 | DB89: 0 | DC89: 2 | DD89: 4 | DE89: 2 | DF89: 0 | DG89: 0 | DH89: 2 | DJ89: 0 | DK89: 1819 | DL89: 12.4
A90: Steve Grogan | B90: KS State | C90: 5-12 | D90: 16 | E90: 75 | F90: 90 | G90: 149 | H90: 135 | I90: 94 | K90: Patroits | M90: X | N90: X | P90: X | Q90: 4 | R90: 3593 | S90: 1879 | T90: 26885 | U90: 52.29613137 | V90: 182 | W90: 208 | X90: 69.60467112 | Y90: 445 | Z90: 2176 | AA90: 35 | AB90: 4.88988764 | AC90: 0.07865168539 | AD90: 0.2348993289 | AE90: 247 | AG90: 81 | AH90: 47 | AI90: 13 | AJ90: 20 | AK90: 75 | AL90: 60 | AN90: 0 | AO90: 1 | AP90: 1 | AQ90: 0 | AR90: 3 | AS90: 0 | AT90: 0 | AV90: 0 | AW90: 0 | AX90: 0 | AY90: 0 | AZ90: 0 | BA90: 0 | BB90: 0 | BC90: 10 | BD90: 50 | BE90: 42.5 | BF90: 1022.12123 | BG90: 0 | BH90: S.Grogan | BI90: 0 | BJ90: 0 | BK90: 1 | BL90: 0 | BM90: 2 | BN90: 0 | BO90: 0 | BP90: 1 | BQ90: 1 | BR90: 3 | BS90: 2 | BU90: 0 | BV90: 55.55555556 | BW90: 0 | BX90: 0.875 | BY90: 1.723404255 | BZ90: 247 | CA90: 1.657718121 | CB90: 36.71875 | CC90: 31.54362416 | CD90: 5.789034233 | CE90: 7.482605065 | CF90: 14.30814263 | CG90: 180.4362416 | CH90: 5.065404954 | CI90: 1.22147651 | CJ90: 1.395973154 | CK90: 0.6131687243 | CL90: 8.724832215 | CM90: 13.42281879 | CN90: 1.114806568 | CO90: 1.120651266 | CP90: 1.013080991 | CQ90: 0.9277414417 | CR90: Steve Grogan | CS90: 0 | CT90: 0 | CU90: 0 | CV90: 2 | CW90: 4 | CX90: 4 | CY90: 0 | CZ90: 4 | DA90: 6 | DB90: 2 | DC90: 4 | DD90: 4 | DE90: 0 | DF90: 0 | DG90: 2 | DH90: 4 | DJ90: 1 | DK90: 1680.3125 | DL90: 11.375
A92: Only Heisman Trophy winners here: | G92: By the 2025 season there had been well over 1,100 guys ever on a roster as a QB | L92: Categories by NBCSports.com contributor Don Pierson at | R92: These stats are a part of the QB Rating, thus, no other | Y92: These stats are for the times when the QB | AE92: Fumbles, 4th Qtr Winning and Win-Loss ratios are | AM92: "Winning Seasons Starter" means: Did QB | AT92: Individual honors and achievements that the QB earned during his career | BR92: Decades Played: 9=before 1950 6=1950-1969 3=1970-1989 else zero
A93: Staubach, Plunkett, Flutie, Palmer and Newton. | L93: http://nbcsports.msnbc.com/id/21036771/ns/sports-nfl/ | R93: points are given in the rankings | Y93: became a rusher, sometimes scoring a TD. | AE93: awarded X # of points per groupings of columns at the right | AM93: win more than lose when he started games? | AT93: NOTE: No one was awarded MVP in 1947, 1949 and 1950 | BI93: Point values assigned to a range within a calculated value at the right. | BS93: It'd be nice | BV93: Calculations based on something as a percentage of something else. Then ranges
A94: Only Big 12 here:Hadl, Grogan, Dickey, Mahomes | L94: Can tell some of these such as Mobile with AvgYds/Rush, Clutch with 4Q Comebacks, Leadership with WinLoss% | Y94: Before the 1967 Super Bowl there was the "Championship Game". No MVP for Championship Games, so since the winning Super Bowl QB is the MVP half the time, assume one MVP per two Championship games won | BI94: Normally a QB earns between 0 and 3 points. Perfection is worth 4. | BS94: to use | BV94: within these percentages are assigned a point value at the left. QB earns the points.
A95: Only Univ of FL here are, hmmm, NONE!!! | BS95: sacks per
A96: This list dramatically shows that NFL teams should avoid drafting as QB a Heisman winner or from a Big 12 college or the Univ. of Florida. Heisman winners rarely pan out. Guys from those schools are usually a bust. From 1960 through 2025, 34 quarterbacks won the Heisman. Only Staubach, Plunkett and Mahomes are in the Top 50 and won at least one Super Bowl. It was fifty years between Plunkett's win and Mahomes' win.
A98: Many, if not most, football fans follow QB stats. This ranking of points only deals with the basic stats for a QB. There is an allowance factor for players of early decades when rules were different. For details, see formula at bottom of spreadsheet with the same cell fill color.
A99: QBs are ultimately judged on # of championships they win. Thus, championships are counted five times. For details, see formula at bottom of spreadsheet with the same cell fill color, and, the info a few rows below here with the same cell fill color.
A100: What makes a Quarterback a Great Quarterback? Ranked in order, these 12 factors define Quarterback Greatness, regardless of the era he played, because this is mostly about winning, scoring and leading. For details, see formula at bottom of spreadsheet with the same cell fill color. | BS100: for the early
A101: Apples-to-Apples comparing pf Averages and Percentages which mostly eliminates both the variances in the game over the decades, and, the number of years played. For details, see formula at bottom of spreadsheet with the same cell fill color. | BS101: years and for
A102: How does each Quarterback rank among the Top Five QB's across dozens of stats. These stats tend to favor the quarterbacks who had long successful careers. For details, see formula at bottom of spreadsheet with the same fill color. | BS102: players and
A103: 1. Super Bowl / Championship Game victories………………………………………… | J103: A Quarterback's #1 expectation is to win the championship game, period | X103: Number of Games Played per Season: | AO103: Team Win Div and Team Win Conf means the QB started at least half the season games | BS103: in non-NFL
A104: 2. Super Bowl / Championship Game victories………………………………………… | J104: Like Location, Location, Location. Fair or not, QB greatness is judged on how many championships he won | X104: 1922 thru 1946: 11, some 12 | AJ104: In 1964 AP All-Pro award to the best quarterback was begun. To balance things, players before that with the highest Rating were "given" AP | BS104: leagues.
A105: 3. Winning the Division / Conference……………………………………………………. | J105: Before winning the championship, the first goal is winning the immediate division/conference | X105: 1943 thru 1945: 10
A106: 4. Winning Seasons……………………………………………………………………… | J106: More often than not, he is a winner | X106: 1946 thru 1946: 11 | AD106: AAFC Teams -- 1950: Browns, Colts, 49ers
A107: 5. Touchdowns…………………………………………………………………………….. | J107: A lot of touchdowns go a long way towards winning games | X107: 1946 thru 1949: 14 (AAFC league only)
A108: 6. Fourth quarter comebacks, game-winning drives, and, win/loss ratio……………. | J108: These type of victories really fire up the entire team. That is leadership. | X108: 1947 thru 1960: 12 | AD108: AFL Teams -- 1960: Patriots, Bills, Oilers, Titans/Jets, Texans/Chiefs,
A109: 7. Low Pct of Fumbles Lost to Fumbles Made………………………………………… | J109: Losing the ball on a fumble is always a letdown to the offensive team and sometimes a momentum changer | X109: 1960 thru 1977: 14 | AD109: Broncos, Chargers and Raiders. 1966: Dolphins. 1968: Bengals
A110: 8. High QB Rating…………………………………………………………………………. | J110: A high one of these means the QB is doing a lot of the right things for the team (fumbles not included) | X110: 1960 thru 1969: 14 (AFL, 10 teams)
A111: 9. League MVP……………………………………………………………………………. | J111: One has to be great, at least for a season, to win this award | X111: 1967: First Super Bowl - NFL vs. AFL | AD111: NFL Expansion Teams:
A112: 10. MVP of the Super Bowl / Championship Game…………………………………….. | J112: More than just winning the Big Game, he was the main reason the team won | X112: 1970: NFL and AFL merge | AD112: 1976: Tampa Bay and Seattle
A113: 11. Pro Bowl starts on the First Team…………………………………………………… | J113: He was the best QB for the season, so he did his positional job | X113: 1978 to 2021: 16 | AD113: 1995: Jacksonvlle and Carolina
A114: 12. Intangibles such as Leadership, Field Smarts, Consistent, Durable…………… | J114: The team must have confidence that the QB is there and knows what he is doing | X114: 2022 to present: 17 | AD114: 1999: Cleveland (old Browns moved 1996 to Baltimore Ravens)
A115: True, the entire team contributes to its success. But just like a corporate CEO, the QB is the one with the brightest spotlight. He gets the most credit, or blame. It is also true | X115: 1982 only 9 games played per player strike | AD115: 2002: Houston (old Oilers moved 1997 to Tennessee Titans)
A116: that, had he been on a better team, some QB's might be higher on this list. But those things cannot be quantified, and we will never know since they never happened. | X116: 1987 only 15 games played per player strike
A119: BOTTOM LINE: Regardless of which of the "Rankings" or "Points" columns that the list is sorted by, the same ten QB's are usually the top ten. All but one are retired.
A120: Top 10 Greatest QB's using statistics only for ranking: | I120: Graham,Brady,Montana,Mahomes,P.Manning,Unitas,Starr,Elway,Luckman,Bradshaw
A121: Top 10 Greatest QB's by the Super Bowl Weighted ranking: | I121: Brady,Graham,Mahomes,P.Manning,Montana,Unitas,Starr,Luckman,Roethlisherger,Rodgers | X121: '<----- What allows Brady to get ahead of Graham in this stat is the higher counts Brady accumulated from playing more than twice as many seasons as Graham's mere ten seasons
A122: Top 10 Greatest QB's by 12-Factor Winning/Leading ranking: | I122: Graham,Brady,Mahomes,P.Manning,Montana,Luckman,Starr,Bradshaw,Staubach,Unitas
A123: Top 10 Greatest QB's using only averages and percentages for ranking: | I123: Mahomes,Graham,Staubach,Young,Starr,Jackson,Allen,Bradshaw,Hurts,Montana | X123: '<----- What allows Mahomes to get ahead of Graham in this stat is the Quarterback Rating value
A124: Top 10 Greatest QB's using a point rating per stat as a leader: | I124: Brady,P.Manning,Graham,Brees,(tied)Montana & Mahomes,Luckman,McNair,Favre,Waterfield | X124: '<----- What allows Brady to get ahead of Graham in this stat is the higher counts Brady accumulated from playing more than twice as many seasons as Graham's mere ten seasons
A125: Top 10 Greatest Quarterbacks using all ranking methods: | I125: Graham, Mahomes, Montana, Brady, P.Manning, Starr, Luckman, Unitas, and (tied)Staubach and Brees
A127: JUSTIFICATIONS for Top Five:
A128: Graham is the ONLY QB to appear in the Top Two of all rankings and one of only four QBs (with Starr, Montana and Mahomes) that placed in the Top Ten for all rankings. He had a starter win-loss record of 107-17 (highest percent of all QB's) with seven championships, his team won the division every year (thus, tied for first with three others as winning seasons compared to years played), he was a Pro Bowler every year and a Pro Bowl starter in all but one year (thus, the leader for that stat). Graham is tied with Peyton Manning for most times as AP Pro First Team, he was MVP in half the years he played (thus, ranks third for that stat). He had a Perfect Season. His team won the conference more than any other team. Graham is the all-time leader in yards per attempt, second in yards per completion, third in TD's per attempt. Graham ranked #1 in two of the three different ranking systems here. And, to top it off, he did all this in the 1940's and 1950's. While modern-day sports writers are quick to pronounce Tom Brady as the Greatest Quarterback ever, I often email those writers to tell them about Graham. One just needs to look him up on WikiPedia to see his accomplishments. I consider the sports writers coronation of Brady as current modern-day kids who say some current singer is the greatest ever since they know little to nothing of The Beatles (Google them and see how many songs they wrote and how many were in the top of the charts). Graham will long be the Greatest Quarterback. Hard to argue othewise once all facts are considered.
A129: Mahomes joined the Top Ten after just five seasons as a starter and is in all six ways ranking lists calculated here. He is the only QB to win the regular season MVP and the Super Bown MVP for the same season. Assuming his stellar career continues, he will be in the Top Three of all ranking lists here, and probably #1 in some of them. In fact, he already is #1 in one of the rankings lists. After the 2024 season and all the fourth-quarter-comebacks and game-winning-drives plus losing only one game as a starter, and, getting to the Super Bowl for yet another time, and, despite having a less-than-stellar season statistically (for him!), his rankings still rose, enough to surpass Brady!!!
A130: Brady has seven Super Bowl victories (which ties Otto Graham's number of championship appearances at ten, and wins at seven) along with many statistical records plus that perfect regular season. Brady's team just wins! Brady is in the top ten in almost all of regular season stats along with several post-season stats. His main strength is how his team wins, especially in post-season play. And, Brady's rankings rises each year. If he plays well in season beyond 2022 (he will be over age 45 then), he can come very close to surpassing Otto Graham as The GOAT -- Greatest Of All-Time Quarterback! However, rising fast are some young stars such as Jos Allen, Lamar Jackson and especially Patrick Mahomes, any of whom just might rise up someday as The GOAT!!!
A131: P.Manning, despite his awful (for him) final regular season, did nearly everything a QB can do. During the regular season he was often called superhuman with a football computer for a brain. However, he consistently struggled in the post-seasons, including in college. Having played in 18 seasons (he missed 2011), his numbers are staggering. He is in the top ten in nearly every statistic for a QB (modern QB's rank low for such things as Yards/Attempt and Yards/Completion). His game readiness was legendary and some sportswriters say he has the best football computer mind, period. His teams win even with few great players (as the 2011 season proved) -- he makes good receivers into great receivers. It is obvious that he carried Indianapolis on his shoulders for over a decade to be the most successful NFL team during that time. His 2013 Denver Broncos were the most productive NFL offense of all time. And, he did finally win that second Super Bowl (though that time his team, especially the defense, carried him, but that is only fair for his last hurrah) which moved him just ahead of Joe Montana in two of the three ranking methods used here. That made him the first QB to win a Super Bowl for two different teams (Brady became the second one in 2021). If you take a look at the accompanying spreadsheet that ranks the top five QB's in dozens of statistics, and assigning weighted points for each rank, Manning is behind #1 Brady (the two swaped positions between 2015 and 2016), Graham is third and Montana is a few ranks below them. So, Manning will remain securely as one of the top five QB's ever, well, at least until another stellar QB comes along over the next decade (e.g. Josh Allen, Patrick Mahomes, Lamar Jackson). Note: my top three personal favorite QB's, in order, are: Manning, Tarkenton, Montana. I have MUCH respect for their careers.
A132: Montana, aka. "Mr. Magic", had great teammates and a great coach. Together they won the division 10 times (second most) in 13 years with four championships and Montana the MVP in three of those four. Montana was league MVP twice and second most playoff game wins than anyone including fourth quarter comeback playoff wins and third for playoff game winning drives. Montana is one of very few QB's to complete 63% of his passes over a career and one of less than ten QB's to have a career rating of over 90. He often led fourth quarter comebacks and winning drives. Interestingly, like Manning and Brady, he missed a season due to injury. Of those three, only Brady kept his starting job and the other two went to another team. Over time, however, Montana will fall lower and lower in the rankings as the modern QB's surpass his statistics -- like what has happened to Mickey Mantle in baseball (although The Mick still holds the record for most home runs in the World Series!).
A134: JUSTIFICATIONS for NOT Top Five:
A135: Baugh is the earliest player in this list, thus, it is difficult to compare him to modern day players and playing. He has always been listed as one of the greatest QB's and will probably remain in that list for some time. Despite having a winning season most of the time, he has a low percent of wins to losses. He threw more interceptions than TD's. Despite winning two championships, he was never the league MVP. However, he is an all-time top leader in average yards for punts. Yes, he was a punter too. And he was a punt returner. One season he led the league in interceptions -- catching them as a defensive player, that is! Ah, the good old days.
A136: Bradshaw had lousy stats and was not a strong leader as the other top quarterbacks. His teammates were some of the best ever at their positions, thus, they won four Super Bowls. He also had one of the best coaches ever. He did have a very strong arm; he once overthrew a receiver because the ball traveled 70 yards in the air! Bradshaw was someone who was in the right place at the right time to make NFL history.
A137: Elway had decent stats but not outstanding. Like Brady, his longevity puts him near the top in certain statistics such as attempts, yards, sacks, fumbles (including fumbles lost), fourth quarter comebacks and game winning drives, wins and winning seasons. Thus, only one MVP award. Lost more Super Bowls than he won (although, thankfully, he did get two Super Bowl victories). He was often surrounded by a good team too. At draft time for the Dream QB Team of 1983, Elway was drafted first, ahead of Kelly and Marino, and neither of them won a Super Bowl.
A138: Favre, by sheer number of years played, and played well, ranks high simply by quantity. He just misses the top five in all ranking methods although he more often than not ranks in the top five for most every individual statistic. One Super Bowl victory, three league MVP's, three AP All-Pros, Pro Bowl less than half his career, winning team most seasons. His will to play the game ranks him at the top with Unitas.
A139: Kelly, like Marino, lacked a great team around him (although his Buffalo did reach the Super Bowl four times). And, his several years in the start-up USFL league kept him from NFL longevity. He is the only QB to be oh-and-four in Super Bowls. He is one of the last quarterbacks that got to often call his own plays in the huddle. He never was the league MVP either. But, oh, could he pass.
A140: Luckman will be in the Top Ten NFL quarterback list for a while. He completed more yards per completion than anyone and had more TD's per attempt than anyone. His yards per attempt is one of the best ever. And, he was one of the very best at not fumbling the ball, and, when he did fumble, his team usually recovered it. His teams had winning seasons in 11 of his 12 years and won their division five times with four championships. He was selected to six Pro Bowls and started in five of them
A141: Starr, along with Graham and Mahomes, are the only QB's in the Top Ten of all six ranking lists. He ranks #6 overall. Starr won five championship games or Super Bowls (the first two!). He was MVP once and Pro Bowl just four times in 16 years. His stats were decent but none were near career records although they are among the best of all QBs. However, he was on a winning team only half his career. He was definitely a clutch player for his team. And, he played for a legendary coach, perhaps the greatest NFL coach ever.
A142: Marino, aka. "Golden Arm", had he been on a better team, would probably be #1. His statistics compared to everyone else is testimony to that. He had the best arm of any QB, period. So smooth. So strong. So accurate. So quick-releasing. Hard to believe he was MVP only once. Lousy teams. Before Favre, Manning and Brady came along, Marino owned most every QB career record, even some seasons records too, beating out most of Tarkenton's records. Only ones who can compare to Marino are Patrick Mahomes and Josh Allen.
A143: Rodgers did not make the top ten but he is worth mentioning. He is THE most accurate QB in NFL history. Rodgers is one of very few quarterbacks with a career QB Rating above 100. He threw more TD's per game than anyone. He threw fewer interceptions per attempt, and game, than anyone. He has only one Super Bowl victory and only one league MVP which keeps him out of the Top Ten.
A144: Staubach started his NFL career late because of Navy duty. In Super Bowls he was 2 for 4. None of his stats are NFL career records. He was never the league MVP. His teams rarely lost games though. Having a great coach helped. He also was a scrambler and rarely was sacked. And above all, he, like Montana, had an incredible game presence and generally "owned" the game. Match ups between he and Tarkenton of the Vikings were equivalent then as to the Brady-Manning matchup of the early 21st century. In fact, he made famous the phrase "Hail Mary" after the 1975 unexpected last-second mind-blowing game-winning throw to send his Cowboys to the Super Bowl instead of the Vikings.
A145: Tarkenton was simply fun to watch. Scrambling 50 yards in the backfield to throw for a 3-yard gain. In his time, before Marino came along, he led in every major QB career stat having broken the records of Unitas. But he was oh-for-three in Super Bowls. MVP only once.
A146: Unitas had an amazing career and just misses being in the Top Five. When he retired, Unitas held most QB records. His team had a winning record in 10 of 12 years. He often led fourth quarter comebacks and game winning drives. He was MVP four times, AP 1st Team 5 times, Pro Bowl 14 times, and, won three championships (and was MVP in two of them). On the minus side, his QB Rating was low because he threw many interceptions and incomplete passes plus he fumbled more than most highly-ranked QBs. But he was tough and he was a winner.
A147: Wilson had an incredible start to his career with ten seasons in Seattle to rank him in the top ten. He had started every game. He had a winning season every year and was in two Super Bowls (in his 2nd and 3rd seasons), winning his first one. He is ONLY one of very few quarterbacks to have a career Quarterback Rating over 100. He throws fewer interceptions than nearly every other quarterback. And, he is already highly ranked in fourth-quarter comebacks for post-season playoff games. His career in Denver has been quite different, and less stellar, than his Seattle career, thus, he has dropped in these rankings.
A149: Another 40-ish QB's that could be added to this list and bring the count to well over 100 (but none would probably make the Top Twenty in any ranking):
A150: Super Bowl Losers: Chris Chandler, David Woodley, Jake Delhomme, Kerry Collins, Neil O'Donnell, Rex Grossman, Stan Humphries, Vince Farragamo, Joe Burrow, Brock Purdy
A151: Other modern QB's: Steve Bartkowski, David Garrard, Jeff George, Trent Green, Elvis Grbac, Brian Griese, Jim Harbaugh, Neil Lomax, Chad Pennington, Greg Landry, Josh Freeman, Vinny Testaverde, Ken O'Brien, Don Strock, Matthew Stafford, Mark Brunell, Alex Smith, Andy Dalton, Norm Snead, Kirk Cousins, Jay Cutler, Steve DeBerg, Ryan Tannenhill, Dan Pastorini, Jeff Goff
A152: Old-time Hall of Fame QB's (more Ints than TDs and complete < 50%): Frankie Albert, Adrian Burk, Earl 'Dutch' Clark, John 'Paddy' Driscoll, Jim Finks, Benny Friedman, Arnie Herber, Clarence 'Ace' Parker, George Ratterman, Frank Ryan, Tommy Thompson
B154: T H E F O R M U L A S F O R R A N K I N G S
A155: These are the formulas used to calculate (from other columns) the four Ranking Values for each QB | B155: #1 in col.BC based on Stats and Weighted Values (NOTE: more # of seasons helps here): | M155: #2 in col.BD based on weighted Championships Won (NOTE: more # of seasons helps here): | Y155: #3 in col.BE based on Weighted Pointed for Winning: | AG155: #4 in col.BF based ONLY on Averages and Percentages: | AO155: #5 Points per Stats Ranking:
B156: '=#ChampionshipsTimesFour | M156: '=#ChampionshipsTimesFour | Y156: ''=#ChampionshipsTimes12 | AG156: ''=QB Rating (((PassComp%+PassInt%+TDAtt%+YdsAtt/6)*100) | AO156: 'Rating
B157: +CountOfStrengthIndicators | M157: '-#PlayoffLosses | Y157: '+#ChampionshipsTimes11 | AG157: '+AvgYdsPerComp | AO157: '#Attempt
B158: '+WinningSeasonsStarter | M158: '+CountOfStrengthIndicated | Y158: '+(#WinDiv/#YrsPlayed)Times10 | AG158: '+AvgFumGame | AO158: '#Comp
B159: '+#OfUndefeatedRegSeason | M159: '+WinningSeasonsStarter | Y159: '+(#WinConf/#YrsPlayed)Times10 | AG159: '+100-FumToFumLost% | AO159: '#Yards
B160: '+#TeamWinDiv | M160: '+#OfUndefeatedRegSeason | Y160: '+previousTwoValuesTimes10 | AG160: '+YdsPerRush | AO160: 'Comp%
B161: '+#TeamWinConf | M161: '+#TeamWinDiv | Y161: '+#WinningSeasonsTimes9 | AG161: '+TDPerRush | AO161: '#TD
B162: '+#PlayoffWinsAsStarter | M162: '+#TeamWinConf | Y162: '+TDGameRatioValue[2+=3,1.5-1.9=2,1-1.4=1]Times8 | AG162: '+TDRushGame | AO162: 'TD/Int
B163: '+#PlayoffLoseAsStarter | M163: '+#PlayoffWinsAsStarter | Y163: '+(4QComebackValue[40+=3,25-39=2,15-24=1] | AG163: '+GamesStart% | AO163: 'TD/Att
B164: '+PlayoffWinPct | M164: '+#PlayoffLoseAsStarter | Y164: ' +WinningDriveValue[40+=3,25-39=2,15-24=1] | AG164: '+GamesStartWin% | AO164: 'TD/Game
B165: '+Playoffs4QComeback | M165: '+PlayoffWinPct | Y165: ' +WinLossRatioValue[90+=4,80-89=3,70-79=2,60-69=1])Times7 | AG165: '+WinningSeason% | AO165: '#Fumbles
B166: '+PlayoffsGameWinningDrive | M166: '+Playoffs4QComeback | Y166: '+QBRatingValue[100+=3,90-99=2,80-89=1]Times6 | AG166: '+SeasonsMVP% | AO166: '#FumbLost
B167: '+#ProBowls | M167: '+PlayoffsGameWinningDrive | Y167: '+FumFumLostRatioValue[0-29=3,30-39=2,40+=1]Times5 | AG167: '+SeasonsWinDiv% | AO167: 'FumLost%
B168: '+#ProBowlStarter | M168: '+#ProBowls | Y168: +#MVPofYearTimes3 | AG168: '+SeasonsWinConf% | AO168: 'Fum/Game%
B169: '+#SeasonsMVP | M169: '+#ProBowlStarter | Y169: '+#ProBowlStarterTimes2 | AG169: '+PlayoffWins% | AO169: '#Sack
B170: '+#SeasonsAPAllPro | M170: '+#SeasonsMVP | Y170: '+GamesPlayVsMissValue[100%=4,90-99=3,80-89=2,else=1] | AG170: '+SeasonsProBowl% | AO170: 'Sack/Game
B171: '+#HallOfFame | M171: '+#SeasonsAPAllPro | Y171: '+#SeasonsAPAllPro | AG171: '+SeasonsProBowlStart% | AO171: 'Int/Att
B172: '+#Championships | M172: '+#HallOfFame | AG172: '+SeasonsAPAllPro% | AO172: 'Yd/Att
B173: '+#ChamptionMVP | M173: '+#Championships | AG173: '+20-Season#AsChamp | AO173: 'Yd/Comp
B174: '-#PlayoffLosses | M174: '+#ChamptionMVP | AG174: '+SeasonsChamp% | AO174: 'Yd/Game
B175: '+QBRatingValue[100+=3,90-99=2,80-89=1] | M175: '+QBRatingValue[100+=3,90-99=2,80-89=1] | AG175: '+SeasonsChampMVP% | AO175: 'Int/Game
B176: '+4QComebackValue[40+=3,25-39=2,15-24=1] | M176: '+4QComebackValue[40+=3,25-39=2,15-24=1] | AO176: 'AvgRushYards/Game
B177: '+WinningDriveValue[40+=3,25-39=2,15-24=1] | M177: '+WinningDriveValue[40+=3,25-39=2,15-24=1] | AO177: 'AvgRushTD
B178: '+WinLossRatioValue[90+=4,80-89=3,70-79=2,60-69=1] | M178: '+WinLossRatioValue[90+=4,80-89=3,70-79=2,60-69=1] | AO178: 'AvgRushTD/Game
B179: '+FumFumLostRatioValue[0-29=3,30-39=2,40+=1] | M179: '+FumFumLostRatioValue[0-29=3,30-39=2,40+=1] | AO179: '#GamesPlayed
B180: '+WinningSeasonsValue[100%=4,90-99=3,80-89=2,70-79=1] | M180: '+WinningSeasonsValue[100%=4,90-99=3,80-89=2,70-79=1] | AO180: '#Games/Played
B181: '+YdsPerAttValue[8.75+=3,8.25-8.74=2,7.75-8.24=1] | M181: '+YdsPerAttValue[8.75+=3,8.25-8.74=2,7.75-8.24=1] | AO181: '#SeasonsPlayed
B182: '+TDGameRatioValue[2+=3,1.5-1.9=2,1-1.4=1] | M182: '+TDGameRatioValue[2+=3,1.5-1.9=2,1-1.4=1] | AO182: '#Games/Started
B183: '+GamesPlayVsMissValue[100%=4,90-99=3,80-89=2,else=1] | M183: '+GamesPlayVsMissValue[100%=4,90-99=3,80-89=2,else=1] | AO183: '#PROBowl
B184: '+DecadeValue(forChangsesInGameOverTime)[1970-1989=3,1950-1969=6,before1950=9] | M184: '+DecadeValue(forChangsesInGameOverTime)[1970-1989=3,1950-1969=6,before1950=9] | AO184: '#PROBowlStart
M185: +Pts:WinsPerGamesPlayed% (90+=10,80-89=8,75-79=6,70-74=4,65-73=2) | AO185: '#MVP
M186: +Pts:WinningSeasonsToSeasonsPlayed% (100=10,90-99=8,80-89=6,70-79=4,65-69=2) | AO186: '#APPro1stTeam
M187: +Pts:TDsIntsRatio% (2.8+=10,2.6-2.7=8,2.1-2.5=6,1.8-2.0=4,1.3-1.7=2) | AO187: '#4QComebackWins
M188: +Pts:FumLostFumRatio% (0-1.2=10,1.3=1.45=8,1.46-1.47=6,1.48-1.59=4,1.60-1.99=2) | AO188: '#WinningDrives
M189: +Pts:#Sacked (0=10,1.1-1.3=8,1.4-1.5=6,1.6-1.7=4,1.8-1.9=2) | AO189: '#4QWin/Game
M190: +Pts:IntsPerAtt% (0-0.4=10,0.5-0.9=8,1.0-1.3=6,1.4-1.6=4,1.7-1.9=2) | AO190: '#WinDrives/Game
M191: +Pts:IntsPerAtt (0-1.9=10,2.0-2.4=9,2.5-2.9=8,3.0-3.4=6,3.5-4.4=5,4.5-4.9=3) | AO191: '#Wins | AV191: Combining the Ranks with the five Top Ten Rankings with a Point assigned per Rank value
M192: +Pts:YdsPerAtt (8.6+=1-.8.5-8.7=8,7.6-8.4=6,7.1-7.5=4,6.6-7.4=2) | AO192: 'Win%Games | AV192: where 1 is 10pts, 2 is 9pts, 3 is 8pts and so on where 10 is 1pt and zero is zero points
M193: +Pts:YdsPerComp (17+=10,16.x=8,15.x=6,14.x=4,13.x=3,12.x=2) | AO193: '#WinSeasonsStarter | AV193: QB and his five Rankings | AZ193: # of times Ranked | BC193: Points for Combined Rankings
M194: +Pts:YdsPerGame (271+=10,251-270=8,226-250=6,201-225=4,181-200=2) | AO194: 'WinSeasons% | AV194: Graham:1,2,1,2,3..............5.................. 46
M195: +Pts:TDPerAtt (7.1+=10,6.x=8,5.6-5.9=6,5.1-2.5=4,4.6-5.0=2) | AO195: '#UndefeatedSeason | AV195: Mahomes:4,3,3,1,5.............5.................. 39
M196: +Pts:TDPerGame (2.1+=10,1.7-2.0=8,1.4-1.7=6,1.2-1.3=4,1.1=2) | AO196: '#WinDivision | AV196: Brady:2,1,2,0,1...............4.................. 38
M197: +Pts:IntPerGame (0-0.5=10,0.6-0.71=8,0.72-0.79=6,0.80-0.85=4,0.86-0.99=2) | AO197: '#WinConf | AV197: P.Manning:5,4,4,0,2...........4.................. 29
M198: +Pts:#GamesPlayedVs.Possible (1+=10,0.95-0.99=8,0.898-0.949=6,0.848-0.897=4,0.8-0.847=2) | AO198: '#PlayoffGames | AV198: Montana:3,5,5,10,5............5.................. 27
M199: +Pts:4QWinPerGame (18+=10,15.1-18=8,12.1-14.9=6,10.1-12=4,8.1-10=2) | AO199: '#PlayoffWins | AV199: Starr:7,7,7,5,0...............4.................. 18
M200: +Pts:WinningDrivePerGame (20+=10,17.1-20=8,15.1-17=6,12.1-15=4.10.1-12=2) | AO200: '#PlayoffWin% | AV200: Luckman:9,8,6,0,7.............4.................. 14
AO201: '#Playoff4QWin | AV201: Unitas:6,6,10,0,0.............3.................. 11
AO202: '#PlayoffWinDrive | AV202: Staubach:0,0,9,3,0............2.................. 10
AO203: '1stSeason#InSBowl | AV203: Young:0,0,0,4,0...............1.................. 07
AO204: '#SB/Champ-Wins | AV204: Brees:0,0,0,0,4...............1.................. 07
AO205: '#SB/Champ-MVP | AV205: Bradshaw:10,0,8,8,0...........3.................. 07
AV206: Jackson:0,0,0,6,0.............1.................. 05
AV207: Allen:0,0,0,7,0...............1.................. 04
AV208: McNair:0,0,0,0,8..............1.................. 03
... 97 more rows

Sheet Top5
A1: Stat | B1: Col | C1: #1 (5pts) | D1: #2 (4pts) | E1: #3 (3pts) | F1: #4 (2pts) | G1: #5 (1) | H1: This information is through the end of the 2025 season
A2: Rating(highest) | B2: X | C2: A.Rodgers | D2: L.Jackson | E2: P.Mahomes | F2: R.Wilson | G2: D.Brees
A3: Attempt(highest) | B3: R | C3: T.Brady | D3: D.Brees | E3: B.Favre | F3: P.Manning | G3: A.Rodgers
A4: Comp(highest) | B4: S | C4: T.Brady | D4: D.Brees | E4: B.Favre | F4: P.Manning | G4: A.Rodgers | I4: Stats used to determine these rankings are regular season only unless otherwise indicated
A5: Yards(highest) | B5: T | C5: T.Brady | D5: D.Brees | E5: P.Manning | F5: B.Favre | G5: A.Rodgers
A6: Comp%(highest) | B6: U | C6: D.Brees | D6: D.Prescott | E6: P.Mahomes | F6: M.Ryan | G6: K.Warner
A7: TD(highest) | B7: V | C7: T.Brady | D7: D.Brees | E7: P.Manning | F7: A.Rodgers | G7: B.Favre
A8: TD/Int(highest) | B8: BW | C8: O.Graham A.Luck | E8: T.Brady | F8: S.Luckman | G8: R.Staubach
A9: TD/Att(highest) | B9: CF | C9: S.Luckman | D9: O.Graham | E9: N.Van Brocklin | F9: E.Morrall | G9: D.Lamonica | I9: This color denotes individual records (vs. team records)
A10: TD/Game(highest) | B10: CG | C10: P.Mahomes | D10: D.Brees | E10: A.Luck | F10: P.Manning | G10: M.Ryan
A11: Fumbles(lowest) | B11: AG | C11: P.Rivers | D11: S.Luckman | E11: J.McMahon | F11: D.Lamonica | G11: J.Namath
A12: FumbLost(lowest) | B12: AH | C12: S.Luckman | D12: J.Montana | E12: P.Mahomes B.Starr B.Waterfield
A13: FumLost%(lowest) | B13: CA | C13: G.Blanda | D13: B.Kilmer | E13: M.Rypien | F13: D.Williams | G13: E.Morrall | I13: This color denotes team records (vs individual records) lead by their QB
A14: Fum/Game%(lowest) | B14: CB | C14: B.Starr | D14: J.Montana | E14: J.Unitas | F14: J.Flacco | G14: T.Brady
A15: Sack(lowest) *** | B15: AE | C15: G.Blanda
A16: Sack/Game(lowest) *** | B16: BY | C16: P.Rivers | D16: G.Blanda | E16: J.Everett | F16: M.Rypien | G16: L.Dawson
A17: Int/Att(lowest) | B17: CC | C17: S.Luckman | D17: J.Montana | E17: B.Starr | F17: P.Manning | G17: G.Blanda | I17: These stats tend to favor QB's who played well for many seasons (i.e. 16 or more years)
A18: Yd/Att(highest) | B18: CD | C18: B.Waterfield | D18: S.Luckman | E18: G.Blanda | F18: S.Baugh | G18: B.Layne
A19: Yd/Comp(highest) | B19: CE | C19: O.Graham | D19: S.Luckman | E19: N.Van Brocklin | F19: S.Young | G19: K.Warner
A20: Yd/Game(highest) | B20: CF | C20: D.Brees | D20: P.Manning | E20: M.Ryan | F20: T.Brady | G20: P.Rivers
A21: Int/Game(lowest) | B21: CI | C21: J.Hostetler | D21: E.Morrall | E21: G.Blanda | F21: B.Starr | G21: J.McMahon
A22: AvgRushYards/Game(highest) | B22: AB | C22: M.Vick | D22: R.Cunningham | E22: L.Jackson | F22: S.Young | G22: D.McNabb
A23: AvgRushTD(highest) | B23: AC | C23: B.Waterfield | D23: O.Graham | E23: N.Van Brocklin | F23: Y.Tittle | G23: J.Namath
A24: AvgRushTD/Game(highest) | B24: AD | C24: J.Hurts | D24: J.Allen | E24: C.Newton | F24: K.Warner | G24: O.Graham
A25: #GamesPlayed(highest) | B25: G | C25: G.Blanda | D25: T.Brady | E25: B.Favre | F25: D.Brees | G25: P.Manning
A26: Games/Played(highest) | B26: CJ | C26: J.Namath | D26: B.Waterfield | E26: B.Layne | F26: D.Fouts | G26: N.Van Brocklin
A27: SeasonsPlayed(highest) | B27: D | C27: G.Blanda | D27: T.Brady | E27: A.Rodgers E.Morrall | G27: B.Favre D.Brees | I27: * * *
A28: Games/Started(highest) | B28: H | C28: T.Brady | D28: B.Favre | E28: D.Brees | F28: P.Manning | G28: A.Rodgers
A29: PROBowl(highest) | B29: AV | C29: T.Brady | D29: P.Manning | E29: D.Brees | F29: J.Unitas A.Rodgers | H29: (Post-Season) | I29: S T A T S
A30: PROBowlStart(highest) | B30: AW | C30: P.Manning S.Baugh | E30: T.Brady | F30: O.Graham J.Unitas S.Luckman | H30: (Post-Season) | I30: ON
A31: MVP(highest) | B31: AX | C31: P.Manning | D31: J.Unitas A.Rodgers | F31: O.Graham T.Brady B.Favre | H31: (Post-Season) | I31: S A C K S
A32: APPro1stTeam(highest) | B32: AY | C32: O.Graham P.Manning | E32: J.Unitas | F32: A.Rodgers | G32: T.Brady J.Montana B.Favre S.Baugh S.Young | H32: (Post-Season) | I32: N O T
A33: 4QComebackWins(highest) | B33: AI | C33: T.Brady | D33: P.Manning | E33: B.Roethlisherger | F33: M.Ryan | G33: J.Unitas D.Brees D.Marino | I33: K E P T
A34: WinningDrives(highest) | B34: AJ | C34: T.Brady | D34: P.Manning | E34: B.Roethlisherger D.Brees | G34: D.Marino | I34: U N T I L
A35: 4QWin/Game(highest) | B35: CK | C35: O.Graham | D35: J.Hurts | E35: B.Layne N.Van Brocklin | G35: J.Allen | I35: 1 9 5 0 ' s
A36: WinDrives/Game(highest) | B36: CL | C36: D.Williams | D36: A.Luck | E36: J.Unitas | F36: B.Roethlisherger | G36: M.Ryan
A37: Wins(reg.seasons)(highest) | B37: AK | C37: T.Brady | D37: B.Favre | E37: P.Manning | F37: D.Brees | G37: B.Roethlisherger | H37: (Team)
A38: Win%Games(highest) | B38: BU | C38: O.Graham S.Baugh B.Waterfield | F38: T.Brady B.Roethlisherger K.Warner | H38: (Team)
A39: WinSeasonsStarter(highest) | B39: AM | C39: T.Brady | D39: P.Manning B.Roethlisherger B.Favre | G39: J.Unitas J.Elway S.Baugh D.Marino | H39: (Team)
A40: WinSeasons%(highest) | B40: BV | C40: O.Graham | D40: D.Lamonica | E40: T.Brady | F40: P.Mahomes | G40: S.Luckman | H40: (Team)
A41: UndefeatedSeason(highest) | B41: AN | C41: O.Graham T.Brady E.Morrall B.Griese | H41: (Team)
A42: WinDivision(highest) | B42: AO | C42: T.Brady | D42: P.Manning | E42: C.Conerly | F42: O.Graham J.Montana | H42: (Team)
A43: WinConf(highest) | B43: AP | C43: O.Graham T.Brady | E43: B.Starr | F43: P.Mahomes J.Unitas J.Elway S.Luckman S.Baugh | H43: (Post-Season)
A44: PlayoffGames(highest) | B44: AQ+AR | C44: T.Brady | D44: J.Montana | E44: P.Manning | F44: B.Favre | G44: A.Rodgers | H44: (Post-Season)
A45: PlayoffWins(highest) | B45: AP | C45: T.Brady | D45: J.Montana | E45: P.Manning J.Elway T.Bradshaw | H45: (Post-Season)
A46: PlayoffWin%(highest) | B46: AS | C46: B.Starr | D46: T.Dilfer | E46: P.Mahomes | F46: E.Morrall J.Hostetler J.Plunkett | H46: (Post-Season)
A47: Playoff4QWin(highest) | B47: AT | C47: T.Brady | D47: P.Mahomes | E47: J.Montana | F47: J.Elway T.Bradshaw E.Manning R.Wilson | H47: (Post-Season)
A48: PlayoffWinDrive(highest) | B48: AU | C48: T.Brady | D48: P.Mahomes | E48: J.Elway | F48: J.Montana E.Manning | H48: (Post-Season)
A49: EarlySeasonSBowl(lowest) | B49: BX | C49: B.Waterfield | D49: J.Namath | E49: L.Dickey | F49: B.Layne | G49: J.Plunkett | H49: (Post-Season)
A50: SB/Champ-Wins(highest) | B50: BB | C50: T.Brady | D50: O.Graham J.Montana P.Mahomes B.Starr T.Aikman | H50: (Post-Season)
A51: SB/Champ-MVP(highest) | B51: BC | C51: O.Graham | D51: T.Brady | E51: J.Montana | F51: P.Mahomes | G51: P.Manning | H51: (Post-Season)
A53: C O U N T S | H53: Total Counts | I53: Points | J53: Rank
A55: T.Brady | C55: =COUNTIF($C$2:$C$51,"*"&TRIM($A55)&"*") -> 18 | D55: =COUNTIF($D$2:$D$51,"*"&TRIM($A55)&"*") -> 3 | E55: =COUNTIF($E$2:$E$51,"*"&TRIM($A55)&"*") -> 3 | F55: =COUNTIF($F$2:$F$51,"*"&TRIM($A55)&"*") -> 3 | G55: =COUNTIF($G$2:$G$51,"*"&TRIM($A55)&"*") -> 2 | H55: =SUM(C55:G55) -> 29 | I55: =(C55*5)+(D55*4)+(E55*3)+(F55*2)+G55 -> 119 | J55: =RANK(I55,$I$55:$I$107) -> 1
A56: P.Manning | C56: =COUNTIF($C$2:$C$51,"*"&TRIM($A56)&"*") -> 3 | D56: =COUNTIF($D$2:$D$51,"*"&TRIM($A56)&"*") -> 6 | E56: =COUNTIF($E$2:$E$51,"*"&TRIM($A56)&"*") -> 5 | F56: =COUNTIF($F$2:$F$51,"*"&TRIM($A56)&"*") -> 5 | G56: =COUNTIF($G$2:$G$51,"*"&TRIM($A56)&"*") -> 2 | H56: =SUM(C56:G56) -> 21 | I56: =(C56*5)+(D56*4)+(E56*3)+(F56*2)+G56 -> 66 | J56: =RANK(I56,$I$55:$I$107) -> 2
A57: O.Graham | C57: 9 | D57: 3 | E57: 0 | F57: 3 | G57: 1 | H57: 16 | I57: 64 | J57: 3
A58: D.Brees | C58: 2 | D58: 5 | E58: 3 | F58: 2 | G58: 3 | H58: 15 | I58: 46 | J58: 4
A59: P.Mahomes | C59: 1 | D59: 3 | E59: 4 | F59: 3 | G59: 0 | H59: 11 | I59: 35 | J59: 5
A60: J.Montana | C60: 0 | D60: 6 | E60: 2 | F60: 2 | G60: 1 | H60: 11 | I60: 35 | J60: 5
A61: S.Luckman | C61: 3 | D61: 3 | E61: 0 | F61: 3 | G61: 1 | H61: 10 | I61: 34 | J61: 7
A62: G.Blanda | C62: 4 | D62: 1 | E62: 2 | F62: 0 | G62: 1 | H62: 8 | I62: 31 | J62: 8
A63: B.Favre | C63: 0 | D63: 3 | E63: 3 | F63: 3 | G63: 3 | H63: 12 | I63: 30 | J63: 9
A64: B.Waterfield | C64: 4 | D64: 1 | E64: 1 | F64: 0 | G64: 0 | H64: 6 | I64: 27 | J64: 10
A65: B.Starr | C65: 2 | D65: 1 | E65: 3 | F65: 1 | G65: 0 | H65: 7 | I65: 25 | J65: 11
A66: A.Rodgers | C66: 1 | D66: 1 | E66: 1 | F66: 3 | G66: 5 | H66: 11 | I66: 23 | J66: 12
A67: J.Unitas | C67: 0 | D67: 1 | E67: 3 | F67: 3 | G67: 2 | H67: 9 | I67: 21 | J67: 13
A68: E.Morrall | C68: 1 | D68: 1 | E68: 1 | F68: 2 | G68: 1 | H68: 6 | I68: 17 | J68: 14
A69: S.Baugh | C69: 2 | D69: 0 | E69: 0 | F69: 2 | G69: 2 | H69: 6 | I69: 16 | J69: 15
A70: B.Roethlisherger | C70: 0 | D70: 1 | E70: 2 | F70: 2 | G70: 1 | H70: 6 | I70: 15 | J70: 16
A71: A.Luck | C71: 1 | D71: 1 | E71: 1 | F71: 0 | G71: 0 | H71: 3 | I71: 12 | J71: 17
A72: P.Rivers | C72: 2 | D72: 0 | E72: 0 | F72: 0 | G72: 1 | H72: 3 | I72: 11 | J72: 18
A73: J.Namath | C73: 1 | D73: 1 | E73: 0 | F73: 0 | G73: 2 | H73: 4 | I73: 11 | J73: 18
A74: J.Elway | C74: 0 | D74: 0 | E74: 2 | F74: 2 | G74: 1 | H74: 5 | I74: 11 | J74: 18
A75: M.Ryan | C75: 0 | D75: 0 | E75: 1 | F75: 2 | G75: 2 | H75: 5 | I75: 9 | J75: 21
A76: B.Layne | C76: 0 | D76: 0 | E76: 2 | F76: 1 | G76: 1 | H76: 4 | I76: 9 | J76: 21
A77: D.Williams | C77: 1 | D77: 0 | E77: 0 | F77: 1 | G77: 0 | H77: 2 | I77: 7 | J77: 23
A78: J.Hostetler | C78: 1 | D78: 0 | E78: 0 | F78: 1 | G78: 0 | H78: 2 | I78: 7 | J78: 23
A79: D.Lamonica | C79: 0 | D79: 1 | E79: 0 | F79: 1 | G79: 1 | H79: 3 | I79: 7 | J79: 23
A80: K.Warner | C80: 0 | D80: 0 | E80: 0 | F80: 2 | G80: 2 | H80: 4 | I80: 6 | J80: 27
A81: B.Griese | C81: 1 | D81: 0 | E81: 0 | F81: 0 | G81: 0 | H81: 1 | I81: 5 | J81: 28
A82: M.Vick | C82: 1 | D82: 0 | E82: 0 | F82: 0 | G82: 0 | H82: 1 | I82: 5 | J82: 28
A83: T.Bradshaw | C83: 0 | D83: 0 | E83: 1 | F83: 1 | G83: 0 | H83: 2 | I83: 5 | J83: 28
A84: J.Allen | C84: 0 | D84: 1 | E84: 0 | F84: 0 | G84: 1 | H84: 2 | I84: 5 | J84: 28
A85: M.Rypien | C85: 0 | D85: 0 | E85: 1 | F85: 1 | G85: 0 | H85: 2 | I85: 5 | J85: 28
A86: S.Young | C86: 0 | D86: 0 | E86: 0 | F86: 2 | G86: 1 | H86: 3 | I86: 5 | J86: 28
A87: R.Wilson | C87: 0 | D87: 0 | E87: 0 | F87: 2 | G87: 0 | H87: 2 | I87: 4 | J87: 34
A88: D.Prescott | C88: 0 | D88: 1 | E88: 0 | F88: 0 | G88: 0 | H88: 1 | I88: 4 | J88: 34
A89: E.Manning | C89: 0 | D89: 0 | E89: 0 | F89: 2 | G89: 0 | H89: 2 | I89: 4 | J89: 34
A90: C.Isbell | C90: 0 | D90: 0 | E90: 0 | F90: 0 | G90: 0 | H90: 0 | I90: 0 | J90: 51
A91: L.Jackson | C91: =COUNTIF($C$2:$C$51,"*"&TRIM($A91)&"*") -> 0 | D91: =COUNTIF($D$2:$D$51,"*"&TRIM($A91)&"*") -> 1 | E91: =COUNTIF($E$2:$E$51,"*"&TRIM($A91)&"*") -> 1 | F91: =COUNTIF($F$2:$F$51,"*"&TRIM($A91)&"*") -> 0 | G91: =COUNTIF($G$2:$G$51,"*"&TRIM($A91)&"*") -> 0 | H91: =SUM(C91:G91) -> 2 | I91: =(C91*5)+(D91*4)+(E91*3)+(F91*2)+G91 -> 7 | J91: =RANK(I91,$I$55:$I$107) -> 23
A92: C.Newton | C92: 0 | D92: 0 | E92: 1 | F92: 0 | G92: 0 | H92: 1 | I92: 3 | J92: 42
A93: B.Kilmer | C93: 0 | D93: 1 | E93: 0 | F93: 0 | G93: 0 | H93: 1 | I93: 4 | J93: 34
A94: T.Dilfer | C94: 0 | D94: 1 | E94: 0 | F94: 0 | G94: 0 | H94: 1 | I94: 4 | J94: 34
A95: T.Aikman | C95: 0 | D95: 1 | E95: 0 | F95: 0 | G95: 0 | H95: 1 | I95: 4 | J95: 34
A96: R.Cunningham | C96: 0 | D96: 1 | E96: 0 | F96: 0 | G96: 0 | H96: 1 | I96: 4 | J96: 34
A97: D.Marino | C97: 0 | D97: 0 | E97: 0 | F97: 0 | G97: 3 | H97: 3 | I97: 3 | J97: 42
A98: C.Conerly | C98: 0 | D98: 0 | E98: 1 | F98: 0 | G98: 0 | H98: 1 | I98: 3 | J98: 42
A99: J.McMahon | C99: 0 | D99: 0 | E99: 1 | F99: 0 | G99: 1 | H99: 2 | I99: 4 | J99: 34
A100: L.Dickey | C100: 0 | D100: 0 | E100: 1 | F100: 0 | G100: 0 | H100: 1 | I100: 3 | J100: 42
A101: J.Plunkett | C101: 0 | D101: 0 | E101: 0 | F101: 1 | G101: 1 | H101: 2 | I101: 3 | J101: 42
A102: J.Flacco | C102: 0 | D102: 0 | E102: 0 | F102: 1 | G102: 0 | H102: 1 | I102: 2 | J102: 47
A103: D.Fouts | C103: 0 | D103: 0 | E103: 0 | F103: 1 | G103: 0 | H103: 1 | I103: 2 | J103: 47
A104: Y.Tittle | C104: 0 | D104: 0 | E104: 0 | F104: 1 | G104: 0 | H104: 1 | I104: 2 | J104: 47
A105: F.Tarkenton | C105: 0 | D105: 0 | E105: 0 | F105: 0 | G105: 0 | H105: 0 | I105: 0 | J105: 51
A106: N.Foles | C106: 0 | D106: 0 | E106: 0 | F106: 0 | G106: 0 | H106: 0 | I106: 0 | J106: 51
A107: D.McNabb | C107: 0 | D107: 0 | E107: 0 | F107: 0 | G107: 1 | H107: 1 | I107: 1 | J107: 50
A108: =COUNTA(#REF!) -> 1 | C108: =SUM(C56:C107) -> 40 | D108: 46 | E108: 43 | F108: 56 | G108: 41 | H108: 226 | I108: 666
A110: Out of well over 1,100 guys who have been a professional quarterback, these QBs hold all of the top five positions of all QB career records.
A111: Just a few of them hold over half of these records and just twice that many of them hold three-fourths of all of these records.
A113: Mostly because of long careers, these QB's hold the record for some things they would rather NOT have the record for:
A114: Int(highest) | B114: W | C114: B.Favre | D114: G.Blanda | E114: J.Hadl | F114: F.Tarkenton | G114: J.Unitas
A115: Losses(highest) | B115: AL | C115: E.Manning | D115: B.Favre, D.Brees | E115: F.Tarkenton, M.Ryan | F115: P.Rivers | G115: W.Moon
A116: PlayoffLosses(highest) | B116: AR | C116: P.Manning | D116: T.Brady | E116: B.Favre | F116: A.Rodgers, D.Marino | G116: J.Montana
A117: And poor Jim Kelly has the distinction of being the only QB to lose four Super Bowls, nine others each have three losses

Sheet Super Bowls
A1: YEAR | B1: MVP | C1: QB Winner | D1: QB Loser
A2: 1967 | B2: Bart Starr | C2: Bart Starr | D2: Len Dawson
A3: 1968 | B3: Bart Starr | C3: Bart Starr | D3: Daryle Lamonica
A4: 1969 | B4: Joe Namath | C4: Joe Namath | D4: Johnny Unitas,Earl Morrall
A5: 1970 | B5: Len Dawson | C5: Len Dawson | D5: Joe Kapp
A6: 1971 | B6: Chuck Howley | C6: Earl Morrall,Johnny Unitas | D6: Craig Morton
A7: 1972 | B7: Roger Staubach | C7: Roger Staubach | D7: Bob Griese
A8: 1973 | B8: Jake Scott | C8: Bob Griese | D8: Billy Kilmer
A9: 1974 | B9: Larry Csonka | C9: Bob Griese | D9: Fran Tarkenton
A10: 1975 | B10: Franco Harris | C10: Terry Bradshaw | D10: Fran Tarkenton
A11: 1976 | B11: Lynn Swann | C11: Terry Bradshaw | D11: Roger Staubach
A12: 1977 | B12: Fred Biletnikoff | C12: Ken Stabler | D12: Fran Tarkenton
A13: 1978 | B13: Randy White,Harvey Martin | C13: Roger Staubach | D13: Craig Morton
A14: 1979 | B14: Terry Bradshaw | C14: Terry Bradshaw | D14: Roger Staubach
A15: 1980 | B15: Terry Bradshaw | C15: Terry Bradshaw | D15: Vince Farragamo
A16: 1981 | B16: Jim Plunkett | C16: Jim Plunkett | D16: Ron Jaworski
A17: 1982 | B17: Joe Montana | C17: Joe Montana | D17: Ken Anderson
A18: 1983 | B18: John Riggins | C18: Joe Theismann | D18: David Woodley
A19: 1984 | B19: Marcus Allen | C19: Jim Plunkett | D19: Ron Jaworski
A20: 1985 | B20: Joe Montana | C20: Joe Montana | D20: Dan Marino
A21: 1986 | B21: Richard Dent | C21: Jim McMahon | D21: Steve Grogan
A22: 1987 | B22: Phil Simms | C22: Phil Simms | D22: John Elway
A23: 1988 | B23: Doug Williams | C23: Doug Williams | D23: John Elway
A24: 1989 | B24: Jerry Rice | C24: Joe Montana | D24: Boomer Esiason
A25: 1990 | B25: Joe Montana | C25: Joe Montana | D25: John Elway
A26: 1991 | B26: Ottis Anderson | C26: Jeff Hostetler | D26: Jim Kelly
A27: 1992 | B27: Mark Rypien | C27: Mark Rypien | D27: Jim Kelly
A28: 1993 | B28: Troy Aikman | C28: Troy Aikman | D28: Jim Kelly
A29: 1994 | B29: Emmitt Smith | C29: Troy Aikman | D29: Jim Kelly
A30: 1995 | B30: Steve Young | C30: Steve Young | D30: Stan Humphries
A31: 1996 | B31: Larry Brown | C31: Troy Aikman | D31: Neil O-Donnell
A32: 1997 | B32: Desmond Howard | C32: Brett Favre | D32: Drew Bledsoe
A33: 1998 | B33: Terrell Davis | C33: John Elway | D33: Brett Favre
A34: 1999 | B34: John Elway | C34: John Elway | D34: Chris Chandler
A35: 2000 | B35: Kurt Warner | C35: Kurt Warner | D35: Steve McNair
A36: 2001 | B36: Ray Lewis | C36: Trent Dilfer | D36: Kerry Collins
A37: 2002 | B37: Tom Brady | C37: Tom Brady | D37: Kurt Warner
A38: 2003 | B38: Dexter Jackson | C38: Brad Johnson | D38: Rich Gannon
A39: 2004 | B39: Tom Brady | C39: Tom Brady | D39: Jake Delhomme
A40: 2005 | B40: Deion Branch | C40: Tom Brady | D40: Donavan McNabb
A41: 2006 | B41: Hines Ward | C41: Ben Roethlisberger | D41: Mark Hallelbeck
A42: 2007 | B42: Peyton Manning | C42: Peyton Manning | D42: Rex Grossman
A43: 2008 | B43: Eli Manning | C43: Eli Manning | D43: Tom Brady
A44: 2009 | B44: Santonio Holmes | C44: Ben Roethlisberger | D44: Kurt Warner
A45: 2010 | B45: Drew Brees | C45: Drew Brees | D45: Peyton Manning
A46: 2011 | B46: Aaron Rodgers | C46: Aaron Rodgers | D46: Ben Roethlisberger
A47: 2012 | B47: Eli Manning | C47: Eli Manning | D47: Tom Brady
A48: 2013 | B48: Joe Flacco | C48: Joe Flacco | D48: Colin Kaepernick
A49: 2014 | B49: Malcomb Smith | C49: Russell Wilson | D49: Peyton Manning
A50: 2015 | B50: Tom Brady | C50: Tom Brady | D50: Russell Wilson
A51: 2016 | B51: Von Miller | C51: Peyton Manning | D51: Cam Newton
A52: 2017 | B52: Tom Brady | C52: Tom Brady | D52: Matt Ryan
A53: 2018 | B53: Nick Foles | C53: Nick Foles | D53: Tom Brady
A54: 2019 | B54: Julian Edelman | C54: Tom Brady | D54: Jared Goff
A55: 2020 | B55: Patrick Mahomes | C55: Patrick Mahomes | D55: Jimmy Garoppolo
A56: 2021 | B56: Tom Brady | C56: Tom Brady | D56: Patrick Mahomes
A57: 2022 | B57: Aaron Donald | C57: Matthew Stafford | D57: Joe Burrow
A58: 2023 | B58: Patrick Mahomes | C58: Patrick Mahomes | D58: Jalen Hurts
A59: 2024 | B59: Patrick Mahomes | C59: Patrick Mahomes | D59: Brock Purdy
A60: 2025 | B60: Jalen Hurts | C60: Jalen Hurts | D60: Patrick Mahomes
A61: 2026 | B61: Kenneth Walker III | C61: Sam Darnold | D61: Drake Maye
A62: 2027
A63: 2028
A64: 2029

Sheet MVP
A1: YEAR | B1: PLAYER (two names means a tie) | C1: QB Most Passing Yards (for years prior to MVP award)
A2: 1937 | C2: Sammy Baugh
A3: 1938 | C3: Ace Parker
A4: 1939 | C4: Davey O'Brien
A5: 1940 | C5: Sammy Baugh
A6: 1941 | C6: Cecil Isbell
A7: 1942 | C7: Cecil Isbell
A8: 1943 | C8: Sid Luckman
A9: 1944 | C9: Irv Comp
A10: 1945 | C10: Sid Luckman
A11: 1946 | B11: Glenn Dobbs(AAFC) | C11: Sid Luckman
A12: 1947 | B12: Otto Graham(AAFC) | C12: Sammy Baugh
A13: 1948 | B13: Otto Graham,Frankie Albert(AAFC) | C13: Sammy Baugh
A14: 1949 | B14: (AAFC none) | C14: Johnny Lujack
A15: 1950 | C15: Bobby Layne
A16: 1951 | C16: Bobby Layne
A17: 1952 | C17: Otto Graham
A18: 1953 | C18: Otto Graham
A19: 1954 | C19: Norm Van Brocklin
A20: 1955 | C20: Jim Finks
A21: 1956 | C21: Tobin Rote
A22: 1957 | B22: Jim Brown
A23: 1958 | B23: Gino Marchetti
A24: 1959 | B24: Charley Conerly
A25: 1960 | B25: Norm Van Brocklin,Joe Schmidt
A26: 1961 | B26: Paul Hornung
A27: 1962 | B27: Jim Taylor
A28: 1963 | B28: Y.A. Tittle
A29: 1964 | B29: John Unitas
A30: 1965 | B30: Jim Brown
A31: 1966 | B31: Bart Starr
A32: 1967 | B32: John Unitas
A33: 1968 | B33: Earl Morrall
A34: 1969 | B34: Roman Gabriel
A35: 1970 | B35: John Brodie
A36: 1971 | B36: Alan Page
A37: 1972 | B37: Larry Brown
A38: 1973 | B38: O.J. Simpson
A39: 1974 | B39: Ken Stabler
A40: 1975 | B40: Fran Tarkenton
A41: 1976 | B41: Bert Jones
A42: 1977 | B42: Walter Payton
A43: 1978 | B43: Terry Bradshaw
A44: 1979 | B44: Earl Campbell
A45: 1980 | B45: Brian Sipe
A46: 1981 | B46: Ken Anderson
A47: 1982 | B47: Mark Moseley
A48: 1983 | B48: Joe Theismann
A49: 1984 | B49: Dan Marino
A50: 1985 | B50: Marcus Allen
A51: 1986 | B51: Lawrence Taylor
A52: 1987 | B52: John Elway
A53: 1988 | B53: Boomer Esiason
A54: 1989 | B54: Joe Montana
A55: 1990 | B55: Joe Montana
A56: 1991 | B56: Thurman Thomas
A57: 1992 | B57: Steve Young
A58: 1993 | B58: Emmitt Smith
A59: 1994 | B59: Steve Young
A60: 1995 | B60: Brett Favre
A61: 1996 | B61: Brett Favre
A62: 1997 | B62: Brett Favre,Barry Sanders
A63: 1998 | B63: Terrell Davis
A64: 1999 | B64: Kurt Warner
A65: 2000 | B65: Marshall Faulk
A66: 2001 | B66: Kurt Warner
A67: 2002 | B67: Rich Gannon
A68: 2003 | B68: Peyton Manning,Steve McNair
A69: 2004 | B69: Peyton Manning
A70: 2005 | B70: Shaun Alexander
A71: 2006 | B71: LaDainian Tomlinson
A72: 2007 | B72: Tom Brady
A73: 2008 | B73: Peyton Manning
A74: 2009 | B74: Peyton Manning
A75: 2010 | B75: Tom Brady
A76: 2011 | B76: Aaron Rodgers
A77: 2012 | B77: Adrian Peterson
A78: 2013 | B78: Peyton Manning
A79: 2014 | B79: Aaron Rodgers
A80: 2015 | B80: Cam Newton
A81: 2016 | B81: Matt Ryan
A82: 2017 | B82: Tom Brady
A83: 2018 | B83: Patrick Mahomes
A84: 2019 | B84: Lamar Jackson
A85: 2020 | B85: Aaron Rodgers
A86: 2021 | B86: Aaron Rodgers
A87: 2022 | B87: Patrick Mahomes
A88: 2023 | B88: Lamar Jackson
A89: 2024 | B89: Josh Allen
A90: 2025 | B90: Matthew Stafford
A91: 2026
A92: 2027
A93: 2028
A94: 2029
A95: 2030

Sheet AP All-Pro
A1: Season | B1: QB Selected First Team | C1: QB Selected Second Team
A2: 1933 | B2: Glenn Presnell | C2: Harry Newman, Benny Friedman
A3: 1934 | B3: Dutch Clark | C3: Harry Newman
A4: 1935 | B4: Dutch Clark | C4: Ed Danowski, Arnie Herber
A5: 1936 | B5: Dutch Clark | C5: Arnie Herber, Riley Smith
A6: 1937 | B6: Sammy Baugh | C6: Dutch Clark, Ed Danowski
A7: 1938 | B7: Ace Parker | C7: Dan Danowski, Sammy Baugh, Riley Smith
A8: 1939 | B8: Parker Hall | C8: Davey O'Brien, Ace Parker
A9: 1940 | B9: Ace Parker | C9: Sammy Baugh, Sid Luckman
A10: 1941 | B10: Sid Luckman | C10: Cecil Isbell
A11: 1942 | B11: Sid Luckman | C11: Sammy Baugh, Cecil Isbell
A12: 1943 | B12: Sammy Baugh | C12: Sid Luckman
A13: 1944 | B13: Sid Luckman | C13: Roy Zimmerman
A14: 1945 | B14: Bobby Waterfield | C14: Sammy Baugh
A15: 1946 | B15: Bobby Waterfield | C15: Sid Luckman
A16: 1947 | B16: Sid Luckman | C16: Otto Graham, Sammy Baugh
A17: 1948 | B17: Otto Graham | C17: Sammy Baugh, Tommy Thompson
A18: 1949 | B18: Bobby Waterfield | C18: Otto Graham, Tommy Thompson
A19: 1950 | B19: John Lujack | C19: Bobby Waterfield, Otto Graham, George Ratterman
A20: 1951 | B20: Otto Graham | C20: Bobby Waterfield
A21: 1952 | B21: Bobby Layne | C21: Otto Graham
A22: 1953 | B22: Otto Graham | C22: Bobby Layne, Bobby Zthomason
A23: 1954 | B23: (none) | C23: (considered as: Adrian Burk, Y.A. Tittle, Bobby Layne)
A24: 1955 | B24: (none) | C24: (considered as: Graham, Unitas, Van Brocklin)
A25: 1956 | B25: (none) | C25: (considered as: Ed Brown, Charlie Conerly, Johnny Unitas, Tobin Rote)
A26: 1957 | B26: Y.A. Tittle | C26: Johnny Unitas
A27: 1958 | B27: Johnny Unitas | C27: Bobby Layne
A28: 1959 | B28: Johnny Unitas | C28: Bobby Layne
A29: 1962 | B29: YA Tittle | C29: Bart Starr
A30: 1963 | B30: YA Tittle | C30: Johnny Unitas, Billy Wade
A31: 1964 | B31: Johnny Unitas | C31: Bart Starr
A32: 1965 | B32: Johnny Unitas | C32: John Brodie, Rudy Bukich, Frank Ryan
A33: 1966 | B33: Bart Starr | C33: Sonny Jurgensen, Don Meredith
A34: 1967 | B34: Johnny Unitas | C34: Sonny Jurgensen
A35: 1968 | B35: Earl Morral | C35: Bill Nelsen
A36: 1969 | B36: Roman Gabriel | C36: Sonny Jurgensen
A37: 1970 | B37: John Brodie | C37: n/a
A38: 1971 | B38: Bob Griese | C38: Roger Staubach
A39: 1972 | B39: Earl Morral | C39: Daryle Lamonica
A40: 1973 | B40: John Hadl | C40: Fran Tarkenton
A41: 1974 | B41: Ken Stabler | C41: Jim Hart, Ken Anderson
A42: 1975 | B42: Fran Tarkenton | C42: Ken Anderson
A43: 1976 | B43: Bert Jones | C43: Ken Stabler
A44: 1977 | B44: Bob Griese | C44: Bert Jones
A45: 1978 | B45: Terry Bradshaw | C45: Archie Manning, Roger Staubach
A46: 1979 | B46: Dan Fouts | C46: Brian Sipe
A47: 1980 | B47: Brain Sipe | C47: Dan Fouts
A48: 1981 | B48: Ken Anderson | C48: Joe Montana
A49: 1982 | B49: Dan Fouts | C49: Danny White
A50: 1983 | B50: Joe Thiesmann | C50: Dan Marino
A51: 1984 | B51: Dan Marino | C51: Joe Montana
A52: 1985 | B52: Dan Marino | C52: Dan Fouts
A53: 1986 | B53: Dan Marino | C53: Tommy Kramer
A54: 1987 | B54: Joe Montana | C54: John Elway
A55: 1988 | B55: Boomer Esiason | C55: Randall Cunningham
A56: 1989 | B56: Joe Montana | C56: Don Majkowski
A57: 1990 | B57: Joe Montana | C57: Warren Moon
A58: 1991 | B58: Jim Kelly | C58: Mark Rypien
A59: 1992 | B59: Steve Young | C59: Jim Kelly
A60: 1993 | B60: Steve Young | C60: John Elway
A61: 1994 | B61: Steve Young | C61: Dan Marino
A62: 1995 | B62: Brett Favre | C62: Dan Marino
A63: 1996 | B63: Brett Favre | C63: John Elway
A64: 1997 | B64: Brett Favre | C64: Steve Young
A65: 1998 | B65: Randall Cunningham | C65: Steve Young
A66: 1999 | B66: Kurt Warner | C66: Peyton Manning
A67: 2000 | B67: Rich Gannon | C67: Peyton Manning
A68: 2001 | B68: Kurt Warner | C68: Brett Favre
A69: 2002 | B69: Rich Gannon | C69: Brett Favre
A70: 2003 | B70: Peyton Manning | C70: Steve McNair
A71: 2004 | B71: Peyton Manning | C71: Daunte Culpepper
A72: 2005 | B72: Peyton Manning | C72: Tom Brady
A73: 2006 | B73: Drew Brees | C73: Peyton Manning
A74: 2007 | B74: Tom Brady | C74: Brett Favre
A75: 2008 | B75: Peyton Manning | C75: Drew Brees
A76: 2009 | B76: Peyton Manning | C76: Drew Brees
A77: 2010 | B77: Tom Brady | C77: n/a
A78: 2011 | B78: Aaron Rodgers | C78: Drew Brees
A79: 2012 | B79: Peyton Manning | C79: Aaron Rodgers
A80: 2013 | B80: Peyton Manning | C80: n/a
A81: 2014 | B81: Aaron Rodgers | C81: Tony Romo
A82: 2015 | B82: Cam Newton | C82: Carson Palmer
A83: 2016 | B83: Matt Ryan | C83: Tom Brady
A84: 2017 | B84: Tom Brady | C84: Carson Wentz
A85: 2018 | B85: Patrick Mahomes | C85: Drew Brees
A86: 2019 | B86: Lamar Jackson | C86: Russell Wilson
A87: 2020 | B87: Aaron Rodgers | C87: Josh Allen, Patrick Mahomes
A88: 2021 | B88: Aaron Rodgers | C88: Tom Brady
A89: 2022 | B89: Patrick Mahomes | C89: Jalen Hurt
A90: 2023 | B90: Lamar Jackson | C90: Dak Prescott
A91: 2024 | B91: Lamar Jackson | C91: Josh Allen
A92: 2025 | B92: Matthew Stafford | C92: Drake Maye
A93: 2026
A94: 2027
A95: 2028
A96: 2029
A97: 2030
A98: 2031
A99: 2032
A100: 2033
A101: 2034
A102: 2035
A103: 2036
A104: 2037
A105: 2038
A106: 2039
A107: 2040
A108: 2041
